Workbook

Sheet Cover Sheet - Table of Contents
A1: Strategic Communications NASPO ValuePoint Cloud Solutions Price List | D1: Enter part for search below:
A2: Detailed Manufacturer Price Lists | B2: Instructions: Welcome Buyers! Strategic Communications was awarded the NASPO ValuePoint Cloud Solutions contract under all categories including PaaS (Platform as a Service), IaaS (Infrastructure as a Service), and SaaS (Software as a Service). A detailed list of the current cloud solutions vendors is provided on the left hand side of this page. Please click on the links and it will navigate you to the applicable price list. Additional cloud providers with solutions available through this NASPO contract are listed under the "Additional Cloud Vendors" tab. Strategic Communications is always interested in adding new cloud vendors and solutions providers to our NASPO catalog. Please contact us directly for more information on new products/services that may not be listed on our catalog. The minimum discount off list price for NASPO ValuePoint customers is 1%. For most cloud providers, we offer discounts in excess of the minimum. Please reach out to our government sales team for an official quote. | D2: JIRA-STDYR-50
A3: Adobe
A4: Software as a Service (SaaS)
A5: Alation Software
A6: Platform as a Service (PaaS)
A7: Value Added Services
A8: AlertOps
A9: Software as a Service (SaaS)
A10: All-Star Talent
A11: Platform as a Service (PaaS)
A12: Software as a Service (SaaS)
A13: Value Added Services
A14: AmpliFund
A15: Software as a Service (SaaS) | D15: Description:
A16: AppDynamics
A17: Software as a Service (SaaS)
A18: Apptio | D18: =IFERROR(VLOOKUP($D$2,'Atlassian Software'!B:B,0,),IFERROR(VLOOKUP($D$2,'AWS US (All regions)'!B:C,2,FALSE),"address")) -> address
A19: Software as a Service (SaaS)
A20: Arctic Wolf
A21: Platform as a Service (PaaS)
A22: Value Added Services
A23: Ataccama | B23: Please direct all quote requests to:
A24: Software as a Service (SaaS) | B24: Strategic Cloud Sales
A25: Platform as a Service (PaaS) | B25: (844) 243-2053
A26: Value Added Services | B26: naspo@yourstrategic.com
A27: Atlas One
A28: Software as a Service (SaaS)
A29: Platform as a Service (PaaS)
A30: Value Added Services | D30: =INDEX(SheetList[],MATCH(1,--COUNTIF(INDIRECT("'"&SheetList[]&"'!$B$B"),$D$2)>0),0) -> 
A31: Atlassian Software
A32: Software as a Service (SaaS)
A33: Atom AI
A34: Software as a Service (SaaS)
A35: Value Added Services
A36: AUTORABIT
A37: Software as a Service (SaaS)
A38: Autura
A39: Software as a Service (SaaS)
A40: AWS US (All regions)
A41: Infrastructure as a Service (IaaS)
A42: Platform as a Service (PaaS)
A43: Software as a Service (SaaS)
A44: Value Added Services
A45: AWS GovCloud (US)
A46: Infrastructure as a Service (IaaS)
A47: Platform as a Service (PaaS)
A48: Software as a Service (SaaS)
A49: Value Added Services
A50: Axe Dev
A51: Software as a Service (SaaS)
A52: Value Added Services
A53: AXON ENTERPRISE
A54: Software as a Service (SaaS)
A55: Value Added Services
A56: Barracuda
A57: Software as a Service (SaaS)
A58: Blackbaud
A59: Software as a Service (SaaS)
A60: Platform as a Service (PaaS)
A61: Value Added Services
A62: Bitwarden
A63: Software as a Service (SaaS)
A64: BlackCat Grant Management
A65: Software as a Service (SaaS)
A66: Blueink
A67: Software as a Service (SaaS)
A68: BMC
A69: Software as a Service (SaaS)
A70: Bridge Intelligence
A71: Software as a Service (SaaS)
A72: Burlington English
A73: Software as a Service (SaaS)
A74: CA Technologies
A75: Software as a Service (SaaS)
A76: Calero
A77: Software as a Service (SaaS)
A78: Capstorm
A79: Software as a Service (SaaS)
A80: Carahsoft
A81: Value Added Services
A82: Checkpoint
A83: Software as a Service (SaaS)
A84: Cisco
A85: Software as a Service (SaaS)
A86: Citrix
A87: Software as a Service (SaaS)
A88: Clango
A89: Software as a Service (SaaS)
A90: Claroty
A91: Software as a Service (SaaS)
A92: CloudGuru
A93: Platform as a Service (PaaS)
A94: Cohesity
A95: Software as a Service (SaaS)
A96: Value Added Services
A97: Common Caches
A98: Software as a Service (SaaS)
A99: Value Added Services
A100: Commvault
A101: Software as a Service (SaaS)
A102: Conerstone On-Demand
A103: Software as a Service (SaaS)
A104: Platform as a Service (PaaS)
A105: Crowdstrike
A106: Software as a Service (SaaS)
A107: Databricks, Inc
A108: Software as a Service (SaaS)
A109: Delinia Inc.
A110: Software as a Service (SaaS)
A111: Dell
A112: Platform as a Service (PaaS)
A113: Diligent Audit Software
A114: Software as a Service (SaaS)
A115: Docusign
A116: Software as a Service (SaaS)
A117: Dulles Technology Partners
A118: Software as a Service (SaaS)
A119: Value Added Services
A120: Dynatrace
A121: Software as a Service (SaaS)
A122: Platform as a Service (PaaS)
A123: Ecloud
A124: Infrastructure as a Service (SaaS)
A125: Ecos Systems
A126: Software as a Service (SaaS)
A127: Value Added Services
A128: eFax
A129: Software as a Service (SaaS)
A130: Value Added Services
A131: Egen
A132: Value Added Services
A133: eHawk
A134: Software as a Service (SaaS)
A135: Equifax
A136: Software as a Service (SaaS)
A137: Value Added Services
A138: Equinix
A139: Value Added Services
A140: Esper
A141: Software as a Service (SaaS)
A142: Experian, Inc.
A143: Software as a Service (SaaS)
A144: Value Added Services
A145: Platform as a Service (PaaS)
A146: FEI Systems
A147: Software as a Service (SaaS)
A148: Value Added Services
A149: Formulytics, LLC
A150: Software as a Service (SaaS)
A151: Fusus
A152: Software as a Service (SaaS)
A153: Geonovi
A154: Software as a Service (SaaS)
A155: Value Added Services
A156: The Geospatial Group
A157: Infrastructure as a Service (IaaS)
A158: Professional Services
A159: Gold Bridge Partners Inc. (GBPI)
A160: Software as a Service (SaaS)
A161: Google
A162: Infrastructure as a Service (IaaS)
A163: Platform as a Service (PaaS)
A164: Software as a Service (SaaS)
A165: Granicus
A166: Software as a Service (SaaS)
A167: Guardian Alliance Technologies
A168: Software as a Service (SaaS)
A169: Value Added Services
A170: Hancock Software
A171: Software as a Service (SaaS)
A172: Hatfield Media
A173: Value Added Services
A174: Hyland
A175: Infrastructure as a Service (SaaS)
A176: Value Added Services
A177: IBM
A178: Software as a Service (SaaS)
A179: Idera Products
A180: Software as a Service (SaaS)
A181: Ideal Products
A182: Software as a Service (SaaS)
A183: Image Access Corp
A184: Software as a Service (SaaS)
A185: Ironman Software
A186: Software as a Service (SaaS)
A187: Ivanti
A188: Software as a Service (SaaS)
A189: JAMF
A190: Software as a Service (SaaS)
A191: Value Added Services
A192: Kaltura
A193: Software as a Service (SaaS)
A194: Karsun
A195: Software as a Service (SaaS)
A196: Value Added Services
A197: Lavi Industries
A198: Paltform as a Service (PaaS)
A199: LiteracyPro Systems, Inc.
A200: Software as a Service (SaaS)
... 166 more rows

Sheet Sheet List
A1: Sheet List
A2: Additional Cloud Vendors
A3: Atlassian Software
A4: AWS US (All regions)
A5: AWS GovCloud (US)
A6: Barracuda
A7: BlackCat Grant Management
A8: Bridge Intelligence
A9: CA Technologies
A10: Capstorm
A11: Cisco
A12: Citrix
A13: Docusign
A14: Gold Bridge Partners Inc.
A15: Google
A16: IBM
A17: Ideal Products
A18: Kaltura Inc.
A19: Microsoft
A20: N2WS Cloud Backup
A21: Nutanix
A22: Oracle
A23: RedHat
A24: PaloAltoNetworks
A25: ReelScout
A26: PluralSight
A27: T-Metrics
A28: Thermal Mirror - CRI
A29: TPx Communications
A30: Veeam
A31: VHT - Mindful
A32: VMWARE
A33: Maintenance as a Service
A34: Value Added Services
A35: Professional Services

Sheet Additional Cloud Vendors
A1: Strategic Communications NASPO ValuePoint Cloud Solutions Price List
A2: Other Available Manufacturers for Purchase
A3: Acronis | B3: Service | C3: NVP Minimum Discount
A4: Adobe | B4: IaaS | C4: 0.01
A5: Akamai | B5: PaaS | C5: 0.01
A6: AlienVault | B6: SaaS | C6: 0.01
A7: Arcserve | B7: Value Added Services | C7: 0.01
A8: Arctic Wolf
A9: Bitdefender
A10: BitTitan
A11: Bridge Intelligence
A12: Carbonite
A13: CenturyLink
A14: Check Point
A15: Condusiv
A16: ConnectWise
A17: Druva
A18: ESET
A19: F5 Networks, Inc.
A20: Fire Eye
A21: Forcepoint
A22: Forescout
A23: Fortinet/Meru
A24: Genesys
A25: Gigamon
A26: Imperva
A27: Juniper Networks
A28: Kaspersky
A29: McAfee
A30: Milestone
A31: Mimecast
A32: NetScout (Airmagnet)
A33: Nutanix, Inc.
A34: Okta
A35: Palo Alto Networks
A36: Polycom
A37: Proofpoint
A38: Rackspace
A39: ReelScout
A40: Ring Central
A41: RSA
A42: Rubrik
A43: Salesforce.com
A44: SAP
A45: SAP (Concur)
A46: SAP NS2
A47: SMART
A48: SonicWall
A49: Sophos
A50: Spectra Logic
A51: Splunk
A52: SUSE
A53: Symantec
A54: Tenable
A55: Trend Micro
A56: Veeam
A57: Veritas
A58: Virtustream
A59: Zebra
A60: Zoom
A61: zScaler

Sheet Adobe
A1: Manufacturer | B1: Part Number | C1: Description | D1: Category | E1: Sub-Category | F1: LIST PRICE | G1: MINIMUM DISCOUNT | H1: NVP PRICE | I1: Unit
A2: Adobe | B2: 38055798 | C2: AEM FORMS:OD AUTO FORMS CONVERSION | D2: SaaS | F2: 0 | G2: 0.01 | H2: 0 | I2: Each
A3: Adobe | B3: 38056873 | C3: AEM:OPT DEV LICENSE FOR MS FULFILLMENT | D3: SaaS | F3: 0 | G3: 0.01 | H3: 0 | I3: Each
A4: Adobe | B4: 38056875 | C4: AEM FORMS:OPT OSGI DEV LIC-MS FULFILMENT | D4: SaaS | F4: 0 | G4: 0.01 | H4: 0 | I4: Each
A5: Adobe | B5: 38056897 | C5: AEM: CLOUD SERVICE SANDBOX FOR AEM MS | D5: SaaS | F5: 0 | G5: 0.01 | H5: 0 | I5: Each
A6: Adobe | B6: 210-1424-MG-EB2 | C6: AEM SITES:MS ENTERPRISE 99.9% - Managed Services - Per Base (AEM Sites Enterprise 99.9 includes 40M activity/mo, which includes page views & headless use) - Per Year | D6: SaaS | F6: 1106500 | G6: 0.01 | H6: 1095435 | I6: Each
A7: Adobe | B7: 210-1424-MG-MPC-12 | C7: SITES:MS MANAGED PROD CAPACITY 99.9 - Sites Managed Production Capacity - Per Pack (includes 1 Publish & 1 Dispatch server & two matching staging servers) - Per Year | D7: SaaS | F7: 320000 | G7: 0.01 | H7: 316800 | I7: Each
A8: Adobe | B8: 210-1425-MG-EB8 | C8: AEM ASSETS:MS ENTERPRISE 5TB 99.9% - Managed Services - Per Base (includes 40 concurrent users, 1K Brand Portal Users and use of SmartContent Services to tag up to 5M images/yr) - Per Year | D8: SaaS | F8: 689360 | G8: 0.01 | H8: 682466.4 | I8: Each
A9: Adobe | B9: 210-1425-ODS | C9: Adobe Experience Manager - OnDemand Storage 250GB Capacity Add-On - 12 Months | D9: SaaS | F9: 1080 | G9: 0.01 | H9: 1069.2 | I9: Each
A10: Adobe | B10: 210-1427-MS-AI | C10: Adobe AEM FORMS:MS ADDITIONAL INSTANCE 99.5% - Managed Service Additional Instance - Per Year | D10: SaaS | F10: 167500 | G10: 0.01 | H10: 165825 | I10: Each
A11: Adobe | B11: 210-1427-MS-ENT-3-2 | C11: AEM FORMS:MS ENT 99.5 30M RENDITIONS - Forms Enterprise 99.5% 30M Renditions - Includes 30M form renditions per year - Per Base - Per Year | D11: SaaS | F11: 1100000 | G11: 0.01 | H11: 1089000 | I11: Each
A12: Adobe | B12: 210-1427-MS-SUBADD-2 | C12: AEM FORMS: MS ADD SUBMISSIONS VOLUME - Forms Add Submissions Volume (includes 50K submissions/yr) - PER PACK - PER YEAR | D12: SaaS | F12: 33000 | G12: 0.01 | H12: 32670 | I12: Each
A13: Adobe | B13: 210-1429-MG-BVA-1 | C13: Adobe Experience Manager - Managed Services Increase Instance By 1 VCPU - Per Instance - 12 Months | D13: SaaS | F13: 10000 | G13: 0.01 | H13: 9900 | I13: Each
A14: Adobe | B14: 210-1430-MG-BUP-1 | C14: AEM:MANAGED BACKUP 1 TB - Managed Services - Per Pack - Per Year | D14: SaaS | F14: 1080 | G14: 0.01 | H14: 1069.2 | I14: Each
A15: Adobe | B15: 210-1430-MG-NP | C15: Adobe Experience Manager - Managed Services 500 GB Network I/O - Per Pack | D15: SaaS | F15: 1980 | G15: 0.01 | H15: 1960.2 | I15: Each
A16: Adobe | B16: 210-1430-MG-ST1-1 | C16: AEM:MANAGED STORAGE 250 GB - Managed Services - Per Pack - Per Year | D16: SaaS | F16: 1080 | G16: 0.01 | H16: 1069.2 | I16: Each
A17: Adobe | B17: 210-1437-MG-SSC-F1-ILDoIT | C17: SVC Special Security/Cert FEDRAMP - per yr. The published E8 price is not the Customer's final price. The purchase price of the software maint is based on a Commercial List Price that is 25% of the price you paid | D17: SaaS | F17: 573489.3 | G17: 0.01 | H17: 567754.407 | I17: Each
A18: Adobe | B18: 210-1452-MG-EE-1 | C18: AC MANAGED CLOUD ENT:MS EMAIL, Per Thousand Active Profiles/Year, Volume 100K - 200K - Pricing for 100k Active Profiles Per Year | D18: SaaS | F18: 149.12 | G18: 0.01 | H18: 147.6288 | I18: Each
A19: Adobe | B19: 210-1452-MG-ES-1 | C19: AC MANAGED CLOUD ENT:MS SOLUTION, Per Thousand Active Profiles/Year, Volume 100K - 200K - Pricing for 100k Active Profiles Per Year | D19: SaaS | F19: 2488.77 | G19: 0.01 | H19: 2463.8823 | I19: Each
A20: Adobe | B20: 210-1462-CLM-40 | C20: AEM: CLOUD DYNAMIC MEDIA ADD ON, Cost Per Million Page Views per Month (Volume 40M+) - Pricing for 40 Million page Views Per Month | D20: SaaS | F20: 450 | G20: 0.01 | H20: 445.5 | I20: Each
A21: Adobe | B21: 210-2053-OD-U-M6 | C21: ANALYTICS ULTIMATE:OD - OnDemand Server Calls (150M - 199.99M Server Calls per Month) - price per month - Pricing for 275 Million Server Calls Per Month | D21: SaaS | F21: 340 | G21: 0.01 | H21: 336.6 | I21: Each
A22: Adobe | B22: 210-2056-P-CPMM-1 | C22: Adobe AA STREAMING MEDIA: ADVANCED CPMM - Primary - Cost Per Million Media Starts per Month (5M - 9.99M Streaming Media Starts Per Month) - Pricing for 5 Million Media Starts Per Month | D22: SaaS | F22: 1130 | G22: 0.01 | H22: 1118.7 | I22: Each
A23: Adobe | B23: 210-3001-PS-2 | C23: Adobe Target Premium Per Server Call (13,500,000 - 34,999,999 Server Calls Per Year) - 12 Months - Pricing for 30 Million Page Views Per Year | D23: SaaS | F23: 8336 | G23: 0.01 | H23: 8252.64 | I23: Each
A24: Adobe | B24: 210-3212-L8-13BC08A12 | C24: Adobe Acrobat Pro for enterprise, Subscription New, Monthly, 1 User, Large Government Agencies - Level 8 5000-9999 (VIP # Req.) 12 Month Term Adobe Inc. | D24: SaaS | F24: 131.99 | G24: 0.01 | H24: 130.6701 | I24: EA
A25: Adobe | B25: 210-3297-L-77BC06A12 | C25: Adobe Sign for enterprise, Enterprise Hosted Subscription New, Monthly, 1 User, Large Government Agencies - Level 6 100-999 (VIP Enroll. ID Required) - 12 Month Term Adobe Inc. | D25: SaaS | F25: 35000 | G25: 0.01 | H25: =F25-(F25*G25) -> 34650 | I25: Each
A26: Adobe | B26: 210-3297-L-77BC07A12 | C26: Adobe Adobe Sign Solutions for enterprise, Subscription New, Monthly, AWS, 1 Named User, Large Government Agencies - Level 7 1000-4999 (VIP # Req.) 12 Month Term **NEW** | D26: SaaS | F26: 592.8 | G26: 0.01 | H26: =F26*0.99 -> 586.872 | I26: EA
A27: Adobe | B27: 210-4126-US12 | C27: ULTIMATE SUPPORT 12-Enhanced high-touch support with a designated TAM and Support Service manager - proactive technical and operational services - leveled based on footprint of the Adobe Experience Cloud software and cloud solutions environment. Per Year | D27: SaaS | F27: 554000 | G27: 0.01 | H27: 548460 | I27: Each
A28: Adobe | B28: 210-8023-MG-NPQ | C28: AEM:MS DEV/QA - Per Instance (Non-Production Dev QA) - Per Year | D28: SaaS | F28: 28000 | G28: 0.01 | H28: 27720 | I28: Each
A29: Adobe | B29: 210T-ACRO-P | C29: Adobe Acrobat Pro Enterprise Term License - Per User | D29: SaaS | F29: 75.4 | G29: 0.01 | H29: 74.65 | I29: EA
A30: Adobe | B30: 210T-CAP-U | C30: Adobe Captivate Enterprise Term License - Per User | D30: SaaS | F30: 611 | G30: 0.01 | H30: 604.89 | I30: EA
A31: Adobe | B31: 210T-CCPP | C31: Adobe Creative Cloud (All Apps) Pro Plus Term License - Per User | D31: SaaS | F31: 1111.5 | G31: 0.01 | H31: 1100.39 | I31: EA
A32: Adobe | B32: 210T-CCS-PP | C32: Adobe Creative Cloud Single App Pro Plus Enterprise - Term License - Per User | D32: SaaS | F32: 451.1 | G32: 0.01 | H32: 446.59 | I32: EA
A33: Adobe | B33: 210T-CFE | C33: Adobe ColdFusion Enterprise Term License - Per 8 Cores | D33: SaaS | F33: 4087.2 | G33: 0.01 | H33: 4046.33 | I33: EA
A34: Adobe | B34: 210T-FME-U | C34: Adobe FrameMaker Enterprise Term License - Per User - | D34: SaaS | F34: 663 | G34: 0.01 | H34: 656.37 | I34: EA
A35: Adobe | B35: 210T-PHEL | C35: Adobe Photoshop Elements Enterprise Term License - Per User | D35: SaaS | F35: 66.3 | G35: 0.01 | H35: 65.64 | I35: EA
A36: Adobe | B36: 210T-PREL | C36: Adobe Premiere Elements Enterprise Term License - Per User | D36: SaaS | F36: 66.3 | G36: 0.01 | H36: 65.64 | I36: EA
A37: Adobe | B37: 210T-RHO | C37: Adobe RoboHelp Office Enterprise Term License - Per Computer | D37: SaaS | F37: 572 | G37: 0.01 | H37: 566.28 | I37: EA
A38: Adobe | B38: 210T-SIGN-FEDRAMP | C38: Adobe Acrobat Sign for Gov FedRAMP Subscription | D38: SaaS | F38: 142025 | G38: 0.01 | H38: 140604.75 | I38: EA
A39: Adobe | B39: 210T-SIGN-PSFEDRAMP | C39: Adobe Acrobat Sign for Gov FedRAMP Subscription - Professional Services | D39: SaaS | F39: 56875 | G39: 0.01 | H39: 56306.25 | I39: EA
A40: Adobe | B40: 210T-TSE-U | C40: Adobe TechnicalSuit Enterprise Term License - Per User | D40: SaaS | F40: 1112.8 | G40: 0.01 | H40: 1101.67 | I40: EA
A41: Adobe | B41: 2R1-3297-L-84BC06A12 | C41: Adobe Adobe Sign Solutions for enterprise, Subscription Renewal, Monthly, AWS, 1 Named User, Large Government Agencies - Level 6 100-999 (VIP # Req.) 12 Month Term Adobe Inc. 65305584BC06A12 | D41: SaaS | F41: 361.92 | G41: 0.01 | H41: 358.3008 | I41: Each
A42: Adobe | B42: 2R1-3297-V2-84BC02A12 | C42: Term License - Acrobat Sign Solutions for enterprise, Subscrioption Renewal, Monthly, AWS, 1 User, Level 2 10-49 (VIP# Req.) 12M **RENEWAL** | D42: SaaS | F42: 592.8 | G42: 0.01 | H42: =F42*0.99 -> 586.872 | I42: EA
A43: Adobe | B43: 65310129BC02C12 | C43: GOV 12MO SUB RL CC ALL APP-PRO CLDS TMS ALL MPLAT L2 10-49 | D43: SaaS | F43: 1500 | G43: 0.01 | H43: 1485 | I43: EA
A44: Adobe | B44: 65324055BA01A12 | C44: 12MO SUB LICS TEAMS ACROBAT PROMLIC NEW CUST ONLY MPLAT L1 1-9 | D44: SaaS | F44: 345.24 | G44: 0.01 | H44: 341.7876 | I44: EA
A45: Adobe | B45: 65324122BC02A12 | C45: 12MO SUB RNWL ACROBAT PRO FOR MLIC TEAMS NET ACROBAT PRO L2 10-49 | D45: SaaS | F45: 350 | G45: 0.01 | H45: 346.5 | I45: EA
A46: Adobe | B46: 65324131BC01A12 | C46: 12MO SUB ACROBAT PRO FOR TEAMS MLIC NET ACROBAT PRO L1 1-9 | D46: SaaS | F46: 345.24 | G46: 0.01 | H46: 341.7876 | I46: EA
A47: Adobe | B47: EliteSupport-CUSTOMCONTACT-ADOBE | C47: Adobe Elite Support: Acrobat (See attachment for SOW) | D47: SaaS | F47: 475020 | G47: 0.01 | H47: 470269.8 | I47: EA

Sheet Alation Software
A1: Manufacturer | B1: Part Number | C1: Description | D1: Category | E1: Sub-Category | F1: LIST PRICE | G1: MINIMUM DISCOUNT | H1: NVP PRICE | I1: Unit
A2: Alation Software | B2: Alation-Discount | C2: Credit for Q-08402-1 | D2: PaaS | F2: 0 | G2: 0.01 | H2: 0 | I2: EA
A3: Alation Software | B3: CL-DL-OB | C3: Cloud Subscription - Object Based - Deluxe | D3: PaaS | F3: 66384.47 | G3: 0.01 | H3: 65720.62 | I3: EA
A4: Alation Software | B4: CL-ENTR-SUB-SW-125 | C4: Cloud Subscription - Named User - Viewer Search & browse catalog, glossaries, articles, Year 1, Paid All Upfront | D4: PaaS | F4: 82 | G4: 0.01 | H4: =F4*0.99 -> 81.18 | I4: EA
A5: Alation Software | B5: CL-ENTR-SUB-SW-130 | C5: Cloud Subscription - Connector - per data source type: Per Additional Connector (except Custom DB & SAP BW). | D5: PaaS | F5: 32759 | G5: 0.01 | H5: 32431.41 | I5: EA
A6: Alation Software | B6: CL-ENTR-SUB-SW-132 | C6: Cloud Subscription - Named User - Creator Generate content, Steward, Query and Administer, Year 1, Paid All Upfront | D6: PaaS | F6: 1581.25 | G6: 0.01 | H6: 1565.4375 | I6: EA
A7: Alation Software | B7: CL-ENTR-SUB-SW-165 | C7: Cloud Subscription - Named User - Viewer: Search & browse catalog, glossaries, articles. | D7: PaaS | F7: 819 | G7: 0.01 | H7: 810.81 | I7: EA
A8: Alation Software | B8: CL-ENTR-SUB-SW-179 | C8: Cloud Subscription - Named User - Creator: Generate content, Steward, Query and Administer | D8: PaaS | F8: 3279 | G8: 0.01 | H8: 3246.21 | I8: EA
A9: Alation Software | B9: CL-ENTR-SUB-SW-184 | C9: Cloud Developer Pro Plus - Development instance of Alation Cloud Service to test functionality, data sources, authentication and new configs. Supports up to the same object max as the production instance. Will emulate the production resources and data refresh from production to the development instance is supported | D9: PaaS | F9: 202909 | G9: 0.01 | H9: 200879.91 | I9: EA
A10: Alation Software | B10: CL-ES-OB | C10: Cloud Subsription - Essentials - Object Based - Up to 50k objects, including two connectors (supported under the Alation support matrix) and unlimited viewers. It also includes 1,000 suggested description generations per year. | D10: PaaS | F10: 45091.16 | G10: 0.01 | H10: 44640.25 | I10: EA
A11: Alation Software | B11: CL-OB-NU-C-YR1 | C11: Alation, Cloud Subscription - Object Based - Named User - Creator, Generate Content, Steward, Query and Administer | D11: Value Added Services | F11: 1803.65 | G11: 0.01 | H11: 1785.61 | I11: EA
A12: Alation Software | B12: CL-OB-NU-C-YR2 | C12: Alation, Cloud Subscription - Object Based - Named User - Creator, Generate Content, Steward, Query and Administer | D12: Value Added Services | F12: 1653.32 | G12: 0.01 | H12: 1636.79 | I12: EA
A13: Alation Software | B13: CL-PREM-SUB-SW-129 | C13: Premium Edition - Cloud Subscription - Server Includes either 2 connectors, or 1 SAP BW, or 1 connector with CLL upgrade | D13: PaaS | F13: 238859 | G13: 0.01 | H13: 236470.41 | I13: EA
A14: Alation Software | B14: CL-PS-ENTR-SUB-SW-130 | C14: ACS Cloud Migration: Migration from existing on-premise Alation to Alation Cloud Service. | D14: PaaS | F14: 19269 | G14: 0.01 | H14: 19076.31 | I14: EA
A15: Alation Software | B15: CL-PS-ENTR-SUB-SW-131 | C15: Cloud PS Right Start - Standard Data Catalog implementation and training, Year 1 | D15: Value Added Services | F15: 0 | G15: 0.01 | H15: 0 | I15: EA
A16: Alation Software | B16: CL-STAN-SUB-SW-129 | C16: Premium - Cloud Subscription - Server Server (includes either 2 connectors, or 1 SAP BW, or 1 connector with CLL upgrade), Year 1, Paid All Upfront | D16: PaaS | F16: 52962.5 | G16: 0.01 | H16: 52432.875 | I16: EA
A17: Alation Software | B17: PRSV-FXP-PS-389 | C17: PS Service Pack - 40: 40 hours Professional Services for best practices, configuration and enablement | D17: PaaS | F17: 16059 | G17: 0.01 | H17: 15898.41 | I17: EA

Sheet AlertOps
A1: Manufacturer | B1: Part Number | C1: Description | D1: Category | E1: Sub-Category | F1: LIST PRICE | G1: MINIMUM DISCOUNT | H1: NVP PRICE | I1: Unit
A2: AlertOps | B2: AlertOps-Prem | C2: AlertOps Premium Plan Yearly | D2: SaaS | F2: 2246 | G2: 0.01 | H2: 2223.54 | I2: EA

Sheet All-Star Talent
A1: Manufacturer | B1: Part Number | C1: Description | D1: Category | E1: Sub-Category | F1: LIST PRICE | G1: MINIMUM DISCOUNT | H1: NVP PRICE | I1: Unit
A2: All-Star Talent | B2: AST-AZQCPD-3MO | C2: Talent recruiting campaign for Police Officer and 2 non-sworn classification - 3 month candidate recruitment campaign. | D2: PaaS | F2: 40000 | G2: 0.01 | H2: 39600 | I2: EA
A3: All-Star Talent | B3: AST-CABERK-3MO | C3: Talent recruiting campaign for Police Officer - 3 Month candidate recruitment campaign. | D3: Value Added Services | F3: 57500 | G3: 0.01 | H3: 56925 | I3: EA
A4: All-Star Talent | B4: AST-CABERK-4YR | C4: Talent recruiting campaign for Public Safety - City of Berkeley - 4 Year candidate recruitment campaign. | D4: PaaS | F4: 1579602 | G4: 0.01 | H4: 1563805.98 | I4: EA
A5: All-Star Talent | B5: AST-CAMP-1YR | C5: 1 Year Recruitment Campaign | D5: SaaS | F5: 85000 | G5: 0.01 | H5: 84150 | I5: EA
A6: All-Star Talent | B6: AST-CAMP-3MO | C6: Talent recruiting campaign for the Trooper classification - 3 month candidate recruitment campaign, along with a virtual careeer event. | D6: Value Added Services | F6: 60000 | G6: 0.01 | H6: 59400 | I6: EA
A7: All-Star Talent | B7: AST-CAMP-6MO | C7: Talent recruiting campaign for the Trooper classification - 6 month candidate recruitment campaign, along with a virtual careeer event. | D7: SaaS | F7: 110000 | G7: 0.01 | H7: 108900 | I7: EA
A8: All-Star Talent | B8: AST-HIDOC-CFRS | C8: Create an advanced candidate relationship management system specific to the state. The system includes 2-way email and text capabilities to candidates, workflows, drip campaigns, and real-time campaign analytics. The system will match and funnel current applicants in the existing HR System/process. | D8: SaaS | F8: 3125 | G8: 0.01 | H8: 3093.75 | I8: EA
A9: All-Star Talent | B9: AST-HIDOC-CFRTS | C9: Includes up to 3,000 text messages per month. Additional text messages at $0.02 / message. | D9: SaaS | F9: 1300 | G9: 0.01 | H9: 1287 | I9: EA
A10: All-Star Talent | B10: AST-HIDOC-DA | C10: Facebook, Instagram, Programmatic Marketing, Google, Youtube, job board, and any other direct spend as determined during the course of the engagement based on highest and best use of campaign funds. | D10: Value Added Services | F10: 12000 | G10: 0.01 | H10: 11880 | I10: EA
A11: All-Star Talent | B11: AST-HIDOC-DDCA | C11: Provide up to 6 digital assets/designs for advertisements, banner ads, social media ads, and various other uses. | D11: SaaS | F11: 2775 | G11: 0.01 | H11: 2747.25 | I11: EA
A12: All-Star Talent | B12: AST-HIDOC-EDSMRC | C12: Efficiently managing recruitment campaigns for all facilities on a diverse range of media platforms such as Facebook, Instagram, Programmatic Marketing, Google, Youtube, job board, and more to maximize reach and effectiveness. | D12: SaaS | F12: 7250 | G12: 0.01 | H12: 7177.5 | I12: EA
A13: All-Star Talent | B13: AST-HIDOC-EMR | C13: Email messaging to registered candidates to remind them of the Virtual Recruitment Event the week before, the week of and the day before as well as after the event to apply | D13: SaaS | F13: 500 | G13: 0.01 | H13: 495 | I13: EA
A14: All-Star Talent | B14: AST-HIDOC-INTV | C14: Gain deep insights and compelling personal stories through targeted interviews and reports from 5 individuals identifi ed by the Department. These interviews will help us personalize and humanize Correctional Officer careers at HDCR, showcasing the real-life experiences and motivations of those who serve. The insights and narratives gathered will be strategically integrated into our recruitment website, social media ads, and text/email campaigns. By leveraging these authentic stories, we aim to create a more engaging and relatable | D14: SaaS | F14: 375 | G14: 0.01 | H14: 371.25 | I14: EA
A15: All-Star Talent | B15: AST-HIDOC-ODDC | C15: Build, optimize, improve and modernize candidate experience. Consulting hours to cover the disciplines listed above. | D15: Value Added Services | F15: 125 | G15: 0.01 | H15: 123.75 | I15: EA
A16: All-Star Talent | B16: AST-HIDOC-OMDM | C16: Assistance and support to distribute surveys to candidates identifi ed by the department. Includes distribution via email and text (SMS). Also Includes quarterly meetings for survey review and analysis, needs analysis, and survey collaboration. | D16: SaaS | F16: 750 | G16: 0.01 | H16: 742.5 | I16: EA
A17: All-Star Talent | B17: AST-HIDOC-PESR | C17: Provide a survey, analysis, and report of the Virtual Recruitment Event attendees to leadership | D17: SaaS | F17: 500 | G17: 0.01 | H17: 495 | I17: EA
A18: All-Star Talent | B18: AST-HIDOC-PM | C18: Weekly 45 minute leadership meeting to review recruitment campaign results, performance improvement suggestions, training, and problem solving | D18: Value Added Services | F18: 2000 | G18: 0.01 | H18: 1980 | I18: EA
A19: All-Star Talent | B19: AST-HIDOC-RSDS | C19: Design and create feedback surveys and dashboards specifi c to the department. This includes one-time post-academy surveys, entry survey (upon hire), exit survey (upon separation), and ongoing pulse surveys to existing staff (every other month or quarterly depending on organizational preference). | D19: SaaS | F19: 2500 | G19: 0.01 | H19: 2475 | I19: EA
A20: All-Star Talent | B20: AST-HIDOC-RSLWH | C20: Monthly license for the recruiting system and recruiting website hosting fee. License will be incurred when the recruiting campaign is paused. | D20: SaaS | F20: 250 | G20: 0.01 | H20: 247.5 | I20: EA
A21: All-Star Talent | B21: AST-HIDOC-SC | C21: $2 per successfully completed survey | D21: SaaS | F21: 2843.75 | G21: 0.01 | H21: 2815.3125 | I21: EA
A22: All-Star Talent | B22: AST-HIDOC-TVS | C22: We focus on uncovering the employee value proposition that makes HDCR an attractive and engaging place to work. Our approach involves creating and conducting a comprehensive survey of your existing employees to identify what attracts and retains top talent in their roles. Based on the valuable insights gained from their experiences living and working in your facilities and communities, we will develop custom messaging and notifi cations. These tailored communications will resonate with pools and strengthen your brand identity, ensuring your recruitment strategies are effective. The culmination of our survey efforts will be a detailed report, providing actionable insights to inform the direction, design, and content of your recruitment campaigns | D22: SaaS | F22: 5000 | G22: 0.01 | H22: 4950 | I22: EA
A23: All-Star Talent | B23: AST-HIDOC-VRES | C23: Support during the event. (event moderation, notes, facilitate questions, manage breakout rooms) | D23: Value Added Services | F23: 500 | G23: 0.01 | H23: 495 | I23: EA
A24: All-Star Talent | B24: AST-HIDOC-WPD | C24: Landing page(s) to serve as a recruitment marketing site for the CO recruitment campaign. Includes an integrated candidate form and the ability to track each marketing effort. The system also includes referral links for employee referrals and kiosk mode for in-person events. | D24: SaaS | F24: 3000 | G24: 0.01 | H24: 2970 | I24: EA
A25: All-Star Talent | B25: AST-MEDIA-DS | C25: Paid Media - Direct Spend | D25: Value Added Services | F25: 65000 | G25: 0.01 | H25: 64350 | I25: EA
A26: All-Star Talent | B26: AST-MOHP-ACM | C26: Advertising Campaign management | Meta Manage Facebook/Instagram advertising campaigns to drive candidates. Includes Reporting Dashboard | D26: PaaS | F26: 4000 | G26: 0.01 | H26: 3960 | I26: EA
A27: All-Star Talent | B27: AST-MOHP-CRM | C27: Candidate Relationship Manager License Fee Monthly License which includes up to 10,000 texts per month. Includes 8 users. | D27: SaaS | F27: 1750 | G27: 0.01 | H27: 1732.5 | I27: EA
A28: All-Star Talent | B28: AST-MOHP-DAG | C28: Direct Advertising Actual monthly or weekly spend may shift based on performance or optimal cost per lead/cost per application. Direct spend of up to $7500 per month | D28: Value Added Services | F28: 8250 | G28: 0.01 | H28: 8167.5 | I28: EA
A29: All-Star Talent | B29: AST-MOHP-GAM | C29: Google Paid Ads Management Manage Google paid ads and campaigns | D29: PaaS | F29: 2000 | G29: 0.01 | H29: 1980 | I29: EA
A30: All-Star Talent | B30: AST-MOHP-ICM | C30: Indeed Campaign Campaign management, which includes integration into our candidate follow up systems | D30: PaaS | F30: 1000 | G30: 0.01 | H30: 990 | I30: EA
A31: All-Star Talent | B31: AST-MOHP-LRP | C31: Leadership Meetings, Reporting and Project Management Monthly 30-minute meetings to discuss the status of the recruitment campaign, provide recommendations and reporting | D31: Value Added Services | F31: 300 | G31: 0.01 | H31: 297 | I31: EA
A32: All-Star Talent | B32: AST-MSHP-5MO | C32: Talent recruitment campaign for the Trooper and Commercial Vehicle Officer classification. In addition 1 virtual recruitment event will be held at a time of the Departments choice. | D32: SaaS | F32: 85000 | G32: 0.01 | H32: =F32*0.99 -> 84150 | I32: EA
A33: All-Star Talent | B33: AST-SACPD-ADS | C33: Candidate Advertising Spend | D33: Value Added Services | F33: 18 | G33: 0.01 | H33: 17.82 | I33: EA
A34: All-Star Talent | B34: AST-SACPD-CRM | C34: Candidates for the Police Officer classification will be provided to the Department through our Candidate Relationship Manager system. "Candidates" refer to individuals who have expressed interest in the position by sharing their contact information, including their name, phone number, and email address, and are eager to engage in further discussions with your department. Minimum 300 candidates per month unless it's paired with another campaign. | D34: Value Added Services | F34: 16.37 | G34: 0.01 | H34: 16.2063 | I34: EA
A35: All-Star Talent | B35: AST-SACPD-IMC | C35: Managing advertising placements to deliver candidates based on highest and best use of direct advertising spend. Track sources and modify as necessary to provide optimal marketing mix for department goals. Includes up to 16 hours of consulting services | D35: SaaS | F35: 2750 | G35: 0.01 | H35: 2722.5 | I35: EA
A36: All-Star Talent | B36: AST-SACPD-MTG | C36: Weekly 30-minute meetings for month 1, bi-weekly meetings for month 2+ to discuss the status of the recruitment campaign, provide recommendations and reporting. - - - Included 30 Days ARO Sub | D36: Value Added Services | F36: 0 | G36: 0.01 | H36: 0 | I36: EA
A37: All-Star Talent | B37: AST-SACPD-PMDS | C37: Direct ad spend for candidates for the lateral and entry level officer classifications will be provided to the department through our Candidate Relationship Manager system. Candidates are sourced through a digital first recruitment campaign and are exclusive to your Department. | D37: SaaS | F37: 8000 | G37: 0.01 | H37: 7920 | I37: EA
A38: All-Star Talent | B38: AST-SACPD-RS | C38: Monthly license for the recruiting system and recruiting website hosting fee. License will be incurred when the recruiting campaign is paused. | D38: SaaS | F38: 272.73 | G38: 0.01 | H38: 270.0027 | I38: EA
A39: All-Star Talent | B39: AST-SACPD-TMC | C39: Additional text message credits based on prior usage and campaign implementation. | D39: SaaS | F39: 450 | G39: 0.01 | H39: 445.5 | I39: EA
A40: All-Star Talent | B40: AST-SACPD-TXT | C40: Monthly license which Includes up to 1,000 text messages and unlimited emails per month. Includes 1 user. Additional users @ $150 per month. License fee to be incurred when the recruiting campaign is paused. | D40: Saas | F40: 272.73 | G40: 0.01 | H40: 270.0027 | I40: EA
A41: All-Star Talent | B41: AST-SACPD-WEB | C41: Day 1-15 Create a(an): Custom recruiting website with an integrated candidate lead form. Advanced candidate relationship management system specific to theDepartment. System includes email and text capabilities to candidates,workflows, and real-time campaign analytics. 4 custom high-impact ad variations for our recruitment campaigns | D41: Value Added Services | F41: 5181.8 | G41: 0.01 | H41: 5129.982 | I41: EA

Sheet AmpliFund
A1: Manufacturer | B1: Part Number | C1: Description | D1: Category | E1: Sub-Category | F1: LIST PRICE | G1: MINIMUM DISCOUNT | H1: NVP PRICE | I1: Unit
A2: AmpliFund | B2: AEPS109-YR1 | C2: AmpliFund Enterprise Public Sector - Grant Range 6 Enterprise SaaS License of AmpliFund Lifecycle Enterprise (single production instance, development instance, testing instance, pre-production instance, dedicated customer support portal) SKU represents multiple quantities due to State of IL's volume StreamLink Software Inc. dba AmpliFund - AEPS109 12 month PoP | D2: SaaS | F2: 869000 | G2: 0.01 | H2: 860310 | I2: Each
A3: AmpliFund | B3: AEPS109-YR2 | C3: AmpliFund Enterprise Public Sector - Grant Range 6 Enterprise SaaS License of AmpliFund Lifecycle Enterprise (single production instance, development instance, testing instance, pre-production instance, dedicated customer support portal) SKU represents multiple quantities due to State of IL's volume StreamLink Software Inc. dba AmpliFund - AEPS109 12 month PoP | D3: SaaS | F3: 869000 | G3: 0.01 | H3: 860310 | I3: Each
A4: AmpliFund | B4: AEPS109-YR3 | C4: AmpliFund Enterprise Public Sector - Grant Range 6 Enterprise SaaS License of AmpliFund Lifecycle Enterprise (single production instance, development instance, testing instance, pre-production instance, dedicated customer support portal) SKU represents multiple quantities due to State of IL's volume StreamLink Software Inc. dba AmpliFund - AEPS109 12 month PoP | D4: SaaS | F4: 869000 | G4: 0.01 | H4: 860310 | I4: Each

Sheet AppDynamics
A1: Manufacturer | B1: Part Number | C1: Description | D1: Category | E1: Sub-Category | F1: LIST PRICE | G1: MINIMUM DISCOUNT | H1: NVP PRICE | I1: Unit
A2: AppDynamics | B2: ADV-APM-FLOV-ONPR | C2: AppDynamics Advanced Edition - APM Any Language - Failover - On-Premise | D2: SaaS | E2: Application Monitoring | F2: 0 | G2: 0.01 | H2: 0 | I2: EA
A3: AppDynamics | B3: ADV-APM-GOV-SAAS-NC | C3: AppDynamics Advanced Edition - APM Any Language - Gov - SaaS | D3: SaaS | E3: Application Monitoring | F3: 6180 | G3: 0.01 | H3: 6118.2 | I3: EA
A4: AppDynamics | B4: ADV-APM-ONPR | C4: AppDynamics Advanced Edition - APM Any Language - On-Premise | D4: SaaS | E4: Application Monitoring | F4: 5150 | G4: 0.01 | H4: 5098.5 | I4: EA
A5: AppDynamics | B5: ADV-APM-SAAS-NC | C5: AppDynamics Advanced Edition - APM Any Language - SaaS | D5: SaaS | E5: Application Monitoring | F5: 5150 | G5: 0.01 | H5: 5098.5 | I5: EA
A6: AppDynamics | B6: ADV-MCR-APM-FLOV-ONPR | C6: AppDynamics Advanced Edition - APM Any Language Microservices (5-Pack) - Failover - On-Premise | D6: SaaS | E6: Application Monitoring | F6: 0 | G6: 0.01 | H6: 0 | I6: EA
A7: AppDynamics | B7: ADV-MCR-APM-ONPR | C7: AppDynamics Advanced Edition - APM Any Language Microservices (5-pack) - On-Premise | D7: SaaS | E7: Application Monitoring | F7: 5150 | G7: 0.01 | H7: 5098.5 | I7: EA
A8: AppDynamics | B8: ADV-MCR-APM-SAAS-NC | C8: AppDynamics Advanced Edition - APM Any Language Microservices (5-pack) - SaaS | D8: SaaS | E8: Application Monitoring | F8: 5150 | G8: 0.01 | H8: 5098.5 | I8: EA
A9: AppDynamics | B9: BAN-ANST30-SAAS-NC | C9: AppDynamics Prod - Browser Analytics - 30 Day Cloud Indexed Storage Add-on - SaaS | D9: SaaS | E9: Digital Experience Monitoring | F9: 220 | G9: 0.01 | H9: 217.8 | I9: EA
A10: AppDynamics | B10: BAN-ANST60-SAAS-NC | C10: AppDynamics Prod - Browser Analytics - 60 Day Cloud Indexed Storage Add-on - SaaS | D10: SaaS | E10: Digital Experience Monitoring | F10: 440 | G10: 0.01 | H10: 435.6 | I10: EA
A11: AppDynamics | B11: BAN-ANST90-SAAS-NC | C11: AppDynamics Prod - Browser Analytics - 90 Day Cloud Indexed Storage Add-on - SaaS | D11: SaaS | E11: Digital Experience Monitoring | F11: 660 | G11: 0.01 | H11: 653.4 | I11: EA
A12: AppDynamics | B12: DR-8X24-U-A-SAAS-NC | C12: AppDynamics 8RTO x 24RPO Disaster Recovery (US) - per Agent | D12: SaaS | E12: Disaster Recovery | F12: 0 | G12: 0.01 | H12: 0 | I12: EA
A13: AppDynamics | B13: ENB-ADV-PRGARCH-SUB | C13: Program Architect Subscription | D13: SaaS | E13: ProServ | F13: 195000 | G13: 0.01 | H13: 193050 | I13: EA
A14: AppDynamics | B14: ENB-BIA-TE-01 | C14: Travel and Expenses - Professional Services | D14: SaaS | E14: ProServ | F14: 1 | G14: 0.01 | H14: 0.99 | I14: EA
A15: AppDynamics | B15: ENB-RDC-SAAS-MIG | C15: SaaS Migration Assistance | D15: SaaS | E15: ProServ | F15: 10000 | G15: 0.01 | H15: 9900 | I15: EA
A16: AppDynamics | B16: ENB-RDC-VALUE-PKG | C16: Renewal Value Realization Package | D16: SaaS | E16: ProServ | F16: 12000 | G16: 0.01 | H16: 11880 | I16: EA
A17: AppDynamics | B17: ENB-RPD-START | C17: Rapid Start - SaaS | D17: SaaS | E17: ProServ | F17: 14500 | G17: 0.01 | H17: 14355 | I17: EA
A18: AppDynamics | B18: ENB-RPD-START PLUS | C18: Rapid Start - SaaS Plus | D18: SaaS | E18: ProServ | F18: 31300 | G18: 0.01 | H18: 30987 | I18: EA
A19: AppDynamics | B19: ENB-SER-EXPSUB-L | C19: Expert as a Service Subscription Large | D19: SaaS | E19: ProServ | F19: 180000 | G19: 0.01 | H19: 178200 | I19: EA
A20: AppDynamics | B20: ENB-SER-EXPSUB-M | C20: Expert as a Service Subscription Medium | D20: SaaS | E20: ProServ | F20: 80000.16 | G20: 0.01 | H20: 79200.1584 | I20: EA
A21: AppDynamics | B21: ENB-SER-EXPSUB-S | C21: Expert as a Service Subscription Small | D21: SaaS | E21: ProServ | F21: 36000 | G21: 0.01 | H21: 35640 | I21: EA
A22: AppDynamics | B22: ENB-SER-EXPSUB-XL | C22: Expert as a Service Subscription X-Large | D22: SaaS | E22: ProServ | F22: 360000 | G22: 0.01 | H22: 356400 | I22: EA
A23: AppDynamics | B23: ENB-SER-EXPSUB-XS | C23: Expert as a Service Subscription X-Small | D23: SaaS | E23: ProServ | F23: 18000 | G23: 0.01 | H23: 17820 | I23: EA
A24: AppDynamics | B24: ENB-TRAINING-CREDIT | C24: Cisco Training Credit | D24: SaaS | E24: ProServ | F24: 100 | G24: 0.01 | H24: 99 | I24: EA
A25: AppDynamics | B25: ENB-UNIV-ALL-ACCESS | C25: Cisco University All Access | D25: SaaS | E25: ProServ | F25: 6000 | G25: 0.01 | H25: 5940 | I25: EA
A26: AppDynamics | B26: ENB-UNIV-ESSENTIALS | C26: Cisco University Essentials | D26: SaaS | E26: ProServ | F26: 1800 | G26: 0.01 | H26: 1782 | I26: EA
A27: AppDynamics | B27: ENT-ANST30-SAAS-NC | C27: AppDynamics - Enterprise - 30 Day Cloud Indexed Storage Add-on - SAAS | D27: SaaS | E27: Application Monitoring | F27: 88 | G27: 0.01 | H27: 87.12 | I27: EA
A28: AppDynamics | B28: ENT-ANST60-SAAS-NC | C28: AppDynamics - Enterprise - 60 Day Cloud Indexed Storage Add-on - SAAS | D28: SaaS | E28: Application Monitoring | F28: 176 | G28: 0.01 | H28: 174.24 | I28: EA
A29: AppDynamics | B29: ENT-ANST90-SAAS-NC | C29: AppDynamics - Enterprise - 90 Day Cloud Indexed Storage Add-on - SAAS | D29: SaaS | E29: Application Monitoring | F29: 264 | G29: 0.01 | H29: 261.36 | I29: EA
A30: AppDynamics | B30: ENT-FLOV-ONPR | C30: AppDynamics Enterprise Edition - Failover - On-Premise | D30: SaaS | E30: Application Monitoring | F30: 0 | G30: 0.01 | H30: 0 | I30: EA
A31: AppDynamics | B31: ENT-ONPR | C31: AppDynamics Enterprise Edition - On-Premise | D31: SaaS | E31: Application Monitoring | F31: 600 | G31: 0.01 | H31: 594 | I31: EA
A32: AppDynamics | B32: ENT-SAAS-NC | C32: AppDynamics Enterprise Edition - SaaS | D32: SaaS | E32: Application Monitoring | F32: 600 | G32: 0.01 | H32: 594 | I32: EA
A33: AppDynamics | B33: EXCS-BIQ30D-SAAS-NC | C33: AppDynamics Extended Cloud Storage for Transaction Analytics - 30 Days 100 GB Daily - SaaS | D33: SaaS | E33: Application Monitoring | F33: 103000 | G33: 0.01 | H33: 101970 | I33: EA
A34: AppDynamics | B34: EXCS-BIQ60D-SAAS-NC | C34: AppDynamics Extended Cloud Storage for Transaction Analytics - 60 Days 100 GB Daily - SaaS | D34: SaaS | E34: Application Monitoring | F34: 175000 | G34: 0.01 | H34: 173250 | I34: EA
A35: AppDynamics | B35: EXCS-BIQ8D-SAAS-NC | C35: AppDynamics Extended Cloud Storage for Transaction Analytics - 8 Days 100 GB Daily - SaaS | D35: SaaS | E35: Application Monitoring | F35: 45000 | G35: 0.01 | H35: 44550 | I35: EA
A36: AppDynamics | B36: EXCS-BIQ90D-SAAS-NC | C36: AppDynamics Extended Cloud Storage for Transaction Analytics - 90 Days 100 GB Daily - SaaS | D36: SaaS | E36: Application Monitoring | F36: 260000 | G36: 0.01 | H36: 257400 | I36: EA
A37: AppDynamics | B37: EXCS-BRUM30D-SAAS-NC | C37: AppDynamics Extended Cloud Storage for Browser Real User Monitoring - 30 Days 100 GB Daily - SaaS | D37: SaaS | E37: Digital Experience Monitoring | F37: 103000 | G37: 0.01 | H37: 101970 | I37: EA
A38: AppDynamics | B38: EXCS-BRUM60D-SAAS-NC | C38: AppDynamics Extended Cloud Storage for Browser Real User Monitoring - 60 Days 100 GB Daily - SaaS | D38: SaaS | E38: Digital Experience Monitoring | F38: 175000 | G38: 0.01 | H38: 173250 | I38: EA
A39: AppDynamics | B39: EXCS-BRUM8D-SAAS-NC | C39: AppDynamics Extended Cloud Storage for Browser Real User Monitoring - 8 Days 100 GB Daily - SaaS | D39: SaaS | E39: Digital Experience Monitoring | F39: 45000 | G39: 0.01 | H39: 44550 | I39: EA
A40: AppDynamics | B40: EXCS-BRUM90D-SAAS-NC | C40: AppDynamics Extended Cloud Storage for Browser Real User Monitoring - 90 Days 100 GB Daily - SaaS | D40: SaaS | E40: Digital Experience Monitoring | F40: 260000 | G40: 0.01 | H40: 257400 | I40: EA
A41: AppDynamics | B41: EXCS-MRUM30D-SAAS-NC | C41: AppDynamics Extended Cloud Storage for Mobile Real User Monitoring - 30 Days 100 GB Daily - SaaS | D41: SaaS | E41: Digital Experience Monitoring | F41: 103000 | G41: 0.01 | H41: 101970 | I41: EA
A42: AppDynamics | B42: EXCS-MRUM60D-SAAS-NC | C42: AppDynamics Extended Cloud Storage for Mobile Real User Monitoring - 60 Days 100 GB Daily - SaaS | D42: SaaS | E42: Digital Experience Monitoring | F42: 175000 | G42: 0.01 | H42: 173250 | I42: EA
A43: AppDynamics | B43: EXCS-MRUM8D-SAAS-NC | C43: AppDynamics Extended Cloud Storage for Mobile Real User Monitoring - 8 Days 100 GB Daily - SaaS | D43: SaaS | E43: Digital Experience Monitoring | F43: 45000 | G43: 0.01 | H43: 44550 | I43: EA
A44: AppDynamics | B44: EXCS-MRUM90D-SAAS-NC | C44: AppDynamics Extended Cloud Storage for Mobile Real User Monitoring - 90 Days 100 GB Daily - SaaS | D44: SaaS | E44: Digital Experience Monitoring | F44: 260000 | G44: 0.01 | H44: 257400 | I44: EA
A45: AppDynamics | B45: HST-DSCS-SAAS | C45: Dedicated Saas Controller | D45: SaaS | E45: Application Monitoring | F45: 3080 | G45: 0.01 | H45: 3049.2 | I45: EA
A46: AppDynamics | B46: HST-SV-SERV-01 | C46: SaaS Hosting Service Charge | D46: SaaS | E46: ProServ | F46: 0 | G46: 0.01 | H46: 0 | I46: EA
A47: AppDynamics | B47: INFRA-FLOV-ONPR | C47: AppDynamics Infrastructure Monitoring Edition - Failover - On-Premise | D47: SaaS | E47: Infrastructure Monitoring | F47: 0 | G47: 0.01 | H47: 0 | I47: EA
A48: AppDynamics | B48: INFRA-ONPR | C48: AppDynamics Infrastructure Monitoring Edition - On-Premise | D48: SaaS | E48: Infrastructure Monitoring | F48: 72 | G48: 0.01 | H48: 71.28 | I48: EA
A49: AppDynamics | B49: INFRA-SAAS-NC | C49: AppDynamics Infrastructure Monitoring Edition - SaaS | D49: SaaS | E49: Infrastructure Monitoring | F49: 72 | G49: 0.01 | H49: 71.28 | I49: EA
A50: AppDynamics | B50: MAN-ANST30-SAAS-NC | C50: AppDynamics Prod - Mobile Analytics - 30 Day Cloud Indexed Storage Add-on - SaaS | D50: SaaS | E50: Digital Experience Monitoring | F50: 220 | G50: 0.01 | H50: 217.8 | I50: EA
A51: AppDynamics | B51: MAN-ANST60-SAAS-NC | C51: AppDynamics Prod - Mobile Analytics - 60 Day Cloud Indexed Storage Add-on - SaaS | D51: SaaS | E51: Digital Experience Monitoring | F51: 440 | G51: 0.01 | H51: 435.6 | I51: EA
A52: AppDynamics | B52: MAN-ANST90-SAAS-NC | C52: AppDynamics Prod - Mobile Analytics - 90 Day Cloud Indexed Storage Add-on - SaaS | D52: SaaS | E52: Digital Experience Monitoring | F52: 660 | G52: 0.01 | H52: 653.4 | I52: EA
A53: AppDynamics | B53: PEAK-BRUM-GOV-SAAS-NC | C53: AppDynamics Peak Edition ? Browser RUM ? Gov ? SaaS | D53: SaaS | E53: Digital Experience Monitoring | F53: 8040 | G53: 0.01 | H53: 7959.6 | I53: EA
A54: AppDynamics | B54: PEAK-MRUM-GOV-SAAS-NC | C54: AppDynamics Peak Edition ? Mobile RUM ? Gov ? SaaS | D54: SaaS | E54: Digital Experience Monitoring | F54: 8040 | G54: 0.01 | H54: 7959.6 | I54: EA
A55: AppDynamics | B55: PK-APM-FLOV-ONPR | C55: AppDynamics Peak Edition - APM Any Language - Failover - On-Premise | D55: SaaS | E55: Application Monitoring | F55: 0 | G55: 0.01 | H55: 0 | I55: EA
A56: AppDynamics | B56: PK-APM-GOV-SAAS-NC | C56: AppDynamics Peak Edition - APM Any Language - Gov - SaaS | D56: SaaS | E56: Application Monitoring | F56: 8040 | G56: 0.01 | H56: 7959.6 | I56: EA
A57: AppDynamics | B57: PK-APM-ONPR | C57: AppDynamics Peak Edition - APM Any Language - On-Premise | D57: SaaS | E57: Application Monitoring | F57: 6700 | G57: 0.01 | H57: 6633 | I57: EA
A58: AppDynamics | B58: PK-APM-SAAS-NC | C58: AppDynamics Peak Edition - APM Any Language - SaaS | D58: SaaS | E58: Application Monitoring | F58: 6700 | G58: 0.01 | H58: 6633 | I58: EA
A59: AppDynamics | B59: PK-BRUM-FLOV-ONPR | C59: AppDynamics RUM Peak Edition - Browser RUM - Failover - On-Premise | D59: SaaS | E59: Digital Experience Monitoring | F59: 0 | G59: 0.01 | H59: 0 | I59: EA
A60: AppDynamics | B60: PK-BRUM-ONPR | C60: AppDynamics RUM Peak Edition - Browser RUM - On-Premise | D60: SaaS | E60: Digital Experience Monitoring | F60: 6700 | G60: 0.01 | H60: 6633 | I60: EA
A61: AppDynamics | B61: PK-BRUM-SAAS-NC | C61: AppDynamics RUM Peak Edition - Browser RUM - SaaS | D61: SaaS | E61: Digital Experience Monitoring | F61: 6700 | G61: 0.01 | H61: 6633 | I61: EA
A62: AppDynamics | B62: PK-IOT-IBL-SAAS-NC | C62: AppDynamics Peak Edition - IoT (Connected Devices) - IBL - SaaS | D62: SaaS | E62: Digital Experience Monitoring | F62: 2400 | G62: 0.01 | H62: 2376 | I62: EA
A63: AppDynamics | B63: PK-IOT-SAAS-NC | C63: AppDynamics Peak Edition - IoT (Connected Devices) - SaaS | D63: SaaS | E63: Digital Experience Monitoring | F63: 6700 | G63: 0.01 | H63: 6633 | I63: EA
A64: AppDynamics | B64: PK-MCR-APM-FLOV-ONPR | C64: AppDynamics Peak Edition - APM Any Language Microservices (5-pack) - Failover On-Premise | D64: SaaS | E64: Application Monitoring | F64: 0 | G64: 0.01 | H64: 0 | I64: EA
A65: AppDynamics | B65: PK-MCR-APM-ONPR | C65: AppDynamics Peak Edition - APM Any Language Microservices (5-pack) - On-Premise | D65: SaaS | E65: Application Monitoring | F65: 6700 | G65: 0.01 | H65: 6633 | I65: EA
A66: AppDynamics | B66: PK-MCR-APM-SAAS-NC | C66: AppDynamics Peak Edition - APM Any Language Microservices (5-pack) - SaaS | D66: SaaS | E66: Application Monitoring | F66: 6700 | G66: 0.01 | H66: 6633 | I66: EA
A67: AppDynamics | B67: PK-MRUM-FLOV-ONPR | C67: AppDynamics RUM Peak Edition - Mobile RUM - Failover - On-Premise | D67: SaaS | E67: Digital Experience Monitoring | F67: 0 | G67: 0.01 | H67: 0 | I67: EA
A68: AppDynamics | B68: PK-MRUM-ONPR | C68: AppDynamics RUM Peak Edition - Mobile RUM - On-Premise | D68: SaaS | E68: Digital Experience Monitoring | F68: 6700 | G68: 0.01 | H68: 6633 | I68: EA
A69: AppDynamics | B69: PK-MRUM-SAAS-NC | C69: AppDynamics RUM Peak Edition - Mobile RUM - SaaS | D69: SaaS | E69: Digital Experience Monitoring | F69: 6700 | G69: 0.01 | H69: 6633 | I69: EA
A70: AppDynamics | B70: PK-RUM-FLOV-ONPR | C70: AppDynamics Peak Edition - Real User Monitoring - Failover - On-Premise | D70: SaaS | E70: Digital Experience Monitoring | F70: 0 | G70: 0.01 | H70: 0 | I70: EA
A71: AppDynamics | B71: PK-RUM-IBL-FLOV-ONPR | C71: AppDynamics Peak Edition - Real User Monitoring - IBL - Failover - On-Premise | D71: SaaS | E71: Digital Experience Monitoring | F71: 0 | G71: 0.01 | H71: 0 | I71: EA
A72: AppDynamics | B72: PK-RUM-IBL-ONPR | C72: AppDynamics Peak Edition - Real User Monitoring - IBL - On-Premise | D72: SaaS | E72: Digital Experience Monitoring | F72: 2400 | G72: 0.01 | H72: 2376 | I72: EA
A73: AppDynamics | B73: PK-RUM-IBL-SAAS-NC | C73: AppDynamics Peak Edition - Real User Monitoring - IBL - SaaS | D73: SaaS | E73: Digital Experience Monitoring | F73: 2400 | G73: 0.01 | H73: 2376 | I73: EA
A74: AppDynamics | B74: PK-RUM-ONPR | C74: AppDynamics Peak Edition - Real User Monitoring - On-Premise | D74: SaaS | E74: Digital Experience Monitoring | F74: 6700 | G74: 0.01 | H74: 6633 | I74: EA
A75: AppDynamics | B75: PK-RUM-SAAS-NC | C75: AppDynamics Peak Edition - Real User Monitoring - SaaS | D75: SaaS | E75: Digital Experience Monitoring | F75: 6700 | G75: 0.01 | H75: 6633 | I75: EA
A76: AppDynamics | B76: PK-SAP-ABAP-DATAVARD-INSIGHTS-FLOV-ONPR | C76: AppDynamics Peak Edition - AppDynamics for SAP - ABAP Agent - Failover - On-Premise | D76: SaaS | E76: SAP Monitoring | F76: 0 | G76: 0.01 | H76: 0 | I76: EA
A77: AppDynamics | B77: PK-SAP-ABAP-DATAVARD-INSIGHTS-ONPR | C77: AppDynamics Peak Edition - AppDynamics for SAP - ABAP Agent - SNP CrystalBridge Monitoring - On-Premise | D77: SaaS | E77: SAP Monitoring | F77: 15840 | G77: 0.01 | H77: 15681.6 | I77: EA
A78: AppDynamics | B78: PK-SAP-ABAP-DATAVARD-INSIGHTS-SaaS-NC | C78: AppDynamics Peak Edition - AppDynamics for SAP - ABAP Agent - SNP CrystalBridge Monitoring - SaaS | D78: SaaS | E78: SAP Monitoring | F78: 15840 | G78: 0.01 | H78: 15681.6 | I78: EA
A79: AppDynamics | B79: PKTD-BRUM-FLOV-ONPR | C79: AppDynamics RUM Peak (Test & Dev) Edition - Browser RUM - Failover - On-Premise | D79: SaaS | E79: Digital Experience Monitoring | F79: 0 | G79: 0.01 | H79: 0 | I79: EA
A80: AppDynamics | B80: PKTD-BRUM-ONPR | C80: AppDynamics RUM Peak (Test & Dev) Edition - Browser RUM - On-Premise | D80: SaaS | E80: Digital Experience Monitoring | F80: 3350 | G80: 0.01 | H80: 3316.5 | I80: EA
A81: AppDynamics | B81: PKTD-BRUM-SAAS-NC | C81: AppDynamics RUM Peak (Test & Dev) Edition - Browser RUM - SaaS | D81: SaaS | E81: Digital Experience Monitoring | F81: 3350 | G81: 0.01 | H81: 3316.5 | I81: EA
A82: AppDynamics | B82: PKTD-IOT-IBL-SAAS-NC | C82: AppDynamics Peak (Test & Dev Edition) - IoT (Connected Devices) - IBL - SaaS | D82: SaaS | E82: Digital Experience Monitoring | F82: 1200 | G82: 0.01 | H82: 1188 | I82: EA
A83: AppDynamics | B83: PKTD-IOT-SAAS-NC | C83: AppDynamics Peak (Test & Dev Edition) - IoT (Connected Devices) - SaaS | D83: SaaS | E83: Digital Experience Monitoring | F83: 3350 | G83: 0.01 | H83: 3316.5 | I83: EA
A84: AppDynamics | B84: PKTD-MCR-APM-FLOV-ONPR | C84: AppDynamics Peak (Test & Dev) Edition - APM Any Language Microservices (5-pack) - Failover On-Premise | D84: SaaS | E84: Application Monitoring | F84: 0 | G84: 0.01 | H84: 0 | I84: EA
A85: AppDynamics | B85: PKTD-MCR-APM-ONPR | C85: AppDynamics Peak (Test & Dev) Edition - APM Any Language Microservices (5-pack) - On-Premise | D85: SaaS | E85: Application Monitoring | F85: 3350 | G85: 0.01 | H85: 3316.5 | I85: EA
A86: AppDynamics | B86: PKTD-MCR-APM-SAAS-NC | C86: AppDynamics Peak (Test & Dev) Edition - APM Any Language Microservices (5-pack) - SaaS | D86: SaaS | E86: Application Monitoring | F86: 3350 | G86: 0.01 | H86: 3316.5 | I86: EA
A87: AppDynamics | B87: PKTD-MRUM-FLOV-ONPR | C87: AppDynamics RUM Peak (Test & Dev) Edition - Mobile RUM - Failover - On-Premise | D87: SaaS | E87: Digital Experience Monitoring | F87: 0 | G87: 0.01 | H87: 0 | I87: EA
A88: AppDynamics | B88: PKTD-MRUM-ONPR | C88: AppDynamics RUM Peak (Test & Dev) Edition - Mobile RUM - On-Premise | D88: SaaS | E88: Digital Experience Monitoring | F88: 3350 | G88: 0.01 | H88: 3316.5 | I88: EA
A89: AppDynamics | B89: PKTD-MRUM-SAAS-NC | C89: AppDynamics RUM Peak (Test & Dev) Edition - Mobile RUM - SaaS | D89: SaaS | E89: Digital Experience Monitoring | F89: 3350 | G89: 0.01 | H89: 3316.5 | I89: EA
A90: AppDynamics | B90: PKTD-RUM-FLOV-ONPR | C90: AppDynamics Peak (Test & Dev) Edition - Real User Monitoring - Failover - On-Premise | D90: SaaS | E90: Digital Experience Monitoring | F90: 0 | G90: 0.01 | H90: 0 | I90: EA
A91: AppDynamics | B91: PKTD-RUM-IBL-FLOV-ONPR | C91: AppDynamics Peak (Test & Dev) Edition - Real User Monitoring - IBL - Failover - On-Premise | D91: SaaS | E91: Digital Experience Monitoring | F91: 0 | G91: 0.01 | H91: 0 | I91: EA
A92: AppDynamics | B92: PKTD-RUM-IBL-ONPR | C92: AppDynamics Peak (Test & Dev) Edition - Real User Monitoring - IBL - On-Premise | D92: SaaS | E92: Digital Experience Monitoring | F92: 1200 | G92: 0.01 | H92: 1188 | I92: EA
A93: AppDynamics | B93: PKTD-RUM-IBL-SAAS-NC | C93: AppDynamics Peak (Test & Dev) Edition - Real User Monitoring - IBL - SaaS | D93: SaaS | E93: Digital Experience Monitoring | F93: 1200 | G93: 0.01 | H93: 1188 | I93: EA
A94: AppDynamics | B94: PKTD-RUM-ONPR | C94: AppDynamics Peak (Test & Dev) Edition - Real User Monitoring - On-Premise | D94: SaaS | E94: Digital Experience Monitoring | F94: 3350 | G94: 0.01 | H94: 3316.5 | I94: EA
A95: AppDynamics | B95: PKTD-RUM-SAAS-NC | C95: AppDynamics Peak (Test & Dev) Edition - Real User Monitoring - SaaS | D95: SaaS | E95: Digital Experience Monitoring | F95: 3350 | G95: 0.01 | H95: 3316.5 | I95: EA
A96: AppDynamics | B96: PREM-FLOV-ONPR | C96: AppDynamics Premium Edition - Failover - On-Premise | D96: SaaS | E96: Application Monitoring | F96: 0 | G96: 0.01 | H96: 0 | I96: EA
A97: AppDynamics | B97: PREM-ONPR | C97: AppDynamics Premium Edition - On-Premise | D97: SaaS | E97: Application Monitoring | F97: 396 | G97: 0.01 | H97: 392.04 | I97: EA
A98: AppDynamics | B98: PREM-SAAS-NC | C98: AppDynamics Premium Edition - SaaS | D98: SaaS | E98: Application Monitoring | F98: 396 | G98: 0.01 | H98: 392.04 | I98: EA
A99: AppDynamics | B99: PRO-ANST30-SAAS-NC | C99: AppDynamics Prod/Test&Dev - Transaction Analytics - 30 Day Cloud Indexed Storage Add-on - SaaS | D99: SaaS | E99: Application Monitoring | F99: 220 | G99: 0.01 | H99: 217.8 | I99: EA
A100: AppDynamics | B100: PRO-ANST60-SAAS-NC | C100: AppDynamics Prod/Test&Dev - Transaction Analytics - 60 Day Cloud Indexed Storage Add-on - SaaS | D100: SaaS | E100: Application Monitoring | F100: 440 | G100: 0.01 | H100: 435.6 | I100: EA
A101: AppDynamics | B101: PRO-ANST90-SAAS-NC | C101: AppDynamics Prod/Test&Dev - Transaction Analytics - 90 Day Cloud Indexed Storage Add-on - SaaS | D101: SaaS | E101: Application Monitoring | F101: 660 | G101: 0.01 | H101: 653.4 | I101: EA
A102: AppDynamics | B102: PRO-APM-FLOV-ONPR | C102: AppDynamics Pro Edition - APM Any Language - Failover - On-Premise | D102: SaaS | E102: Application Monitoring | F102: 0 | G102: 0.01 | H102: 0 | I102: EA
A103: AppDynamics | B103: PRO-APM-GOV-SAAS-NC | C103: AppDynamics Pro Edition - APM Any Language - Gov - SaaS | D103: SaaS | E103: Application Monitoring | F103: 4760 | G103: 0.01 | H103: 4712.4 | I103: EA
A104: AppDynamics | B104: PRO-APM-ONPR | C104: AppDynamics Pro Edition - APM Any Language - On-Premise | D104: SaaS | E104: Application Monitoring | F104: 3960 | G104: 0.01 | H104: 3920.4 | I104: EA
A105: AppDynamics | B105: PRO-APM-SAAS-NC | C105: AppDynamics Pro Edition - APM Any Language - SaaS | D105: SaaS | E105: Application Monitoring | F105: 3960 | G105: 0.01 | H105: 3920.4 | I105: EA
A106: AppDynamics | B106: PRO-BRUM-FLOV-ONPR | C106: AppDynamics Pro Edition - Browser Real User Monitoring - Failover - On-Premise | D106: SaaS | E106: Digital Experience Monitoring | F106: 0 | G106: 0.01 | H106: 0 | I106: EA
A107: AppDynamics | B107: PRO-BRUM-GOV-SAAS-NC | C107: AppDynamics Pro Edition - Browser Real User Monitoring - Gov - SaaS | D107: SaaS | E107: Digital Experience Monitoring | F107: 4760 | G107: 0.01 | H107: 4712.4 | I107: EA
A108: AppDynamics | B108: PRO-BRUM-ONPR | C108: AppDynamics Pro Edition - Browser Real User Monitoring - On-Premise | D108: SaaS | E108: Digital Experience Monitoring | F108: 3960 | G108: 0.01 | H108: 3920.4 | I108: EA
A109: AppDynamics | B109: PRO-BRUM-SAAS-NC | C109: AppDynamics Pro Edition - Browser Real User Monitoring - SaaS | D109: SaaS | E109: Digital Experience Monitoring | F109: 3960 | G109: 0.01 | H109: 3920.4 | I109: EA
A110: AppDynamics | B110: PRO-BSUM-FLOV-ONPR | C110: AppDynamics Pro Edition - Browser Synthetic User Monitoring - Hosted Agent - Failover - On-Premise | D110: SaaS | E110: Browser Synthetics | F110: 0 | G110: 0.01 | H110: 0 | I110: EA
A111: AppDynamics | B111: PRO-BSUM-IBL-FLOV-ONPR | C111: AppDynamics Pro Edition - Browser Synthetic User Monitoring - Hosted Agent - IBL - Failover - On-Premise | D111: SaaS | E111: Browser Synthetics | F111: 0 | G111: 0.01 | H111: 0 | I111: EA
A112: AppDynamics | B112: PRO-BSUM-IBL-ONPR | C112: AppDynamics Pro Edition - Browser Synthetic User Monitoring - Hosted Agent - IBL - On-Premise | D112: SaaS | E112: Browser Synthetics | F112: 1200 | G112: 0.01 | H112: 1188 | I112: EA
A113: AppDynamics | B113: PRO-BSUM-IBL-SAAS-NC | C113: AppDynamics Pro Edition - Browser Synthetic and Synthetic API Monitoring - Hosted Agent - IBL - SaaS | D113: SaaS | E113: Browser Synthetics | F113: 1200 | G113: 0.01 | H113: 1188 | I113: EA
A114: AppDynamics | B114: PRO-BSUM-ONPR | C114: AppDynamics Pro Edition - Browser Synthetic User Monitoring - Hosted Agent - On-Premise | D114: SaaS | E114: Browser Synthetics | F114: 3960 | G114: 0.01 | H114: 3920.4 | I114: EA
A115: AppDynamics | B115: PRO-BSUM-SAAS-NC | C115: AppDynamics Pro Edition - Browser Synthetic and Synthetic API Monitoring - Hosted Agent - SaaS | D115: SaaS | E115: Browser Synthetics | F115: 3960 | G115: 0.01 | H115: 3920.4 | I115: EA
A116: AppDynamics | B116: PRO-CPP-FLOV-ONPR | C116: AppDynamics Pro Edition - C++ - Failover - On-Premise | D116: SaaS | E116: Application Monitoring | F116: 0 | G116: 0.01 | H116: 0 | I116: EA
A117: AppDynamics | B117: PRO-CPP-ONPR | C117: AppDynamics Pro Edition - C++ - On-Premise | D117: SaaS | E117: Application Monitoring | F117: 3960 | G117: 0.01 | H117: 3920.4 | I117: EA
A118: AppDynamics | B118: PRO-CPP-SAAS-NC | C118: AppDynamics Pro Edition - C++ - SaaS | D118: SaaS | E118: Application Monitoring | F118: 3960 | G118: 0.01 | H118: 3920.4 | I118: EA
A119: AppDynamics | B119: PRO-DB-FLOV-ONPR | C119: AppDynamics Pro Edition - Database Visibility - Failover - On-Premise | D119: SaaS | E119: Application Monitoring | F119: 0 | G119: 0.01 | H119: 0 | I119: EA
A120: AppDynamics | B120: PRO-DB-GOV-SAAS-NC | C120: AppDynamics Pro Edition - Database Visibility - Gov - SaaS | D120: SaaS | E120: Application Monitoring | F120: 4760 | G120: 0.01 | H120: 4712.4 | I120: EA
A121: AppDynamics | B121: PRO-DB-ONPR | C121: AppDynamics Pro Edition - Database Visibility - On-Premise | D121: SaaS | E121: Application Monitoring | F121: 3960 | G121: 0.01 | H121: 3920.4 | I121: EA
A122: AppDynamics | B122: PRO-DB-SAAS-NC | C122: AppDynamics Pro Edition - Database Visibility - SaaS | D122: SaaS | E122: Application Monitoring | F122: 3960 | G122: 0.01 | H122: 3920.4 | I122: EA
A123: AppDynamics | B123: PRO-LA-FLOV-ONPR | C123: AppDynamics Pro Edition - Log Analytics - Failover - On-Premise | D123: SaaS | E123: Log Analytics | F123: 0 | G123: 0.01 | H123: 0 | I123: EA
A124: AppDynamics | B124: PRO-LA-IBL-ONPR | C124: AppDynamics Pro Edition - Log Analytics - IBL - On-Premise | D124: SaaS | E124: Log Analytics | F124: 1350 | G124: 0.01 | H124: 1336.5 | I124: EA
A125: AppDynamics | B125: PRO-LA-IBL-SAAS-NC | C125: AppDynamics Pro Edition - Log Analytics - IBL - SaaS | D125: SaaS | E125: Log Analytics | F125: 1350 | G125: 0.01 | H125: 1336.5 | I125: EA
A126: AppDynamics | B126: PRO-LA-ONPR | C126: AppDynamics Pro Edition - Log Analytics - On-Premise | D126: SaaS | E126: Log Analytics | F126: 3960 | G126: 0.01 | H126: 3920.4 | I126: EA
A127: AppDynamics | B127: PRO-LA-SAAS-NC | C127: AppDynamics Pro Edition - Log Analytics - SaaS | D127: SaaS | E127: Log Analytics | F127: 3960 | G127: 0.01 | H127: 3920.4 | I127: EA
A128: AppDynamics | B128: PRO-LAST30-SAAS-NC | C128: AppDynamics Pro/Test & Dev - Log Analytics - 30 Day Cloud Indexed Storage Add-on - SaaS | D128: SaaS | E128: Log Analytics | F128: 1760.04 | G128: 0.01 | H128: 1742.4396 | I128: EA
A129: AppDynamics | B129: PRO-MACH-ONPR | C129: AppDynamics Pro Edition - Machine - On-Premise | D129: SaaS | E129: Infrastructure Monitoring | F129: 440 | G129: 0.01 | H129: 435.6 | I129: EA
A130: AppDynamics | B130: PRO-MCR-APM-FLOV-ONPR | C130: AppDynamics Pro Edition - APM Any Language Microservices (5-pack) - Failover On-Premise | D130: SaaS | E130: Application Monitoring | F130: 0 | G130: 0.01 | H130: 0 | I130: EA
A131: AppDynamics | B131: PRO-MCR-APM-ONPR | C131: AppDynamics Pro Edition - APM Any Language Microservices (5-pack) - On-Premise | D131: SaaS | E131: Application Monitoring | F131: 3960 | G131: 0.01 | H131: 3920.4 | I131: EA
A132: AppDynamics | B132: PRO-MCR-APM-SAAS-NC | C132: AppDynamics Pro Edition - APM Any Language Microservices (5-pack) - SaaS | D132: SaaS | E132: Application Monitoring | F132: 3960 | G132: 0.01 | H132: 3920.4 | I132: EA
A133: AppDynamics | B133: PRO-MRUM-FLOV-ONPR | C133: AppDynamics Pro Edition - Mobile Real User Monitoring - Failover - On-Premise | D133: SaaS | E133: Digital Experience Monitoring | F133: 0 | G133: 0.01 | H133: 0 | I133: EA
A134: AppDynamics | B134: PRO-MRUM-GOV-SAAS | C134: AppDynamics Pro Edition - Mobile Real User Monitoring - Gov - SaaS | D134: SaaS | E134: Digital Experience Monitoring | F134: 4760 | G134: 0.01 | H134: 4712.4 | I134: EA
A135: AppDynamics | B135: PRO-MRUM-ONPR | C135: AppDynamics Pro Edition - Mobile Real User Monitoring - On-Premise | D135: SaaS | E135: Digital Experience Monitoring | F135: 3960 | G135: 0.01 | H135: 3920.4 | I135: EA
A136: AppDynamics | B136: PRO-MRUM-SAAS-NC | C136: AppDynamics Pro Edition - Mobile Real User Monitoring - SaaS | D136: SaaS | E136: Digital Experience Monitoring | F136: 3960 | G136: 0.01 | H136: 3920.4 | I136: EA
A137: AppDynamics | B137: PRO-NETVISFLOV-ONPR | C137: AppDynamics Pro Edition - Network Visibility - Failover - On-Premise | D137: SaaS | E137: Infrastructure Monitoring | F137: 0 | G137: 0.01 | H137: 0 | I137: EA
A138: AppDynamics | B138: PRO-NETVIS-GOV-SAAS-NC | C138: AppDynamics Pro Edition - Network Visibility - Gov - SaaS | D138: SaaS | E138: Infrastructure Monitoring | F138: 1584 | G138: 0.01 | H138: 1568.16 | I138: EA
A139: AppDynamics | B139: PRO-NETVIS-ONPR | C139: AppDynamics Pro Edition - Network Visibility- On-Premise | D139: SaaS | E139: Infrastructure Monitoring | F139: 1320 | G139: 0.01 | H139: 1306.8 | I139: EA
A140: AppDynamics | B140: PRO-NETVIS-SAAS-NC | C140: AppDynamics Pro Edition - Network Visibility - SaaS | D140: SaaS | E140: Infrastructure Monitoring | F140: 1320 | G140: 0.01 | H140: 1306.8 | I140: EA
A141: AppDynamics | B141: PRO-RUM-FLOV-ONPR | C141: AppDynamics Pro Edition - Real User Monitoring - Failover - On-Premise | D141: SaaS | E141: Digital Experience Monitoring | F141: 0 | G141: 0.01 | H141: 0 | I141: EA
A142: AppDynamics | B142: PRO-RUM-IBL-FLOV-ONPR | C142: AppDynamics Pro Edition - Real User Monitoring - IBL - Failover - On-Premise | D142: SaaS | E142: Digital Experience Monitoring | F142: 0 | G142: 0.01 | H142: 0 | I142: EA
A143: AppDynamics | B143: PRO-RUM-IBL-ONPR | C143: AppDynamics Pro Edition - Real User Monitoring - IBL - On-Premise | D143: SaaS | E143: Digital Experience Monitoring | F143: 1440 | G143: 0.01 | H143: 1425.6 | I143: EA
A144: AppDynamics | B144: PRO-RUM-IBL-SAAS-NC | C144: AppDynamics Pro Edition - Real User Monitoring - IBL - SaaS | D144: SaaS | E144: Digital Experience Monitoring | F144: 1440 | G144: 0.01 | H144: 1425.6 | I144: EA
A145: AppDynamics | B145: PRO-RUM-ONPR | C145: AppDynamics Pro Edition - Real User Monitoring - On-Premise | D145: SaaS | E145: Digital Experience Monitoring | F145: 3960 | G145: 0.01 | H145: 3920.4 | I145: EA
A146: AppDynamics | B146: PRO-RUM-SAAS-NC | C146: AppDynamics Pro Edition - Real User Monitoring - SaaS | D146: SaaS | E146: Digital Experience Monitoring | F146: 3960 | G146: 0.01 | H146: 3920.4 | I146: EA
A147: AppDynamics | B147: PRO-SAM-FLOV-ONPR | C147: AppDynamics Pro Edition - Service Availability Monitoring - Failover - On-Premise | D147: SaaS | E147: Infrastructure Monitoring | F147: 0 | G147: 0.01 | H147: 0 | I147: EA
A148: AppDynamics | B148: PRO-SAM-ONPR | C148: AppDynamics Pro Edition - Service Availability Monitoring - On-Premise | D148: SaaS | E148: Infrastructure Monitoring | F148: 3960 | G148: 0.01 | H148: 3920.4 | I148: EA
A149: AppDynamics | B149: PRO-SAM-SAAS-NC | C149: AppDynamics Pro Edition - Service Availability Monitoring - SaaS | D149: SaaS | E149: Infrastructure Monitoring | F149: 3960 | G149: 0.01 | H149: 3920.4 | I149: EA
A150: AppDynamics | B150: PRO-SAP-SAAS-NC | C150: AppDynamics Pro Edition - AppDynamics for SAP - ABAP Agent - SaaS | D150: SaaS | E150: SAP Monitoring | F150: 7920 | G150: 0.01 | H150: 7840.8 | I150: EA
A151: AppDynamics | B151: PRO-SIM1PFLOV-ONPR | C151: AppDynamics Pro Edition - Server Visibility (1-Pack) - Failover - On-Premise | D151: SaaS | E151: Infrastructure Monitoring | F151: 0 | G151: 0.01 | H151: 0 | I151: EA
A152: AppDynamics | B152: PRO-SIM1P-GOV-SAAS-NC | C152: AppDynamics Pro Edition - Server Visibility ( 1-Pack) - Gov - SaaS | D152: SaaS | E152: Infrastructure Monitoring | F152: 1584 | G152: 0.01 | H152: 1568.16 | I152: EA
A153: AppDynamics | B153: PRO-SIM1P-ONPR | C153: AppDynamics Pro Edition - Server Visibility (1-Pack)- On-Premise | D153: SaaS | E153: Infrastructure Monitoring | F153: 1320 | G153: 0.01 | H153: 1306.8 | I153: EA
A154: AppDynamics | B154: PRO-SIM1P-SAAS-NC | C154: AppDynamics Pro Edition - Server Visibility (1-Pack) - SaaS | D154: SaaS | E154: Infrastructure Monitoring | F154: 1320 | G154: 0.01 | H154: 1306.8 | I154: EA
A155: AppDynamics | B155: PRO-SIM-FLOV-ONPR | C155: AppDynamics Pro Edition - Server Visibility (3-Pack) - Failover - On-Premise | D155: SaaS | E155: Infrastructure Monitoring | F155: 0 | G155: 0.01 | H155: 0 | I155: EA
A156: AppDynamics | B156: PRO-SIM-GOV-SAAS-NC | C156: AppDynamics Pro Edition - Server Visibility (3-Pack) - Gov - SaaS | D156: SaaS | E156: Infrastructure Monitoring | F156: 4760 | G156: 0.01 | H156: 4712.4 | I156: EA
A157: AppDynamics | B157: PRO-SIM-ONPR | C157: AppDynamics Pro Edition - Server Visibility (3-Pack) - On-Premise | D157: SaaS | E157: Infrastructure Monitoring | F157: 3960 | G157: 0.01 | H157: 3920.4 | I157: EA
A158: AppDynamics | B158: PRO-SIM-SAAS-NC | C158: AppDynamics Pro Edition - Server Visibility (3-Pack) - SaaS | D158: SaaS | E158: Infrastructure Monitoring | F158: 3960 | G158: 0.01 | H158: 3920.4 | I158: EA
A159: AppDynamics | B159: PRO-SYNPA-PL-FLOV-ONPR | C159: AppDynamics Pro Edition - Browser Synthetic Monitoring Private Agent - Per Location - Failover - On Premise | D159: SaaS | E159: Browser Synthetics | F159: 0 | G159: 0.01 | H159: 0 | I159: EA
A160: AppDynamics | B160: PRO-SYNPA-PL-IBL-FLOV-ONPR | C160: AppDynamics Pro Edition - Browser Synthetic Monitoring Private Agent - Per Location - IBL - Failover - On Premise | D160: SaaS | E160: Browser Synthetics | F160: 0 | G160: 0.01 | H160: 0 | I160: EA
A161: AppDynamics | B161: PRO-SYNPA-PL-IBL-ONPR | C161: AppDynamics Pro Edition - Browser Synthetic Monitoring Private Agent - Per Location - IBL - On Premise | D161: SaaS | E161: Browser Synthetics | F161: 144 | G161: 0.01 | H161: 142.56 | I161: EA
A162: AppDynamics | B162: PRO-SYNPA-PL-IBL-SAAS-NC | C162: AppDynamics Pro Edition - Browser Synthetic or Synthetic API Monitoring Private Agent - Per Location - IBL - SaaS | D162: SaaS | E162: Browser Synthetics | F162: 144 | G162: 0.01 | H162: 142.56 | I162: EA
A163: AppDynamics | B163: PRO-SYNPA-PL-ONPR | C163: AppDynamics Pro Edition - Browser Synthetic Monitoring Private Agent - Per Location - On Premise | D163: SaaS | E163: Browser Synthetics | F163: 500 | G163: 0.01 | H163: 495 | I163: EA
A164: AppDynamics | B164: PRO-SYNPA-PL-SAAS-NC | C164: AppDynamics Pro Edition - Browser Synthetic or Synthetic API Monitoring Private Agent - Per Location - SaaS | D164: SaaS | E164: Browser Synthetics | F164: 500 | G164: 0.01 | H164: 495 | I164: EA
A165: AppDynamics | B165: PRO-SYNPA-UL-FLOV-ONPR | C165: AppDynamics Pro Edition - Browser Synthetic Monitoring Private Agent - Unlimited Locations - Failover - On Premise | D165: SaaS | E165: Browser Synthetics | F165: 0 | G165: 0.01 | H165: 0 | I165: EA
A166: AppDynamics | B166: PRO-SYNPA-UL-IBL-FLOV-ONPR | C166: AppDynamics Pro Edition - Browser Synthetic Monitoring Private Agent - Unlimited Locations - IBL - Failover - On Premise | D166: SaaS | E166: Browser Synthetics | F166: 0 | G166: 0.01 | H166: 0 | I166: EA
A167: AppDynamics | B167: PRO-SYNPA-UL-IBL-ONPR | C167: AppDynamics Pro Edition - Browser Synthetic Monitoring Private Agent - Unlimited Locations - IBL - On Premise | D167: SaaS | E167: Browser Synthetics | F167: 510 | G167: 0.01 | H167: 504.9 | I167: EA
A168: AppDynamics | B168: PRO-SYNPA-UL-IBL-SAAS-NC | C168: AppDynamics Pro Edition - Browser Synthetic or Synthetic API Monitoring Private Agent - Unlimited Locations - IBL - SaaS | D168: SaaS | E168: Browser Synthetics | F168: 510 | G168: 0.01 | H168: 504.9 | I168: EA
A169: AppDynamics | B169: PRO-SYNPA-UL-ONPR | C169: AppDynamics Pro Edition - Browser Synthetic Monitoring Private Agent - Unlimited Locations - On Premise | D169: SaaS | E169: Browser Synthetics | F169: 1675 | G169: 0.01 | H169: 1658.25 | I169: EA
A170: AppDynamics | B170: PRO-SYNPA-UL-SAAS-NC | C170: AppDynamics Pro Edition - Browser Synthetic or Synthetic API Monitoring Private Agent - Unlimited Locations - SaaS | D170: SaaS | E170: Browser Synthetics | F170: 1675 | G170: 0.01 | H170: 1658.25 | I170: EA
A171: AppDynamics | B171: PRO-WBSV-FLOV-ONPR | C171: AppDynamics Pro Edition - Web Server - Failover - On-Premise | D171: SaaS | E171: Infrastructure Monitoring | F171: 0 | G171: 0.01 | H171: 0 | I171: EA
A172: AppDynamics | B172: PRO-WBSV-ONPR | C172: AppDynamics Pro Edition - Web Server - On-Premise | D172: SaaS | E172: Infrastructure Monitoring | F172: 3960 | G172: 0.01 | H172: 3920.4 | I172: EA
A173: AppDynamics | B173: PRO-WBSV-SAAS-NC | C173: AppDynamics Pro Edition - Web Server - SaaS | D173: SaaS | E173: Infrastructure Monitoring | F173: 3960 | G173: 0.01 | H173: 3920.4 | I173: EA
A174: AppDynamics | B174: RAN-ANST30-SAAS-NC | C174: AppDynamics Prod - RUM Analytics - 30 Day Cloud Indexed Storage Add-on - SaaS | D174: SaaS | E174: Digital Experience Monitoring | F174: 220 | G174: 0.01 | H174: 217.8 | I174: EA
A175: AppDynamics | B175: RAN-ANST60-SAAS-NC | C175: AppDynamics Prod - RUM Analytics - 60 Day Cloud Indexed Storage Add-on - SaaS | D175: SaaS | E175: Digital Experience Monitoring | F175: 440 | G175: 0.01 | H175: 435.6 | I175: EA
A176: AppDynamics | B176: RAN-ANST90-SAAS-NC | C176: AppDynamics Prod - RUM Analytics - 90 Day Cloud Indexed Storage Add-on - SaaS | D176: SaaS | E176: Digital Experience Monitoring | F176: 660 | G176: 0.01 | H176: 653.4 | I176: EA
A177: AppDynamics | B177: RUM-ANST30-SAAS-NC | C177: AppDynamics Prod - Browser/Mobile/RUM Analytics - 30 Day Cloud Indexed Storage Add-on - SaaS | D177: SaaS | E177: Digital Experience Monitoring | F177: 220 | G177: 0.01 | H177: 217.8 | I177: EA
A178: AppDynamics | B178: RUM-ANST60-SAAS-NC | C178: AppDynamics Prod - Browser/Mobile/RUM Analytics - 60 Day Cloud Indexed Storage Add-on - SaaS | D178: SaaS | E178: Digital Experience Monitoring | F178: 440 | G178: 0.01 | H178: 435.6 | I178: EA
A179: AppDynamics | B179: RUM-ANST90-SAAS-NC | C179: AppDynamics Prod - Browser/Mobile/RUM Analytics - 90 Day Cloud Indexed Storage Add-on - SaaS | D179: SaaS | E179: Digital Experience Monitoring | F179: 660 | G179: 0.01 | H179: 653.4 | I179: EA
A180: AppDynamics | B180: SAP-PROD-ENT-FLOV-ONPR | C180: AppDynamics Enterprise Edition for SAP® Solutions - Failover - On-Prem | D180: SaaS | E180: SAP Monitoring | F180: 0 | G180: 0.01 | H180: 0 | I180: EA
A181: AppDynamics | B181: SAP-PROD-ENT-ONPR | C181: AppDynamics Enterprise Edition for SAP® Solutions - On-Prem | D181: SaaS | E181: SAP Monitoring | F181: 1140 | G181: 0.01 | H181: 1128.6 | I181: EA
A182: AppDynamics | B182: SAP-PROD-ENT-SAAS | C182: AppDynamics Enterprise Edition for SAP® Solutions | D182: SaaS | E182: SAP Monitoring | F182: 1140 | G182: 0.01 | H182: 1128.6 | I182: EA
A183: AppDynamics | B183: SAP-TST-ENT-FLOV-ONPR | C183: AppDynamics T&D Enterprise Edition for SAP® Solutions - Failover - On-Prem | D183: SaaS | E183: SAP Monitoring | F183: 0 | G183: 0.01 | H183: 0 | I183: EA
A184: AppDynamics | B184: SAP-TST-ENT-ONPR | C184: AppDynamics T&D Enterprise Edition for SAP® Solutions - On-Prem | D184: SaaS | E184: SAP Monitoring | F184: 1140 | G184: 0.01 | H184: 1128.6 | I184: EA
A185: AppDynamics | B185: SAP-TST-ENT-SAAS | C185: AppDynamics Enterprise Edition for SAP® Solutions Test & Dev Edition | D185: SaaS | E185: SAP Monitoring | F185: 1140 | G185: 0.01 | H185: 1128.6 | I185: EA
A186: AppDynamics | B186: SECAPP-PRO-ABL-ADDON-ONPR | C186: AppDynamics with Cisco Secure Application - Agent Based - On Premise | D186: SaaS | E186: Application Monitoring | F186: 1950 | G186: 0.01 | H186: 1930.5 | I186: EA
A187: AppDynamics | B187: SECAPP-PRO-ABL-ADDON-SAAS | C187: AppDynamics with Cisco Secure Application - Agent Based - SaaS | D187: SaaS | E187: Application Monitoring | F187: 1950 | G187: 0.01 | H187: 1930.5 | I187: EA
A188: AppDynamics | B188: SECAPP-PRO-ADDON-SAAS | C188: AppDynamics with Cisco Secure Application - Infrastructure Based - SaaS | D188: SaaS | E188: Application Monitoring | F188: 165 | G188: 0.01 | H188: 163.35 | I188: EA
A189: AppDynamics | B189: SECAPP-PRO-IBL-ADDON-ONPR | C189: AppDynamics with Cisco Secure Application - Infrastructure Based - On Premise | D189: SaaS | E189: Application Monitoring | F189: 165 | G189: 0.01 | H189: 163.35 | I189: EA
A190: AppDynamics | B190: SUP-PREM-ADDON | C190: Premium Support for SaaS Add On | D190: SaaS | E190: ProServ | F190: 15% support uplift | G190: 0.01 | I190: EA
A191: AppDynamics | B191: SUP-PREM-FIX | C191: Premium Support for SaaS SMB | D191: SaaS | E191: ProServ | F191: 150000 | G191: 0.01 | H191: 148500 | I191: EA
A192: AppDynamics | B192: SUP-PREM-ONPM-ADD | C192: Premium Support for On-Prem Add-On | D192: SaaS | E192: ProServ | F192: 20% support uplift | G192: 0.01 | I192: EA
A193: AppDynamics | B193: SUP-PREM-ONPM-SMB | C193: Premium Support for On-Prem SMB | D193: SaaS | E193: ProServ | F193: 200000 | G193: 0.01 | H193: 198000 | I193: EA
A194: AppDynamics | B194: SUP-PREM-ONPM-UP20 | C194: Premium Support for On-Prem | D194: SaaS | E194: ProServ | F194: 20% support uplift | G194: 0.01 | I194: EA
A195: AppDynamics | B195: SUP-PREM-UP15 | C195: Premium Support for SaaS | D195: SaaS | E195: ProServ | F195: 15% support uplift | G195: 0.01 | I195: EA
A196: AppDynamics | B196: TST-ADV-APM-FLOV-ONPR | C196: AppDynamics Test & Dev Advanced Edition - APM Any Language - Failover - On-Premise | D196: SaaS | E196: Application Monitoring | F196: 0 | G196: 0.01 | H196: 0 | I196: EA
A197: AppDynamics | B197: TST-ADV-APM-GOV-SAAS-NC | C197: AppDynamics Test & Dev Advanced Edition - APM Any Language - Gov - SaaS | D197: SaaS | E197: Application Monitoring | F197: 3090 | G197: 0.01 | H197: 3059.1 | I197: EA
A198: AppDynamics | B198: TST-ADV-APM-ONPR | C198: AppDynamics Test & Dev Advanced Edition - APM Any Language - On-Premise | D198: SaaS | E198: Application Monitoring | F198: 2575 | G198: 0.01 | H198: 2549.25 | I198: EA
A199: AppDynamics | B199: TST-ADV-APM-SAAS-NC | C199: AppDynamics Test & Dev Advanced Edition - APM Any Language - SaaS | D199: SaaS | E199: Application Monitoring | F199: 2575 | G199: 0.01 | H199: 2549.25 | I199: EA
A200: AppDynamics | B200: TST-ADV-MCR-APM-FLOV-ONPR | C200: AppDynamics Test & Dev Advanced Edition - APM Any Language Microservices (5-Pack) - Failover - On-Premise | D200: SaaS | E200: Application Monitoring | F200: 0 | G200: 0.01 | H200: 0 | I200: EA
... 101 more rows

Sheet Apptio
A1: Manufacturer | B1: Part Number | C1: Description | D1: Category | E1: Sub-Category | F1: LIST PRICE | G1: MINIMUM DISCOUNT | H1: NVP PRICE | I1: Unit
A2: Apptio | B2: Services71 | C2: Apptio All Access Education Pass (AAEP) | D2: SaaS | F2: 4500 | G2: 0.01 | H2: =F2-(F2*G2) -> 4455 | I2: Each
A3: Apptio | B3: 2-BIT-1 | C3: Apptio Bill of IT | D3: SaaS | F3: 56000 | G3: 0.01 | H3: 55440 | I3: Each
A4: Apptio | B4: 2-BIT-4-NU5 | C4: Apptio Bill of IT: Named User (5 Pack) | D4: SaaS | F4: 60 | G4: 0.01 | H4: 59.4 | I4: Each
A5: Apptio | B5: 1-ITSC-1-CTSM | C5: Apptio Cost Transparency: Foundation | D5: SaaS | F5: 55000 | G5: 0.01 | H5: 54450 | I5: Each
A6: Apptio | B6: 1-ITSC-1-CTAS | C6: Apptio Cost Transparency: Apps & Services | D6: SaaS | F6: 32000 | G6: 0.01 | H6: 31680 | I6: Each
A7: Apptio | B7: 1-ITSC-1-CTBU | C7: Apptio Cost Transparency: Business Units | D7: SaaS | F7: 32000 | G7: 0.01 | H7: 31680 | I7: Each
A8: Apptio | B8: 1-ITSC-1-BIVI | C8: Apptio Vendor Insights - $125M Annual Spend YEAR 1 | D8: SaaS | F8: 38000 | G8: 0.01 | H8: =F8-(F8*G8) -> 37620 | I8: Each
A9: Apptio | B9: SFW-APP1 | C9: ApptioOne $125M Annual Spend YEAR 1 | D9: SaaS | F9: 73000 | G9: 0.01 | H9: 72270 | I9: Each
A10: Apptio | B10: SFW-CLDY-SaaS | C10: Apptio Cloudability SaaS - 10,000 Workers YEAR 1 | D10: SaaS | F10: 45000 | G10: 0.01 | H10: 44550 | I10: Each
A11: Apptio | B11: SFW-CLDY | C11: Apptio Cloudability - $4M Annual Spend YEAR 1 | D11: SaaS | F11: 55000 | G11: 0.01 | H11: 54450 | I11: Each
A12: Apptio | B12: AAEP | C12: Apptio All Access Education Pass YEAR 1 | D12: SaaS | F12: 7900 | G12: 0.01 | H12: 7821 | I12: Each

Sheet Arctic Wolf
A1: Manufacturer | B1: Part Number | C1: Description | D1: Category | E1: Sub-Category | F1: LIST PRICE | G1: MINIMUM DISCOUNT | H1: NVP PRICE | I1: Unit
A2: Arctic Wolf | B2: AW-MDR-USER-YR1 | C2: Arctic Wolf MDR user license | D2: PaaS | F2: 204 | G2: 0.01 | H2: 201.96 | I2: EA
A3: Arctic Wolf | B3: AW-MDR-SE-YR1 | C3: Arctic Wolf MDR server license | D3: PaaS | F3: 204 | G3: 0.01 | H3: 201.96 | I3: EA
A4: Arctic Wolf | B4: AW-MDR-1YR-YR1 | C4: Arctic Wolf MDR Log Retention - 1 year | D4: PaaS | F4: 14.69 | G4: 0.01 | H4: 14.5431 | I4: EA
A5: Arctic Wolf | B5: AW-MDR-2XX-S-10G-YR1 | C5: Arctic Wolf 200 Series Sensor - 2 x 10G Multi-mode fiber SFP+ modules with LC connector | D5: PaaS | F5: 4590.01 | G5: 0.01 | H5: 4544.1099 | I5: EA
A6: Arctic Wolf | B6: AW-MDR-O365-YR1 | C6: Arctic Wolf MDR Office 365 user license | D6: PaaS | F6: 22.96 | G6: 0.01 | H6: 22.7304 | I6: EA
A7: Arctic Wolf | B7: AW-MDR-EXPLR-YR1 | C7: Arctic Wolf MDR Data Exploration | D7: PaaS | F7: 30.6 | G7: 0.01 | H7: 30.294 | I7: EA
A8: Arctic Wolf | B8: AW-MR-USER-YR1 | C8: Arctic Wolf Managed Risk user license | D8: PaaS | F8: 102.01 | G8: 0.01 | H8: 100.9899 | I8: EA
A9: Arctic Wolf | B9: AW-MR-SE-YR1 | C9: Arctic Wolf Managed Risk server license | D9: PaaS | F9: 102.01 | G9: 0.01 | H9: 100.9899 | I9: EA
A10: Arctic Wolf | B10: AW-PLATFORM-YR1 | C10: Arctic Wolf Platform - Users and Servers | D10: PaaS | F10: 15.3 | G10: 0.01 | H10: 15.147 | I10: EA
A11: Arctic Wolf | B11: AW-PLATFORM-BASE-YR1 | C11: Arctic Wolf Platform - Base Platform | D11: PaaS | F11: 4500 | G11: 0.01 | H11: 4455 | I11: EA
A12: Arctic Wolf | B12: AW-IR-JSR-YR1 | C12: Arctic Wolf IR JumpStart Retainer | D12: PaaS | F12: 5100 | G12: 0.01 | H12: 5049 | I12: EA
A13: Arctic Wolf | B13: AW-MDR-OB-YR1 | C13: Arctic Wolf MDR Onboarding | D13: Value Added Services | F13: 6613.34 | G13: 0.01 | H13: 6547.2066 | I13: EA
A14: Arctic Wolf | B14: AW-MR-OB-YR1 | C14: Arctic Wolf Managed Risk Onboarding | D14: Value Added Services | F14: 2111.5 | G14: 0.01 | H14: 2090.385 | I14: EA
A15: Arctic Wolf | B15: AW-SHP-YR1 | C15: Arctic Wolf Sensor/Scanner Shipping | D15: Value Added Services | F15: 144 | G15: 0.01 | H15: 142.56 | I15: EA
A16: Arctic Wolf | B16: AW-MDR-USER-YR2 | C16: Arctic Wolf MDR user license | D16: PaaS | F16: 220.32 | G16: 0.01 | H16: 218.1168 | I16: EA
A17: Arctic Wolf | B17: AW-MDR-SE-YR2 | C17: Arctic Wolf MDR server license | D17: PaaS | F17: 220.32 | G17: 0.01 | H17: 218.1168 | I17: EA
A18: Arctic Wolf | B18: AW-MDR-1YR-YR2 | C18: Arctic Wolf MDR Log Retention - 1 year | D18: PaaS | F18: 15.86 | G18: 0.01 | H18: 15.7014 | I18: EA
A19: Arctic Wolf | B19: AW-MDR-O365-YR2 | C19: Arctic Wolf MDR Office 365 user license | D19: PaaS | F19: 24.79 | G19: 0.01 | H19: 24.5421 | I19: EA
A20: Arctic Wolf | B20: AW-MDR-EXPLR-YR2 | C20: Arctic Wolf MDR Data Exploration | D20: PaaS | F20: 33.05 | G20: 0.01 | H20: 32.7195 | I20: EA
A21: Arctic Wolf | B21: AW-PLATFORM-YR2 | C21: Arctic Wolf Platform - Users and Servers | D21: PaaS | F21: 16.52 | G21: 0.01 | H21: 16.3548 | I21: EA
A22: Arctic Wolf | B22: AW-PLATFORM-BASE-YR2 | C22: Arctic Wolf Platform - Base Platform | D22: PaaS | F22: 4860 | G22: 0.01 | H22: 4811.4 | I22: EA
A23: Arctic Wolf | B23: AW-MR-USER-YR2 | C23: Arctic Wolf Managed Risk user license | D23: PaaS | F23: 110.17 | G23: 0.01 | H23: 109.0683 | I23: EA
A24: Arctic Wolf | B24: AW-MR-SE-YR2 | C24: Arctic Wolf Managed Risk server license | D24: PaaS | F24: 110.17 | G24: 0.01 | H24: 109.0683 | I24: EA
A25: Arctic Wolf | B25: AW-IR-JSR-YR2 | C25: Arctic Wolf IR JumpStart Retainer | D25: PaaS | F25: 5508 | G25: 0.01 | H25: 5452.92 | I25: EA
A26: Arctic Wolf | B26: AW-MDR-USER-YR3 | C26: Arctic Wolf MDR user license | D26: PaaS | F26: 237.95 | G26: 0.01 | H26: 235.5705 | I26: EA
A27: Arctic Wolf | B27: AW-MDR-SE-YR3 | C27: Arctic Wolf MDR server license | D27: PaaS | F27: 237.95 | G27: 0.01 | H27: 235.5705 | I27: EA
A28: Arctic Wolf | B28: AW-MDR-1YR-YR3 | C28: Arctic Wolf MDR Log Retention - 1 year | D28: PaaS | F28: 17.13 | G28: 0.01 | H28: 16.9587 | I28: EA
A29: Arctic Wolf | B29: AW-MDR-O365-YR3 | C29: Arctic Wolf MDR Office 365 user license | D29: PaaS | F29: 26.78 | G29: 0.01 | H29: 26.5122 | I29: EA
A30: Arctic Wolf | B30: AW-MDR-EXPLR-YR3 | C30: Arctic Wolf MDR Data Exploration | D30: PaaS | F30: 35.69 | G30: 0.01 | H30: 35.3331 | I30: EA
A31: Arctic Wolf | B31: AW-PLATFORM-YR3 | C31: Arctic Wolf Platform - Users and Servers | D31: PaaS | F31: 17.85 | G31: 0.01 | H31: 17.6715 | I31: EA
A32: Arctic Wolf | B32: AW-PLATFORM-BASE-YR3 | C32: Arctic Wolf Platform - Base Platform | D32: PaaS | F32: 5248.8 | G32: 0.01 | H32: 5196.312 | I32: EA
A33: Arctic Wolf | B33: AW-MR-USER-YR3 | C33: Arctic Wolf Managed Risk user license | D33: PaaS | F33: 118.99 | G33: 0.01 | H33: 117.8001 | I33: EA
A34: Arctic Wolf | B34: AW-MR-SE-YR3 | C34: Arctic Wolf Managed Risk server license | D34: PaaS | F34: 118.99 | G34: 0.01 | H34: 117.8001 | I34: EA
A35: Arctic Wolf | B35: AW-IR-JSR-YR3 | C35: Arctic Wolf IR JumpStart Retainer | D35: PaaS | F35: 5948.64 | G35: 0.01 | H35: 5889.1536 | I35: EA
A36: Arctic Wolf | B36: AW-MDR-USER-YR4 | C36: Arctic Wolf MDR user license | D36: PaaS | F36: 256.98 | G36: 0.01 | H36: 254.4102 | I36: EA
A37: Arctic Wolf | B37: AW-MDR-SE-YR4 | C37: Arctic Wolf MDR server license | D37: PaaS | F37: 256.98 | G37: 0.01 | H37: 254.4102 | I37: EA
A38: Arctic Wolf | B38: AW-MDR-1YR-YR4 | C38: Arctic Wolf MDR Log Retention - 1 year | D38: PaaS | F38: 18.5 | G38: 0.01 | H38: 18.315 | I38: EA
A39: Arctic Wolf | B39: AW-MDR-O365-YR4 | C39: Arctic Wolf MDR Office 365 user license | D39: PaaS | F39: 28.92 | G39: 0.01 | H39: 28.6308 | I39: EA
A40: Arctic Wolf | B40: AW-MDR-EXPLR-YR4 | C40: Arctic Wolf MDR Data Exploration | D40: PaaS | F40: 38.55 | G40: 0.01 | H40: 38.1645 | I40: EA
A41: Arctic Wolf | B41: AW-PLATFORM-YR4 | C41: Arctic Wolf Platform - Users and Servers | D41: PaaS | F41: 19.27 | G41: 0.01 | H41: 19.0773 | I41: EA
A42: Arctic Wolf | B42: AW-PLATFORM-BASE-YR4 | C42: Arctic Wolf Platform - Base Platform | D42: PaaS | F42: 5668.7 | G42: 0.01 | H42: 5612.013 | I42: EA
A43: Arctic Wolf | B43: AW-MR-USER-YR4 | C43: Arctic Wolf Managed Risk user license | D43: PaaS | F43: 128.5 | G43: 0.01 | H43: 127.215 | I43: EA
A44: Arctic Wolf | B44: AW-MR-SE-YR4 | C44: Arctic Wolf Managed Risk server license | D44: PaaS | F44: 128.5 | G44: 0.01 | H44: 127.215 | I44: EA
A45: Arctic Wolf | B45: AW-IR-JSR-YR4 | C45: Arctic Wolf IR JumpStart Retainer | D45: PaaS | F45: 6424.53 | G45: 0.01 | H45: 6360.2847 | I45: EA
A46: Arctic Wolf | B46: AW-MDR-USER-YR5 | C46: Arctic Wolf MDR user license | D46: PaaS | F46: 277.54 | G46: 0.01 | H46: 274.7646 | I46: EA
A47: Arctic Wolf | B47: AW-MDR-SE-YR5 | C47: Arctic Wolf MDR server license | D47: PaaS | F47: 277.54 | G47: 0.01 | H47: 274.7646 | I47: EA
A48: Arctic Wolf | B48: AW-MDR-1YR-YR5 | C48: Arctic Wolf MDR Log Retention - 1 year | D48: PaaS | F48: 19.98 | G48: 0.01 | H48: 19.7802 | I48: EA
A49: Arctic Wolf | B49: AW-MDR-O365-YR5 | C49: Arctic Wolf MDR Office 365 user license | D49: PaaS | F49: 31.23 | G49: 0.01 | H49: 30.9177 | I49: EA
A50: Arctic Wolf | B50: AW-MDR-EXPLR-YR5 | C50: Arctic Wolf MDR Data Exploration | D50: PaaS | F50: 41.63 | G50: 0.01 | H50: 41.2137 | I50: EA
A51: Arctic Wolf | B51: AW-PLATFORM-YR5 | C51: Arctic Wolf Platform - Users and Servers | D51: PaaS | F51: 20.82 | G51: 0.01 | H51: 20.6118 | I51: EA
A52: Arctic Wolf | B52: AW-PLATFORM-BASE-YR5 | C52: Arctic Wolf Platform - Base Platform | D52: PaaS | F52: 6122.2 | G52: 0.01 | H52: 6060.978 | I52: EA
A53: Arctic Wolf | B53: AW-MR-USER-YR5 | C53: Arctic Wolf Managed Risk user license | D53: PaaS | F53: 138.78 | G53: 0.01 | H53: 137.3922 | I53: EA
A54: Arctic Wolf | B54: AW-MR-SE-YR5 | C54: Arctic Wolf Managed Risk server license | D54: PaaS | F54: 138.78 | G54: 0.01 | H54: 137.3922 | I54: EA
A55: Arctic Wolf | B55: AW-IR-JSR-YR5 | C55: Arctic Wolf IR JumpStart Retainer | D55: PaaS | F55: 6938.49 | G55: 0.01 | H55: 6869.1051 | I55: EA

Sheet Ataccama
A1: Manufacturer | B1: Part Number | C1: Description | D1: Category | E1: Sub-Category | F1: LIST PRICE | G1: MINIMUM DISCOUNT | H1: NVP PRICE | I1: Unit
A2: Ataccama | B2: ATA-ONE-DATA-SUITE | C2: Ataccama One Data Quality and Data Governance Suite: (Data Profiling, Catalog, Glossary, DQ Rules and Monitoring, DQ Issue Resolution) Unlimited number of records, Unlimited number of connecting source systems, Unlimited developer licenses, 1-Production, 1-non-production server/environment, 20 Named Users/Power Users, Unlimited Read-only Users, 2 CPU Core Data Processing, Annual Subscription, Paid All Upfront | D2: SaaS | F2: 249000 | G2: 0.01 | H2: 246510 | I2: EA
A3: Ataccama | B3: ATA-MAINT-SUPPORT | C3: Ataccama Product Maintenance and Standard Product Support, 8*5 availability, web helpdesk, Support provided in desire timezone, Included at No Cost | D3: Value Added Services | F3: 0 | G3: 0.01 | H3: 0 | I3: EA
A4: Ataccama | B4: ATA-AWS-Stand-Up | C4: Ataccama PaaS Cloud (AWS US) Hosting - Platform Standup Fee, One-time Fee Paid All Upfront | D4: Value Added Services | F4: 18150 | G4: 0.01 | H4: 17968.5 | I4: EA
A5: Ataccama | B5: ATA-AWS-US-Hosting | C5: Ataccama PaaS Cloud (AWS US) Hosting, Annual Cost, Cost for infrastructure is subject to change upon adjustments in the HW infrastructure sizing, Paid All Upfront | D5: PaaS | F5: 58800 | G5: 0.01 | H5: 58212 | I5: EA

Sheet Atlas One
A1: Manufacturer | B1: Part Number | C1: Description | D1: Category | E1: Sub-Category | F1: LIST PRICE | G1: MINIMUM DISCOUNT | H1: NVP PRICE | I1: Unit
A2: Atlas One | B2: ATL1-PRO-1YR | C2: Atlas One Recruiting - Professional | D2: Value Added Services | F2: 121440 | G2: 0.01 | H2: 120225.6 | I2: EA
A3: Atlas One | B3: ATL1-ELITE-1YR | C3: Atlas One Recruiting Elite Add-On | D3: Value Added Services | F3: 102240 | G3: 0.01 | H3: 101217.6 | I3: EA
A4: Atlas One | B4: ATL1-COMMENG-1YR | C4: Atlas One Recruiting Community Engagement Platform - Add On | D4: PaaS | F4: 53000 | G4: 0.01 | H4: 52470 | I4: EA
A5: Atlas One | B5: ATL1-PRO-3YR | C5: Atlas One Recruiting - Professional, 3-Year Term, Invoiced All Upfront - 10% Discount | D5: SaaS | F5: 109296 | G5: 0.01 | H5: 108203.04 | I5: EA
A6: Atlas One | B6: ATL1-ELITE-3YR | C6: Atlas One Recruiting Elite Add-On, 3-Year Term, Invoiced All Upfront - 10% Discount | D6: SaaS | F6: 92016 | G6: 0.01 | H6: 91095.84 | I6: EA
A7: Atlas One | B7: ATL1-COMMENG-3YR | C7: Atlas One Recruiting Community Engagement Platform - Add On, 3-Year Term, Invoiced All Upfront - 10% Discount | D7: PaaS | F7: 53000 | G7: 0.01 | H7: 52470 | I7: EA

Sheet Atlassian Software
A1: Manufacturer | B1: Part Number | C1: Description | D1: Category | E1: Sub-Category | F1: List Price | G1: MINIMUM DISCOUNT | H1: NVP PRICE | I1: Unit
A2: Atlassian Software | B2: ATL-BCL-50R | C2: Bitbucket (Cloud) 50 Users (Annual Payments) Bitbucket (Cloud) Annual Premium Site Address: ct-ccses Atlassian Inc. - ATL-BCL-50 | D2: SaaS | F2: 3500 | G2: 0.01 | H2: 3465 | I2: EA
A3: Atlassian Software | B3: ATL-CCL-400R-2-1 | C3: Confluence Standard (Cloud Annual) 400 Users, Subscription term license, 400 Users per instance, 12 Months Site Address: idcfs-oits.atlassian.net Upgrade from 100-Upgrade Credit Applied Users Atlassian Inc. - ATL-CCL-400R | D3: SaaS | F3: 23688 | G3: 0.01 | H3: 23451.12 | I3: Each
A4: Atlassian Software | B4: ATL-CCLPR-200-2-1 | C4: Confluence Premium (Cloud Annual) 200 Users, Subscription term license, 200 Users per instance, 12 Months | D4: SaaS | F4: 24074.41 | G4: 0.01 | H4: 23833.67 | I4: EA
A5: Atlassian Software | B5: ATL-JSMCL-200 | C5: Jira Service Management (cloud)Standard 200 Agents (Annual Payments) Site Address: idcfs-oits.atlassian.net Atlassian Inc.-ATL-JSMCL-200 | D5: SaaS | F5: 36756 | G5: 0.01 | H5: 36388.44 | I5: Each
A6: Atlassian Software | B6: ATL-JSWCL-400-2-1 | C6: Jira Software Standard (Cloud Annual) 400 Users, Subscription term license, 400 Users per instance, 12 Months Site Address: idcfs-oits.atlassian.net Upgrade from 100 Users Atlassian Inc. - ATL-JSWCL-400 | D6: SaaS | F6: 35891 | G6: 0.01 | H6: 35532.09 | I6: Each
A7: Atlassian Software | B7: ATL-JSWCLPR-200-2-1 | C7: Jira Software Premium (Cloud Annual) 200 Users, Subscription term license, 200 Users per instance, 12 Months | D7: SaaS | F7: 33659.26 | G7: 0.01 | H7: 33322.67 | I7: EA
A8: Atlassian Software | B8: ATL-JWMCL-500R | C8: Jira Work Management (Cloud) Standard 500 Users (Annual Payments) Site Address: idcfs-oits.atlassian.net Atlassian Inc. - ATL-JWMCL-500R | D8: SaaS | F8: 26559 | G8: 0.01 | H8: 26293.41 | I8: Each
A9: Atlassian Software | B9: ATL-MPAZUREDEVOPS-500 | C9: Azure DevOps Integration for Jira Cloud for Jira Software (cloud) 500 Users (Annual Payments) Site Address: idcfs-oits.atlassian.net Atlassian Inc. ATL-MP-AZUREDEVOPS-500 | D9: SaaS | F9: 5246 | G9: 0.01 | H9: 5193.54 | I9: Each
A10: Atlassian Software | B10: ATL-MP-BETTEREXCELCL-200 | C10: Better Excel Exporter for Jira Cloud for Jira Software (Cloud) 200 Users (Annual Payments) | D10: SaaS | F10: 4333.19 | G10: 0.01 | H10: 4289.86 | I10: EA
A11: Atlassian Software | B11: ATL-MP-COMMENTSMANAGERCL-200R | C11: Comments Manager Cloud for Confluence (Cloud) 200 Users (Annual Payments) Renewal | D11: SaaS | F11: 98.21 | G11: 0.01 | H11: 97.23 | I11: EA
A12: Atlassian Software | B12: ATL-MPDYNAMICFORMSDC-2000R | C12: Dynamic Forms for Jira Data Center for Jira Software (Data Center) 2000 Users: Commercial Term License renewal Atlassian Inc. - ATL-MP-DYNAMICFORMSDC- 2000R - 12 Month PoP | D12: SaaS | F12: 2600 | G12: 0 | H12: 2600 | I12: EA
A13: Atlassian Software | B13: ATL-MP-ELEMENTSCL-200 | C13: Elements Copy & Sync - clone Jira issues Cloud for Jira Work Management (Cloud) 200 Users (Annual Payments) | D13: SaaS | F13: 2086.81 | G13: 0.01 | H13: 2065.94 | I13: EA
A14: Atlassian Software | B14: ATL-MP-IFRAMESDC-500R | C14: Iframes for Confluence Data Center for Confluence (Data Center) 500 Users: Commercial Term License renewal Atlassian Inc. - ATL-MP-IFRAMESDC-500R - 12 Month PoP | D14: SaaS | F14: 700 | G14: 0 | H14: 700 | I14: EA
A15: Atlassian Software | B15: ATL-MP-JSUAUTOMATIONCL-200 | C15: JSU Automation Suite for Jira Workflows Cloud for Jira Work Management (Cloud) 200 Users (Annual Payments) | D15: SaaS | F15: 2528.71 | G15: 0.01 | H15: 2503.43 | I15: EA
A16: Atlassian Software | B16: ATL-MP-NUMBEREDHEADINGSCL-200R | C16: Numbered Headings Cloud for Confluence (Cloud) 200 Users (Annual Payments) Renewal | D16: SaaS | F16: 1227.54 | G16: 0.01 | H16: 1215.26 | I16: EA
A17: Atlassian Software | B17: ATL-MP-SCRIPTRUNNERCCL200 | C17: ScriptRunner for Confluence Cloud for Confluence (Cloud) 200 Users (Annual Payments) | D17: SaaS | F17: 5182.93 | G17: 0.01 | H17: 5131.1 | I17: EA
A18: Atlassian Software | B18: ATL-MP-SCRIPTRUNNERCL-200 | C18: ScriptRunner for Jira Cloud for Jira Work Management (Cloud) 200 Users (Annual Payments) | D18: SaaS | F18: 5182.93 | G18: 0.01 | H18: 5131.1 | I18: EA
A19: Atlassian Software | B19: ATL-MP-SOURCEEDITORCL-200 | C19: Source Editor for Confluence Cloud for Confluence (Cloud) 200 Users (Annual Payments) | D19: SaaS | F19: 2000.88 | G19: 0.01 | H19: 1980.87 | I19: EA
A20: Atlassian Software | B20: ATL-MP-STRUCTURE-200 | C20: Structure - Project Management at Scale Cloud for Jira Work Management (Cloud) 200 Users (Annual Payments) | D20: SaaS | F20: 5695.76 | G20: 0.01 | H20: 5638.8 | I20: EA
A21: Atlassian Software | B21: ATL-MP-TEMPOTIMESHEETSCL-500R | C21: Tempo Timesheets - Jira Time Tracking Cloud for JIRA (Cloud) 500 Users (Annual Payments) Site Address: idcfs-oits.atlassian.net Upgrade from 100 Users-Upgrade Credit Applied Atlassian Inc. - ATL-MPTEMPOTIMESHEETSCL-500R | D21: SaaS | F21: 12921 | G21: 0.01 | H21: 12791.79 | I21: Each
A22: Atlassian Software | B22: ATL-MP-TFS4JIRACL-500R | C22: TFS4JIRA Azure DevOps integration Cloud for JIRA (Cloud) 500 Users (Annual Payments) Site Address: idcfs-oits.atlassian.net Upgrade from 100 Users-Upgrade Credit Applied Atlassian Inc. - ATL-MP-TFS4JIRACL-500R | D22: SaaS | F22: 16690 | G22: 0.01 | H22: 16523.1 | I22: Each
A23: Atlassian Software | B23: ATL-MP-WORKFLOWSCL-200R | C23: Workflows for Confluence Cloud for Confluence (Cloud) 200 Users (Annual Payments) Renewal | D23: SaaS | F23: 2148.19 | G23: 0.01 | H23: 2126.71 | I23: EA
A24: Atlassian Software | B24: ATL-MP-XRAYCL-200 | C24: Xray Test Management for Jira Cloud for Jira Work Management (Cloud) 200 Users (Annual Payments) | D24: SaaS | F24: 9206.51 | G24: 0.01 | H24: 9114.45 | I24: EA
A25: Atlassian Software | B25: CONF-PREMYR-50 | C25: Confluence Software Cloud SaaS - Premium Edition - 50 Users - 1 Year | D25: SaaS | F25: 7000 | G25: 0.05 | H25: =F25*(1-G25) -> 6650 | I25: Each
A26: Atlassian Software | B26: CONF-STDYR-50 | C26: Confluence Software Cloud SaaS - Standard Edition - 50 Users - 1 Year | D26: SaaS | F26: 3500 | G26: 0.05 | H26: =F26*(1-G26) -> 3325 | I26: Each
A27: Atlassian Software | B27: JIRA-PREMYR-50 | C27: Jira Software Cloud SaaS - Premium Edition - 50 Users - 1 Year | D27: SaaS | F27: 9000 | G27: 0.05 | H27: =F27*(1-G27) -> 8550 | I27: Each
A28: Atlassian Software | B28: JIRA-STDYR-50 | C28: Jira Software Cloud SaaS - Standard Edition - 50 Users - 1 Year | D28: SaaS | F28: 4500 | G28: 0.05 | H28: =F28*(1-G28) -> 4275 | I28: Each

Sheet Atom AI
A1: Manufacturer | B1: Part Number | C1: Description | D1: Category | E1: Sub-Category | F1: LIST PRICE | G1: MINIMUM DISCOUNT | H1: NVP PRICE | I1: Unit
A2: Atom AI | B2: A-Annual-Lic-AAI | C2: Atom Annual License (Unlimited Users Includes Maintenance, Support, Upgrades and all associated Portals) | D2: SaaS | F2: 263123.44 | G2: 0.01 | H2: 260492.2056 | I2: EA
A3: Atom AI | B3: A-Annual-Lic-AAI-Y1 | C3: Atom Annual License (Unlimited Users Includes Maintenance, Support, Upgrades and all associated Portals) | D3: SaaS | F3: 131561.72 | G3: 0.01 | H3: 130246.1028 | I3: EA
A4: Atom AI | B4: Acceptance-Test-AAI | C4: Acceptance Testing | D4: Value Added Services | F4: 27398.25 | G4: 0.01 | H4: 27124.2675 | I4: EA
A5: Atom AI | B5: Acceptance-Test-AAI-RET | C5: Acceptance Testing Retainer | D5: Value Added Services | F5: 2739.83 | G5: 0.01 | H5: 2712.4317 | I5: EA
A6: Atom AI | B6: Config-Custom-AAI | C6: Solution Configuration and Customization | D6: Value Added Services | F6: 434362.5 | G6: 0.01 | H6: 430018.875 | I6: EA
A7: Atom AI | B7: Config-Custom-AAI-RET | C7: Solution Configuration and Customization Retainer | D7: Value Added Services | F7: 43436.25 | G7: 0.01 | H7: 43001.8875 | I7: EA
A8: Atom AI | B8: Data-Migration-AAI | C8: Data Migration Activites | D8: Value Added Services | F8: 100237.5 | G8: 0.01 | H8: 99235.125 | I8: EA
A9: Atom AI | B9: Data-Migration-AAI-RET | C9: Data Migration Activites Retainer | D9: Value Added Services | F9: 10023.75 | G9: 0.01 | H9: 9923.5125 | I9: EA
A10: Atom AI | B10: EU-Doc-AAI | C10: End User Documentation | D10: Value Added Services | F10: 33412.5 | G10: 0.01 | H10: 33078.375 | I10: EA
A11: Atom AI | B11: EU-Doc-AAI-RET | C11: End User Documentation Retainer | D11: Value Added Services | F11: 3341.25 | G11: 0.01 | H11: 3307.8375 | I11: EA
A12: Atom AI | B12: EU-Training-AAI | C12: End User Training | D12: Value Added Services | F12: 60142.5 | G12: 0.01 | H12: 59541.075 | I12: EA
A13: Atom AI | B13: EU-Training-AAI-RET | C13: End User Training Retainer | D13: Value Added Services | F13: 6014.25 | G13: 0.01 | H13: 5954.1075 | I13: EA
A14: Atom AI | B14: Go-Live-CutO-AAI | C14: Go-Live Cutover | D14: Value Added Services | F14: 20047.5 | G14: 0.01 | H14: 19847.025 | I14: EA
A15: Atom AI | B15: Go-Live-CutO-AAI-RET | C15: Go-Live Cutover Retainer | D15: Value Added Services | F15: 2004.75 | G15: 0.01 | H15: 1984.7025 | I15: EA
A16: Atom AI | B16: Integration-Test-AAI | C16: Integration Testing | D16: Value Added Services | F16: 40763.25 | G16: 0.01 | H16: 40355.6175 | I16: EA
A17: Atom AI | B17: Integration-Test-AAI-RET | C17: Integration Testing Retainer | D17: Value Added Services | F17: 4076.33 | G17: 0.01 | H17: 4035.5667 | I17: EA
A18: Atom AI | B18: Interface-Dev-AAI | C18: Interface Development | D18: Value Added Services | F18: 207157.5 | G18: 0.01 | H18: 205085.925 | I18: EA
A19: Atom AI | B19: Interface-Dev-AAI-RET | C19: Interface Development Retainer | D19: Value Added Services | F19: 20715.75 | G19: 0.01 | H19: 20508.5925 | I19: EA
A20: Atom AI | B20: Post-Go-Live-Support-AAI | C20: Post Go-Live Hypercare Support | D20: Value Added Services | F20: 26730 | G20: 0.01 | H20: 26462.7 | I20: EA
A21: Atom AI | B21: Post-Go-Live-Support-AAI-RET | C21: Post Go-Live Hypercare Support Retainer | D21: Value Added Services | F21: 2673 | G21: 0.01 | H21: 2646.27 | I21: EA
A22: Atom AI | B22: ProjectPlanning-AAI | C22: Project Planning | D22: Value Added Services | F22: 53460 | G22: 0.01 | H22: 52925.4 | I22: EA
A23: Atom AI | B23: ProjectPlanning-AAI-RET | C23: Project Planning Retainer | D23: Value Added Services | F23: 5346 | G23: 0.01 | H23: 5292.54 | I23: EA
A24: Atom AI | B24: Req-Review-Bluprnt-AAI | C24: Requirements Review and Solution Blueprinting | D24: Value Added Services | F24: 73507.5 | G24: 0.01 | H24: 72772.425 | I24: EA
A25: Atom AI | B25: Req-Review-Bluprnt-AAI-RET | C25: Requirements Review and Solution Blueprinting Retainer | D25: Value Added Services | F25: 7350.75 | G25: 0.01 | H25: 7277.2425 | I25: EA
A26: Atom AI | B26: Training-Exp | C26: Materials for Training | D26: Value Added Services | F26: 20715.75 | G26: 0.01 | H26: 20508.5925 | I26: EA
A27: Atom AI | B27: Travel | C27: Atom Team Travel | D27: Value Added Services | F27: 26730 | G27: 0.01 | H27: 26462.7 | I27: EA
A28: Atom AI | B28: Unit-Testing-AAI | C28: Unit Testing | D28: Value Added Services | F28: 47445.75 | G28: 0.01 | H28: 46971.2925 | I28: EA
A29: Atom AI | B29: Unit-Testing-AAI-RET | C29: Unit Testing Retainer | D29: Value Added Services | F29: 4744.58 | G29: 0.01 | H29: 4697.1342 | I29: EA

Sheet AUTORABIT
A1: Manufacturer | B1: Part Number | C1: Description | D1: Category | E1: Sub-Category | F1: List Price | G1: MINIMUM DISCOUNT | H1: NVP PRICE | I1: Unit
A2: AUTORABIT | B2: CodeScan-IDE-Plug-in | C2: CodeScan IDE Plug-in (23 MONTHS) | D2: SaaS | F2: 40 | G2: 0.01 | H2: 39.6 | I2: EA
A3: AUTORABIT | B3: CodeScan-Starter-Package | C3: CodeScan Starter Package Cloud (23 MONTHS) | D3: SaaS | F3: 3500 | G3: 0.01 | H3: 3465 | I3: EA
A4: AUTORABIT | B4: Success-Package-II | C4: Success Package II (23 MONTHS) | D4: SaaS | F4: 250 | G4: 0.01 | H4: 247.5 | I4: EA

Sheet Autura
A1: Manufacturer | B1: PartNumber | C1: Description | D1: Category | E1: Sub-Category | F1: LIST PRICE | G1: MINIMUM DISCOUNT | H1: NVP PRICE | I1: Unit
A2: Autura | B2: AR-01.1 | C2: Dispatch Technology ("Dispatch Pro") 0-2,500 tows per year - Subscription Fee (annual) - Autura Integrated Enterprise System (ARIES) offers real-time tow dispatch, no-cost software. This service requires the purchase of AR-08.1 | D2: SaaS | F2: 15000 | G2: 0.01 | H2: 14850 | I2: EA
A3: Autura | B3: AR-01.2 | C3: Dispatch Technology ("Dispatch Pro") 2,501-6,000 tows per year - Subscription Fee (annual) - Autura Integrated Enterprise System (ARIES) offers real-time tow dispatch, no-cost software. This service requires the purchase of AR-08.1 | D3: SaaS | F3: 72000 | G3: 0.01 | H3: 71280 | I3: EA
A4: Autura | B4: AR-01.3 | C4: Dispatch Technology ("Dispatch Pro") 6,001-12,000 tows per year - Subscription Fee (annual) - Autura Integrated Enterprise System (ARIES) offers real-time tow dispatch, no-cost software. This service requires the purchase of AR-08.1 | D4: SaaS | F4: 165000 | G4: 0.01 | H4: 163350 | I4: EA
A5: Autura | B5: AR-01.4 | C5: Dispatch Technology ("Dispatch Pro") 12,001-18,000 tows per year - Subscription Fee (annual) - Autura Integrated Enterprise System (ARIES) offers real-time tow dispatch, no-cost software. This service requires the purchase of AR-08.1 | D5: SaaS | F5: 270000 | G5: 0.01 | H5: 267300 | I5: EA
A6: Autura | B6: AR-01.5 | C6: Dispatch Technology ("Dispatch Pro") 18,001-25,000 tows per year - Subscription Fee (annual) - Autura Integrated Enterprise System (ARIES) offers real-time tow dispatch, no-cost software. This service requires the purchase of AR-08.1 | D6: SaaS | F6: 360000 | G6: 0.01 | H6: 356400 | I6: EA
A7: Autura | B7: AR-01.6 | C7: Dispatch Technology ("Dispatch Pro") 25,001-40,000 tows per year - Subscription Fee (annual) - Autura Integrated Enterprise System (ARIES) offers real-time tow dispatch, no-cost software. This service requires the purchase of AR-08.1 | D7: SaaS | F7: 500000 | G7: 0.01 | H7: 495000 | I7: EA
A8: Autura | B8: AR-01.7 | C8: Dispatch Technology ("Dispatch Pro") 40,001-60,000 tows per year - Subscription Fee (annual) - Autura Integrated Enterprise System (ARIES) offers real-time tow dispatch, no-cost software. This service requires the purchase of AR-08.1 | D8: SaaS | F8: 750000 | G8: 0.01 | H8: 742500 | I8: EA
A9: Autura | B9: AR-01.8 | C9: Dispatch Technology ("Dispatch Pro") 60,001-80,000 tows per year - Subscription Fee (annual) - Autura Integrated Enterprise System (ARIES) offers real-time tow dispatch, no-cost software. This service requires the purchase of AR-08.1 | D9: SaaS | F9: 960000 | G9: 0.01 | H9: 950400 | I9: EA
A10: Autura | B10: AR-01.9 | C10: Dispatch Technology ("Dispatch Pro") 80,001+ tows per year - Subscription Fee (annual) - Autura Integrated Enterprise System (ARIES) offers real-time tow dispatch, no-cost software. This service requires the purchase of AR-08.1 | D10: SaaS | F10: 1250000 | G10: 0.01 | H10: 1237500 | I10: EA
A11: Autura | B11: AR-02.1 | C11: Impound Technology (“Impound Pro”) 0-2,500 tows per year - Subscription Fee (annual) - ARIES/Impound provides tow companies with a comprehensive toolkit for managing impound activities. This service requires the purchase of AR-08.1 | D11: SaaS | F11: 16800 | G11: 0.01 | H11: 16632 | I11: EA
A12: Autura | B12: AR-02.2 | C12: Impound Technology (“Impound Pro”) 2,501-6,000 tows per year - Subscription Fee (annual) - ARIES/Impound provides tow companies with a comprehensive toolkit for managing impound activities. This service requires the purchase of AR-08.1 | D12: SaaS | F12: 78000 | G12: 0.01 | H12: 77220 | I12: EA
A13: Autura | B13: AR-02.3 | C13: Impound Technology (“Impound Pro”) 6,001-12,000 tows per year - Subscription Fee (annual) - ARIES/Impound provides tow companies with a comprehensive toolkit for managing impound activities. This service requires the purchase of AR-08.1 | D13: SaaS | F13: 180000 | G13: 0.01 | H13: 178200 | I13: EA
A14: Autura | B14: AR-02.4 | C14: Impound Technology (“Impound Pro”) 12,001-18,000 tows per year - Subscription Fee (annual) - ARIES/Impound provides tow companies with a comprehensive toolkit for managing impound activities. This service requires the purchase of AR-08.1 | D14: SaaS | F14: 300000 | G14: 0.01 | H14: 297000 | I14: EA
A15: Autura | B15: AR-02.5 | C15: Impound Technology (“Impound Pro”) 18,001 - 25,000 tows per year - Subscription Fee (annual) - ARIES/Impound provides tow companies with a comprehensive toolkit for managing impound activities. This service requires the purchase of AR-08.1 | D15: SaaS | F15: 396000 | G15: 0.01 | H15: 392040 | I15: EA
A16: Autura | B16: AR-02.6 | C16: Impound Technology (“Impound Pro”) 25,001-40,000 tows per year - Subscription Fee (annual) - ARIES/Impound provides tow companies with a comprehensive toolkit for managing impound activities. This service requires the purchase of AR-08.1 | D16: SaaS | F16: 515000 | G16: 0.01 | H16: 509850 | I16: EA
A17: Autura | B17: AR-02.7 | C17: Impound Technology (“Impound Pro”) 40,001-60,000 tows per year - Subscription Fee (annual) - ARIES/Impound provides tow companies with a comprehensive toolkit for managing impound activities. This service requires the purchase of AR-08.1 | D17: SaaS | F17: 750000 | G17: 0.01 | H17: 742500 | I17: EA
A18: Autura | B18: AR-02.8 | C18: Impound Technology (“Impound Pro”) 60,001-80,000 tows per year - Subscription Fee (annual) - ARIES/Impound provides tow companies with a comprehensive toolkit for managing impound activities. This service requires the purchase of AR-08.1 | D18: SaaS | F18: 960000 | G18: 0.01 | H18: 950400 | I18: EA
A19: Autura | B19: AR-02.9 | C19: Impound Technology (“Impound Pro”) 80,001+ tows per year - Subscription Fee (annual) - ARIES/Impound provides tow companies with a comprehensive toolkit for managing impound activities. This service requires the purchase of AR-08.1 | D19: SaaS | F19: 1250000 | G19: 0.01 | H19: 1237500 | I19: EA
A20: Autura | B20: AR-03.1 | C20: Dispatch and Impound Technology ("Pro +") 0-2,500 tows per year - Subscription Fee (annual) - This service provides the ARIES Dispatch plus ARIES impound services. This service requires the purchase of AR-08.1 | D20: SaaS | F20: 18000 | G20: 0.01 | H20: 17820 | I20: EA
A21: Autura | B21: AR-03.2 | C21: Dispatch and Impound Technology ("Pro +") 2,501-6,000 tows per year - Subscription Fee (annual) - This service provides the ARIES Dispatch plus ARIES impound services. This service requires the purchase of AR-08.1 | D21: SaaS | F21: 84000 | G21: 0.01 | H21: 83160 | I21: EA
A22: Autura | B22: AR-03.3 | C22: Dispatch and Impound Technology ("Pro +") 6,001-12,000 tows per year - Subscription Fee (annual) - This service provides the ARIES Dispatch plus ARIES impound services. This service requires the purchase of AR-08.1 | D22: SaaS | F22: 198000 | G22: 0.01 | H22: 196020 | I22: EA
A23: Autura | B23: AR-03.4 | C23: Dispatch and Impound Technology ("Pro +") 12,001- 18,000 tows per year - Subscription Fee (annual) - This service provides the ARIES Dispatch plus ARIES impound services. This service requires the purchase of AR-08.1 | D23: SaaS | F23: 324000 | G23: 0.01 | H23: 320760 | I23: EA
A24: Autura | B24: AR-03.5 | C24: Dispatch and Impound Technology ("Pro +") 18,001- 25,000 tows per year - Subscription Fee (annual) - This service provides the ARIES Dispatch plus ARIES impound services. This service requires the purchase of AR-08.1 | D24: SaaS | F24: 438000 | G24: 0.01 | H24: 433620 | I24: EA
A25: Autura | B25: AR-03.6 | C25: Dispatch and Impound Technology ("Pro +") 25,001-40,000 tows per year -Subscription Fee (annual) - This service provides the ARIES Dispatch plus ARIES impound services. This service requires the purchase of AR-08.1 | D25: SaaS | F25: 600000 | G25: 0.01 | H25: 594000 | I25: EA
A26: Autura | B26: AR-03.7 | C26: Dispatch and Impound Technology ("Pro +") 40,001-60,000 tows per year - Subscription Fee (annual) - This service provides the ARIES Dispatch plus ARIES impound services. This service requires the purchase of AR-08.1 | D26: SaaS | F26: 800000 | G26: 0.01 | H26: 792000 | I26: EA
A27: Autura | B27: AR-03.8 | C27: Dispatch and Impound Technology ("Pro +") 60,001-80,000 tows per year - Subscription Fee (annual) - This service provides the ARIES Dispatch plus ARIES impound services. This service requires the purchase of AR-08.1 | D27: SaaS | F27: 1040000 | G27: 0.01 | H27: 1029600 | I27: EA
A28: Autura | B28: AR-03.9 | C28: Dispatch and Impound Technology ("Pro +") 80,001+ tows per year - Subscription Fee (annual) - This service provides the ARIES Dispatch plus ARIES impound services. This service requires the purchase of AR-08.1 | D28: SaaS | F28: 1300000 | G28: 0.01 | H28: 1287000 | I28: EA
A29: Autura | B29: AR-04.1 | C29: Dispatch Management ("Dispatch Enterprise") 0-2,500 tows per year - Subscription Fee (annual) - AR-01 services Plus 24/7 Support. Dispatch, live agents, no finances are handled. This service requires the purchase of AR-08.1. | D29: SaaS | F29: 19800 | G29: 0.01 | H29: 19602 | I29: EA
A30: Autura | B30: AR-04.2 | C30: Dispatch Management ("Dispatch Enterprise") 2,501-6,000 tows per year - Subscription Fee (annual) - AR-01 services Plus 24/7 Support. Dispatch, live agents, no finances are handled. This service requires the purchase of AR-08.1. | D30: SaaS | F30: 96000 | G30: 0.01 | H30: 95040 | I30: EA
A31: Autura | B31: AR-04.3 | C31: Dispatch Management ("Dispatch Enterprise") 6,001-12,000 tows per year - Subscription Fee (annual) - AR-01 services Plus 24/7 Support. Dispatch, live agents, no finances are handled. This service requires the purchase of AR-08.1. | D31: SaaS | F31: 213000 | G31: 0.01 | H31: 210870 | I31: EA
A32: Autura | B32: AR-04.4 | C32: Dispatch Management ("Dispatch Enterprise") 12,001-18,000 tows per year - Subscription Fee (annual) - AR-01 services Plus 24/7 Support. Dispatch, live agents, no finances are handled. This service requires the purchase of AR-08.1. | D32: SaaS | F32: 360000 | G32: 0.01 | H32: 356400 | I32: EA
A33: Autura | B33: AR-04.5 | C33: Dispatch Management ("Dispatch Enterprise") 18,001-25,000 tows per year - Subscription Fee (annual) - AR-01 services Plus 24/7 Support. Dispatch, live agents, no finances are handled. This service requires the purchase of AR-08.1. | D33: SaaS | F33: 492000 | G33: 0.01 | H33: 487080 | I33: EA
A34: Autura | B34: AR-04.6 | C34: Dispatch Management ("Dispatch Enterprise") 25,001-40,000 tows per year - Subscription Fee (annual) - AR-01 services Plus 24/7 Support. Dispatch, live agents, no finances are handled. This service requires the purchase of AR-08.1. | D34: SaaS | F34: 625000 | G34: 0.01 | H34: 618750 | I34: EA
A35: Autura | B35: AR-04.7 | C35: Dispatch Management ("Dispatch Enterprise") 40,001-60,000 tows per year - Subscription Fee (annual) - AR-01 services Plus 24/7 Support. Dispatch, live agents, no finances are handled. This service requires the purchase of AR-08.1. | D35: SaaS | F35: 825000 | G35: 0.01 | H35: 816750 | I35: EA
A36: Autura | B36: AR-04.8 | C36: Dispatch Management ("Dispatch Enterprise") 60,001-80,000 tows per year - Subscription Fee (annual) - AR-01 services Plus 24/7 Support. Dispatch, live agents, no finances are handled. This service requires the purchase of AR-08.1. | D36: SaaS | F36: 1060000 | G36: 0.01 | H36: 1049400 | I36: EA
A37: Autura | B37: AR-04.9 | C37: Dispatch Management ("Dispatch Enterprise") 80,001+ tows per year - Subscription Fee (annual) - AR-01 services Plus 24/7 Support. Dispatch, live agents, no finances are handled. This service requires the purchase of AR-08.1. | D37: SaaS | F37: 3000000 | G37: 0.01 | H37: 2970000 | I37: EA
A38: Autura | B38: AR-05.1 | C38: Dispatch Management and PPI Management ("Dispatch Enterprise +") 0-2,500 tows per year - Subscription Fee (annual) -ARIES and Private Property Impound (PPI), vehicle impound and repo tracking. This service requires the purchase of AR-08.1. | D38: SaaS | F38: 19800 | G38: 0.01 | H38: 19602 | I38: EA
A39: Autura | B39: AR-05.2 | C39: Dispatch Management and PPI Management ("Dispatch Enterprise +") 2,501-6,000 tows per year - Subscription Fee (annual) -ARIES and Private Property Impound (PPI), vehicle impound and repo tracking. This service requires the purchase of AR-08.1. | D39: SaaS | F39: 96000 | G39: 0.01 | H39: 95040 | I39: EA
A40: Autura | B40: AR-05.3 | C40: Dispatch Management and PPI Management ("Dispatch Enterprise +") 6,001-12,000 tows per year - Subscription Fee (annual) -ARIES and Private Property Impound (PPI), vehicle impound and repo tracking. This service requires the purchase of AR-08.1. | D40: SaaS | F40: 213000 | G40: 0.01 | H40: 210870 | I40: EA
A41: Autura | B41: AR-05.4 | C41: Dispatch Management and PPI Management ("Dispatch Enterprise +") 12,001-18,000 tows per year - Subscription Fee (annual) -ARIES and Private Property Impound (PPI), vehicle impound and repo tracking. This service requires the purchase of AR-08.1. | D41: SaaS | F41: 360000 | G41: 0.01 | H41: 356400 | I41: EA
A42: Autura | B42: AR-05.5 | C42: Dispatch Management and PPI Management ("Dispatch Enterprise +") 18,001-25,000 tows per year - Subscription Fee (annual) -ARIES and Private Property Impound (PPI), vehicle impound and repo tracking. This service requires the purchase of AR-08.1. | D42: SaaS | F42: 492000 | G42: 0.01 | H42: 487080 | I42: EA
A43: Autura | B43: AR-05.6 | C43: Dispatch Management and PPI Management ("Dispatch Enterprise +") 25,001-40,000 tows per year - Subscription Fee (annual) -ARIES and Private Property Impound (PPI), vehicle impound and repo tracking. This service requires the purchase of AR-08.1. | D43: SaaS | F43: 625000 | G43: 0.01 | H43: 618750 | I43: EA
A44: Autura | B44: AR-05.7 | C44: Dispatch Management and PPI Management ("Dispatch Enterprise +") 40,001-60,000 tows per year - Subscription Fee (annual) -ARIES and Private Property Impound (PPI), vehicle impound and repo tracking. This service requires the purchase of AR-08.1. | D44: SaaS | F44: 825000 | G44: 0.01 | H44: 816750 | I44: EA
A45: Autura | B45: AR-05.8 | C45: Dispatch Management and PPI Management ("Dispatch Enterprise +") 60,001-80,000 tows per year - Subscription Fee (annual) -ARIES and Private Property Impound (PPI), vehicle impound and repo tracking. This service requires the purchase of AR-08.1. | D45: SaaS | F45: 1060000 | G45: 0.01 | H45: 1049400 | I45: EA
A46: Autura | B46: AR-05.9 | C46: Dispatch Management and PPI Management ("Dispatch Enterprise +") 80,001+ tows per year - Subscription Fee (annual) -ARIES and Private Property Impound (PPI), vehicle impound and repo tracking. This service requires the purchase of AR-08.1. | D46: SaaS | F46: 3000000 | G46: 0.01 | H46: 2970000 | I46: EA
A47: Autura | B47: AR-06.1 | C47: Dispatch and Impound Management ("Enterprise") 0-2,500 tows per year - Subscription Fee (annual) - ARIES Dispatch and 24 x 7 support. Consisting of dispatch, live agents, and funds are handled. This service requires the purchase of AR-08.1. | D47: SaaS | F47: 22500 | G47: 0.01 | H47: 22275 | I47: EA
A48: Autura | B48: AR-06.2 | C48: Dispatch and Impound Management ("Enterprise") 2,501-6,000 tows per year - Subscription Fee (annual) - ARIES Dispatch and 24 x 7 support. Consisting of dispatch, live agents, and funds are handled. This service requires the purchase of AR-08.1. | D48: SaaS | F48: 108000 | G48: 0.01 | H48: 106920 | I48: EA
A49: Autura | B49: AR-06.3 | C49: Dispatch and Impound Management ("Enterprise") 6,001 - 12,000 tows per year - Subscription Fee (annual) - ARIES Dispatch and 24 x 7 support. Consisting of dispatch, live agents, and funds are handled. This service requires the purchase of AR-08.1. | D49: SaaS | F49: 249000 | G49: 0.01 | H49: 246510 | I49: EA
A50: Autura | B50: AR-06.4 | C50: Dispatch and Impound Management ("Enterprise") 12,001-18,000 tows per year - Subscription Fee (annual) - ARIES Dispatch and 24 x 7 support. Consisting of dispatch, live agents, and funds are handled. This service requires the purchase of AR-08.1. | D50: SaaS | F50: 405000 | G50: 0.01 | H50: 400950 | I50: EA
A51: Autura | B51: AR-06.5 | C51: Dispatch and Impound Management ("Enterprise") 18,001-25,000 Tows per year - Subscription Fee (annual) - ARIES Dispatch and 24 x 7 support. Consisting of dispatch, live agents, and funds are handled. This service requires the purchase of AR-08.1. | D51: SaaS | F51: 549000 | G51: 0.01 | H51: 543510 | I51: EA
A52: Autura | B52: AR-06.6 | C52: Dispatch and Impound Management ("Enterprise") 25,001-40,000 tows per year - Subscription Fee (annual) - ARIES Dispatch and 24 x 7 support. Consisting of dispatch, live agents, and funds are handled. This service requires the purchase of AR-08.1. | D52: SaaS | F52: 700000 | G52: 0.01 | H52: 693000 | I52: EA
A53: Autura | B53: AR-06.7 | C53: Dispatch and Impound Management ("Enterprise") 40,001-60,000 tows per year - Subscription Fee (annual) - ARIES Dispatch and 24 x 7 support. Consisting of dispatch, live agents, and funds are handled. This service requires the purchase of AR-08.1. | D53: SaaS | F53: 950000 | G53: 0.01 | H53: 940500 | I53: EA
A54: Autura | B54: AR-06.8 | C54: Dispatch and Impound Management ("Enterprise") 60,001-80,000 tows per year - Subscription Fee (annual) - ARIES Dispatch and 24 x 7 support. Consisting of dispatch, live agents, and funds are handled. This service requires the purchase of AR-08.1. | D54: SaaS | F54: 1280000 | G54: 0.01 | H54: 1267200 | I54: EA
A55: Autura | B55: AR-06.9 | C55: Dispatch and Impound Management ("Enterprise") 80,001+ Tows per year - Subscription Fee (annual) - ARIES Dispatch and 24 x 7 support. Consisting of dispatch, live agents, and funds are handled. This service requires the purchase of AR-08.1. | D55: SaaS | F55: 3000000 | G55: 0.01 | H55: 2970000 | I55: EA
A56: Autura | B56: AR-07.1 | C56: Dispatch, Impound and PPI Management ("Enterprise +") 0-2,500 tows per year - Subscription Fee (annual) - ARIES Dispatch, Impound, and PPI Portal streamline vehicle impound/repo tracking. This service requires the purchase of AR-08.1. | D56: SaaS | F56: 27900 | G56: 0.01 | H56: 27621 | I56: EA
A57: Autura | B57: AR-07.2 | C57: Dispatch, Impound and PPI Management ("Enterprise +") 2,501-6,000 tows per year - Subscription Fee (annual) - ARIES Dispatch, Impound, and PPI Portal streamline vehicle impound/repo tracking. This service requires the purchase of AR-08.1. | D57: SaaS | F57: 118800 | G57: 0.01 | H57: 117612 | I57: EA
A58: Autura | B58: AR-07.3 | C58: Dispatch, Impound and PPI Management ("Enterprise +") 6,001 - 12,000 tows per year - Subscription Fee (annual) - ARIES Dispatch, Impound, and PPI Portal streamline vehicle impound/repo tracking. This service requires the purchase of AR-08.1. | D58: SaaS | F58: 270000 | G58: 0.01 | H58: 267300 | I58: EA
A59: Autura | B59: AR-07.4 | C59: Dispatch, Impound and PPI Management ("Enterprise +") 12,001 - 18,000 tows per year - Subscription Fee (annual) - ARIES Dispatch, Impound, and PPI Portal streamline vehicle impound/repo tracking. This service requires the purchase of AR-08.1. | D59: SaaS | F59: 444000 | G59: 0.01 | H59: 439560 | I59: EA
A60: Autura | B60: AR-07.5 | C60: Dispatch, Impound and PPI Management ("Enterprise +") 18,001 - 25,000 Tows per year - Subscription Fee (annual) - ARIES Dispatch, Impound, and PPI Portal streamline vehicle impound/repo tracking. This service requires the purchase of AR-08.1. | D60: SaaS | F60: 630000 | G60: 0.01 | H60: 623700 | I60: EA
A61: Autura | B61: AR-07.6 | C61: Dispatch, Impound and PPI Management ("Enterprise +") 25,001 - 40,000 Tows per year - Subscription Fee (annual) - ARIES Dispatch, Impound, and PPI Portal streamline vehicle impound/repo tracking. This service requires the purchase of AR-08.1. | D61: SaaS | F61: 850000 | G61: 0.01 | H61: 841500 | I61: EA
A62: Autura | B62: AR-07.7 | C62: Dispatch, Impound and PPI Management ("Enterprise +") 40,001-60,000 tows per year - Subscription Fee (annual) - ARIES Dispatch, Impound, and PPI Portal streamline vehicle impound/repo tracking. This service requires the purchase of AR-08.1. | D62: SaaS | F62: 1125000 | G62: 0.01 | H62: 1113750 | I62: EA
A63: Autura | B63: AR-07.8 | C63: Dispatch, Impound and PPI Management ("Enterprise +") 60,001-80,000 tows per year - Subscription Fee (annual) - ARIES Dispatch, Impound, and PPI Portal streamline vehicle impound/repo tracking. This service requires the purchase of AR-08.1. | D63: SaaS | F63: 1440000 | G63: 0.01 | H63: 1425600 | I63: EA
A64: Autura | B64: AR-07.9 | C64: Dispatch, Impound and PPI Management ("Enterprise +") 80,001+ Tows per year - Subscription Fee (annual) - ARIES Dispatch, Impound, and PPI Portal streamline vehicle impound/repo tracking. This service requires the purchase of AR-08.1. | D64: SaaS | F64: 3000000 | G64: 0.01 | H64: 2970000 | I64: EA
A65: Autura | B65: AR-08.1 | C65: One-time fee per Emergency Communications Center (ECC) - implementation and training of agency and tow company staff utilizing online videos and a “train-the-trainer” concept. | D65: SaaS | F65: 30000 | G65: 0.01 | H65: 29700 | I65: EA
A66: Autura | B66: AR-09.1 | C66: Implementation and Training Services PPI Only: One-time fee per Agency - implementation and training of agency staff utilizing online video and a virtual “train-the-trainer” concept. Includes sample letters to PPI towers. | D66: SaaS | F66: 7500 | G66: 0.01 | H66: 7425 | I66: EA
A67: Autura | B67: AR-11.1 | C67: PPI-Repo Reporting 0-2,500 tows per year - Subscription Fee (annual) - Private Property Impound (PPI) Portal supports reporting and tracking of private property vehicle impounds/repos. This service requires the purchase of AR-09.1 | D67: SaaS | F67: 6000 | G67: 0.01 | H67: 5940 | I67: EA
A68: Autura | B68: AR-11.2 | C68: PPI-Repo Reporting 2,501-6,000 tows per year - Subscription Fee (annual) - Private Property Impound (PPI) Portal supports reporting and tracking of private property vehicle impounds/repos. This service requires the purchase of AR-09.1 | D68: SaaS | F68: 12000 | G68: 0.01 | H68: 11880 | I68: EA
A69: Autura | B69: AR-11.3 | C69: PPI-Repo Reporting 6,001-12,000 tows per year - Subscription Fee (annual) - Private Property Impound (PPI) Portal supports reporting and tracking of private property vehicle impounds/repos. This service requires the purchase of AR-09.1 | D69: SaaS | F69: 24000 | G69: 0.01 | H69: 23760 | I69: EA
A70: Autura | B70: AR-11.4 | C70: PPI-Repo Reporting 12,001-18,000 tows per year - Subscription Fee (annual) - Private Property Impound (PPI) Portal supports reporting and tracking of private property vehicle impounds/repos. This service requires the purchase of AR-09.1 | D70: SaaS | F70: 42000 | G70: 0.01 | H70: 41580 | I70: EA
A71: Autura | B71: AR-11.5 | C71: PPI-Repo Reporting 18,001-25,000 tows per year - Subscription Fee (annual) - Private Property Impound (PPI) Portal supports reporting and tracking of private property vehicle impounds/repos. This service requires the purchase of AR-09.1 | D71: SaaS | F71: 90000 | G71: 0.01 | H71: 89100 | I71: EA
A72: Autura | B72: AR-11.6 | C72: PPI-Repo Reporting 25,001-40,000 tows per year - Subscription Fee (annual) - Private Property Impound (PPI) Portal supports reporting and tracking of private property vehicle impounds/repos. This service requires the purchase of AR-09.1 | D72: SaaS | F72: 110000 | G72: 0.01 | H72: 108900 | I72: EA
A73: Autura | B73: AR-11.7 | C73: PPI-Repo Reporting 40,001+ tows per year - Subscription Fee (annual) - Private Property Impound (PPI) Portal supports reporting and tracking of private property vehicle impounds/repos. This service requires the purchase of AR-09.1 | D73: SaaS | F73: 125000 | G73: 0.01 | H73: 123750 | I73: EA
A74: Autura | B74: AR-17 | C74: Impound Notices to Lien Holders and Other Interested Parties (Finance Companies, etc.) | D74: SaaS | F74: 10000 | G74: 0.01 | H74: 9900 | I74: EA
A75: Autura | B75: AR-18 | C75: Integration with Computer Aided Dispatch (“CAD”) system utilizing standard and existing ARIES/Dispatch web service; Subscription Fee (annual) | D75: SaaS | F75: 5000 | G75: 0.01 | H75: 4950 | I75: EA
A76: Autura | B76: AR-19 | C76: Integration with CommSys (https://commsys.com/ ) for state CJIS system interface (Impound entry, stolen vehicle query); Subscription Fee (annual) | D76: SaaS | F76: 10000 | G76: 0.01 | H76: 9900 | I76: EA
A77: Autura | B77: AR-20 | C77: Integration with other third-party systems; Subscription Fee (annual) | D77: SaaS | F77: 20000 | G77: 0.01 | H77: 19800 | I77: EA
A78: Autura | B78: AR-21 | C78: Autura Marketplace - vehicle auction platform for vehicles that go unclaimed; 15% of ASP per vehicle sold/per month | D78: SaaS | F78: 750000 | G78: 0.01 | H78: 742500 | I78: EA

Sheet AWS US (All regions)
A1: Manufacturer | B1: Part Number | C1: Description | D1: Category | E1: Sub-Category | F1: LIST PRICE | G1: MINIMUM DISCOUNT | H1: NVP PRICE
A2: Amazon | B2: A2I-UEO-160-A44-258-123-00-00-00 | C2: AmazonA2I - US East (Ohio) - Machine Learning Custom Any First 50,000 objects | D2: MaaS | E2: Analytics | F2: 0.08 | G2: 0.01 | H2: 0.0792
A3: Amazon | B3: A2I-UEO-160-A44-258-124-00-00-00 | C3: AmazonA2I - US East (Ohio) - Machine Learning Custom Any Next 950,000 objects | D3: MaaS | E3: Analytics | F3: 0.04 | G3: 0.01 | H3: 0.0396
A4: Amazon | B4: A2I-UEO-160-A44-258-125-00-00-00 | C4: AmazonA2I - US East (Ohio) - Machine Learning Custom Any More than 1,000,000 objects | D4: MaaS | E4: Analytics | F4: 0.02 | G4: 0.01 | H4: 0.0198
A5: Amazon | B5: A2I-UEO-160-A44-406-00-00-00-00 | C5: AmazonA2I - US East (Ohio) - Machine Learning Custom MTurkTaskAt0.012 | D5: MaaS | E5: Analytics | F5: 0.012 | G5: 0.01 | H5: 0.01188
A6: Amazon | B6: A2I-UEO-160-A44-407-00-00-00-00 | C6: AmazonA2I - US East (Ohio) - Machine Learning Custom MTurkTaskAt0.036 | D6: MaaS | E6: Analytics | F6: 0.036 | G6: 0.01 | H6: 0.03564
A7: Amazon | B7: A2I-UEO-160-A44-409-00-00-00-00 | C7: AmazonA2I - US East (Ohio) - Machine Learning Custom MTurkTaskAt0.048 | D7: MaaS | E7: Analytics | F7: 0.048 | G7: 0.01 | H7: 0.04752
A8: Amazon | B8: A2I-UEO-160-A44-410-00-00-00-00 | C8: AmazonA2I - US East (Ohio) - Machine Learning Custom MTurkTaskAt0.060 | D8: MaaS | E8: Analytics | F8: 0.06 | G8: 0.01 | H8: 0.0594
A9: Amazon | B9: A2I-UEO-160-A44-411-00-00-00-00 | C9: AmazonA2I - US East (Ohio) - Machine Learning Custom MTurkTaskAt0.072 | D9: MaaS | E9: Analytics | F9: 0.072 | G9: 0.01 | H9: 0.07128
A10: Amazon | B10: A2I-UEO-160-A44-412-00-00-00-00 | C10: AmazonA2I - US East (Ohio) - Machine Learning Custom MTurkTaskAt1.080 | D10: MaaS | E10: Analytics | F10: 1.08 | G10: 0.01 | H10: 1.0692
A11: Amazon | B11: A2I-UEO-160-A44-413-00-00-00-00 | C11: AmazonA2I - US East (Ohio) - Machine Learning Custom MTurkTaskAt0.120 | D11: MaaS | E11: Analytics | F11: 0.12 | G11: 0.01 | H11: 0.1188
A12: Amazon | B12: A2I-UEO-160-A44-415-00-00-00-00 | C12: AmazonA2I - US East (Ohio) - Machine Learning Custom MTurkTaskAt1.200 | D12: MaaS | E12: Analytics | F12: 1.2 | G12: 0.01 | H12: 1.188
A13: Amazon | B13: A2I-UEO-160-A44-416-00-00-00-00 | C13: AmazonA2I - US East (Ohio) - Machine Learning Custom MTurkTaskAt0.240 | D13: MaaS | E13: Analytics | F13: 0.24 | G13: 0.01 | H13: 0.2376
A14: Amazon | B14: A2I-UEO-160-A44-418-00-00-00-00 | C14: AmazonA2I - US East (Ohio) - Machine Learning Custom MTurkTaskAt0.600 | D14: MaaS | E14: Analytics | F14: 0.6 | G14: 0.01 | H14: 0.594
A15: Amazon | B15: A2I-UEO-160-A44-419-00-00-00-00 | C15: AmazonA2I - US East (Ohio) - Machine Learning Custom MTurkTaskAt0.720 | D15: MaaS | E15: Analytics | F15: 0.72 | G15: 0.01 | H15: 0.7128
A16: Amazon | B16: A2I-UEO-160-A44-421-00-00-00-00 | C16: AmazonA2I - US East (Ohio) - Machine Learning Custom MTurkTaskAt0.840 | D16: MaaS | E16: Analytics | F16: 0.84 | G16: 0.01 | H16: 0.8316
A17: Amazon | B17: A2I-UEO-160-A44-422-00-00-00-00 | C17: AmazonA2I - US East (Ohio) - Machine Learning Custom MTurkTaskAt0.960 | D17: MaaS | E17: Analytics | F17: 0.96 | G17: 0.01 | H17: 0.9504
A18: Amazon | B18: A2I-UEO-160-A44-424-00-00-00-00 | C18: AmazonA2I - US East (Ohio) - Machine Learning Custom MTurkTaskAt0.360 | D18: MaaS | E18: Analytics | F18: 0.36 | G18: 0.01 | H18: 0.3564
A19: Amazon | B19: A2I-UEO-160-A44-425-00-00-00-00 | C19: AmazonA2I - US East (Ohio) - Machine Learning Custom MTurkTaskAt0.480 | D19: MaaS | E19: Analytics | F19: 0.48 | G19: 0.01 | H19: 0.4752
A20: Amazon | B20: A2I-UEO-160-A44-428-00-00-00-00 | C20: AmazonA2I - US East (Ohio) - Machine Learning Custom MTurkTaskAt0.024 | D20: MaaS | E20: Analytics | F20: 0.024 | G20: 0.01 | H20: 0.02376
A21: Amazon | B21: A2I-UEO-160-A92-258-121-00-00-00 | C21: AmazonA2I - US East (Ohio) - Machine Learning AnalyzeDocument Any First 100,000 pages | D21: MaaS | E21: Analytics | F21: 0.03 | G21: 0.01 | H21: 0.0297
A22: Amazon | B22: A2I-UEO-160-A92-258-122-00-00-00 | C22: AmazonA2I - US East (Ohio) - Machine Learning AnalyzeDocument Any More than 100,000 pages | D22: MaaS | E22: Analytics | F22: 0.02 | G22: 0.01 | H22: 0.0198
A23: Amazon | B23: A2I-UEO-160-A92-406-00-00-00-00 | C23: AmazonA2I - US East (Ohio) - Machine Learning AnalyzeDocument MTurkTaskAt0.012 | D23: MaaS | E23: Analytics | F23: 0.012 | G23: 0.01 | H23: 0.01188
A24: Amazon | B24: A2I-UEO-160-A92-407-00-00-00-00 | C24: AmazonA2I - US East (Ohio) - Machine Learning AnalyzeDocument MTurkTaskAt0.036 | D24: MaaS | E24: Analytics | F24: 0.036 | G24: 0.01 | H24: 0.03564
A25: Amazon | B25: A2I-UEO-160-A92-408-00-00-00-00 | C25: AmazonA2I - US East (Ohio) - Machine Learning AnalyzeDocument MTurkTaskAt2.040 | D25: MaaS | E25: Analytics | F25: 2.04 | G25: 0.01 | H25: 2.0196
A26: Amazon | B26: A2I-UEO-160-A92-409-00-00-00-00 | C26: AmazonA2I - US East (Ohio) - Machine Learning AnalyzeDocument MTurkTaskAt0.048 | D26: MaaS | E26: Analytics | F26: 0.048 | G26: 0.01 | H26: 0.04752
A27: Amazon | B27: A2I-UEO-160-A92-410-00-00-00-00 | C27: AmazonA2I - US East (Ohio) - Machine Learning AnalyzeDocument MTurkTaskAt0.060 | D27: MaaS | E27: Analytics | F27: 0.06 | G27: 0.01 | H27: 0.0594
A28: Amazon | B28: A2I-UEO-160-A92-411-00-00-00-00 | C28: AmazonA2I - US East (Ohio) - Machine Learning AnalyzeDocument MTurkTaskAt0.072 | D28: MaaS | E28: Analytics | F28: 0.072 | G28: 0.01 | H28: 0.07128
A29: Amazon | B29: A2I-UEO-160-A92-412-00-00-00-00 | C29: AmazonA2I - US East (Ohio) - Machine Learning AnalyzeDocument MTurkTaskAt1.080 | D29: MaaS | E29: Analytics | F29: 1.08 | G29: 0.01 | H29: 1.0692
A30: Amazon | B30: A2I-UEO-160-A92-413-00-00-00-00 | C30: AmazonA2I - US East (Ohio) - Machine Learning AnalyzeDocument MTurkTaskAt0.120 | D30: MaaS | E30: Analytics | F30: 0.12 | G30: 0.01 | H30: 0.1188
A31: Amazon | B31: A2I-UEO-160-A92-414-00-00-00-00 | C31: AmazonA2I - US East (Ohio) - Machine Learning AnalyzeDocument MTurkTaskAt2.160 | D31: MaaS | E31: Analytics | F31: 2.16 | G31: 0.01 | H31: 2.1384
A32: Amazon | B32: A2I-UEO-160-A92-415-00-00-00-00 | C32: AmazonA2I - US East (Ohio) - Machine Learning AnalyzeDocument MTurkTaskAt1.200 | D32: MaaS | E32: Analytics | F32: 1.2 | G32: 0.01 | H32: 1.188
A33: Amazon | B33: A2I-UEO-160-A92-416-00-00-00-00 | C33: AmazonA2I - US East (Ohio) - Machine Learning AnalyzeDocument MTurkTaskAt0.240 | D33: MaaS | E33: Analytics | F33: 0.24 | G33: 0.01 | H33: 0.2376
A34: Amazon | B34: A2I-UEO-160-A92-417-00-00-00-00 | C34: AmazonA2I - US East (Ohio) - Machine Learning AnalyzeDocument MTurkTaskAt1.320 | D34: MaaS | E34: Analytics | F34: 1.32 | G34: 0.01 | H34: 1.3068
A35: Amazon | B35: A2I-UEO-160-A92-418-00-00-00-00 | C35: AmazonA2I - US East (Ohio) - Machine Learning AnalyzeDocument MTurkTaskAt0.600 | D35: MaaS | E35: Analytics | F35: 0.6 | G35: 0.01 | H35: 0.594
A36: Amazon | B36: A2I-UEO-160-A92-419-00-00-00-00 | C36: AmazonA2I - US East (Ohio) - Machine Learning AnalyzeDocument MTurkTaskAt0.720 | D36: MaaS | E36: Analytics | F36: 0.72 | G36: 0.01 | H36: 0.7128
A37: Amazon | B37: A2I-UEO-160-A92-420-00-00-00-00 | C37: AmazonA2I - US East (Ohio) - Machine Learning AnalyzeDocument MTurkTaskAt1.800 | D37: MaaS | E37: Analytics | F37: 1.8 | G37: 0.01 | H37: 1.782
A38: Amazon | B38: A2I-UEO-160-A92-421-00-00-00-00 | C38: AmazonA2I - US East (Ohio) - Machine Learning AnalyzeDocument MTurkTaskAt0.840 | D38: MaaS | E38: Analytics | F38: 0.84 | G38: 0.01 | H38: 0.8316
A39: Amazon | B39: A2I-UEO-160-A92-422-00-00-00-00 | C39: AmazonA2I - US East (Ohio) - Machine Learning AnalyzeDocument MTurkTaskAt0.960 | D39: MaaS | E39: Analytics | F39: 0.96 | G39: 0.01 | H39: 0.9504
A40: Amazon | B40: A2I-UEO-160-A92-423-00-00-00-00 | C40: AmazonA2I - US East (Ohio) - Machine Learning AnalyzeDocument MTurkTaskAt1.920 | D40: MaaS | E40: Analytics | F40: 1.92 | G40: 0.01 | H40: 1.9008
A41: Amazon | B41: A2I-UEO-160-A92-424-00-00-00-00 | C41: AmazonA2I - US East (Ohio) - Machine Learning AnalyzeDocument MTurkTaskAt0.360 | D41: MaaS | E41: Analytics | F41: 0.36 | G41: 0.01 | H41: 0.3564
A42: Amazon | B42: A2I-UEO-160-A92-425-00-00-00-00 | C42: AmazonA2I - US East (Ohio) - Machine Learning AnalyzeDocument MTurkTaskAt0.480 | D42: MaaS | E42: Analytics | F42: 0.48 | G42: 0.01 | H42: 0.4752
A43: Amazon | B43: A2I-UEO-160-A92-426-00-00-00-00 | C43: AmazonA2I - US East (Ohio) - Machine Learning AnalyzeDocument MTurkTaskAt2.280 | D43: MaaS | E43: Analytics | F43: 2.28 | G43: 0.01 | H43: 2.2572
A44: Amazon | B44: A2I-UEO-160-A92-427-00-00-00-00 | C44: AmazonA2I - US East (Ohio) - Machine Learning AnalyzeDocument MTurkTaskAt1.440 | D44: MaaS | E44: Analytics | F44: 1.44 | G44: 0.01 | H44: 1.4256
A45: Amazon | B45: A2I-UEO-160-A92-428-00-00-00-00 | C45: AmazonA2I - US East (Ohio) - Machine Learning AnalyzeDocument MTurkTaskAt0.024 | D45: MaaS | E45: Analytics | F45: 0.024 | G45: 0.01 | H45: 0.02376
A46: Amazon | B46: A2I-UEO-160-A92-429-00-00-00-00 | C46: AmazonA2I - US East (Ohio) - Machine Learning AnalyzeDocument MTurkTaskAt1.560 | D46: MaaS | E46: Analytics | F46: 1.56 | G46: 0.01 | H46: 1.5444
A47: Amazon | B47: A2I-UEO-160-A92-430-00-00-00-00 | C47: AmazonA2I - US East (Ohio) - Machine Learning AnalyzeDocument MTurkTaskAt2.400 | D47: MaaS | E47: Analytics | F47: 2.4 | G47: 0.01 | H47: 2.376
A48: Amazon | B48: A2I-UEO-160-A92-431-00-00-00-00 | C48: AmazonA2I - US East (Ohio) - Machine Learning AnalyzeDocument MTurkTaskAt1.680 | D48: MaaS | E48: Analytics | F48: 1.68 | G48: 0.01 | H48: 1.6632
A49: Amazon | B49: A2I-UEO-160-A93-258-121-00-00-00 | C49: AmazonA2I - US East (Ohio) - Machine Learning DetectModerationLabels Any First 100,000 pages | D49: MaaS | E49: Analytics | F49: 0.03 | G49: 0.01 | H49: 0.0297
A50: Amazon | B50: A2I-UEO-160-A93-258-122-00-00-00 | C50: AmazonA2I - US East (Ohio) - Machine Learning DetectModerationLabels Any More than 100,000 pages | D50: MaaS | E50: Analytics | F50: 0.02 | G50: 0.01 | H50: 0.0198
A51: Amazon | B51: A2I-UEO-160-A93-406-00-00-00-00 | C51: AmazonA2I - US East (Ohio) - Machine Learning DetectModerationLabels MTurkTaskAt0.012 | D51: MaaS | E51: Analytics | F51: 0.012 | G51: 0.01 | H51: 0.01188
A52: Amazon | B52: A2I-UEO-160-A93-407-00-00-00-00 | C52: AmazonA2I - US East (Ohio) - Machine Learning DetectModerationLabels MTurkTaskAt0.036 | D52: MaaS | E52: Analytics | F52: 0.036 | G52: 0.01 | H52: 0.03564
A53: Amazon | B53: A2I-UEO-160-A93-409-00-00-00-00 | C53: AmazonA2I - US East (Ohio) - Machine Learning DetectModerationLabels MTurkTaskAt0.048 | D53: MaaS | E53: Analytics | F53: 0.048 | G53: 0.01 | H53: 0.04752
A54: Amazon | B54: A2I-UEO-160-A93-410-00-00-00-00 | C54: AmazonA2I - US East (Ohio) - Machine Learning DetectModerationLabels MTurkTaskAt0.060 | D54: MaaS | E54: Analytics | F54: 0.06 | G54: 0.01 | H54: 0.0594
A55: Amazon | B55: A2I-UEO-160-A93-411-00-00-00-00 | C55: AmazonA2I - US East (Ohio) - Machine Learning DetectModerationLabels MTurkTaskAt0.072 | D55: MaaS | E55: Analytics | F55: 0.072 | G55: 0.01 | H55: 0.07128
A56: Amazon | B56: A2I-UEO-160-A93-412-00-00-00-00 | C56: AmazonA2I - US East (Ohio) - Machine Learning DetectModerationLabels MTurkTaskAt1.080 | D56: MaaS | E56: Analytics | F56: 1.08 | G56: 0.01 | H56: 1.0692
A57: Amazon | B57: A2I-UEO-160-A93-413-00-00-00-00 | C57: AmazonA2I - US East (Ohio) - Machine Learning DetectModerationLabels MTurkTaskAt0.120 | D57: MaaS | E57: Analytics | F57: 0.12 | G57: 0.01 | H57: 0.1188
A58: Amazon | B58: A2I-UEO-160-A93-415-00-00-00-00 | C58: AmazonA2I - US East (Ohio) - Machine Learning DetectModerationLabels MTurkTaskAt1.200 | D58: MaaS | E58: Analytics | F58: 1.2 | G58: 0.01 | H58: 1.188
A59: Amazon | B59: A2I-UEO-160-A93-416-00-00-00-00 | C59: AmazonA2I - US East (Ohio) - Machine Learning DetectModerationLabels MTurkTaskAt0.240 | D59: MaaS | E59: Analytics | F59: 0.24 | G59: 0.01 | H59: 0.2376
A60: Amazon | B60: A2I-UEO-160-A93-418-00-00-00-00 | C60: AmazonA2I - US East (Ohio) - Machine Learning DetectModerationLabels MTurkTaskAt0.600 | D60: MaaS | E60: Analytics | F60: 0.6 | G60: 0.01 | H60: 0.594
A61: Amazon | B61: A2I-UEO-160-A93-419-00-00-00-00 | C61: AmazonA2I - US East (Ohio) - Machine Learning DetectModerationLabels MTurkTaskAt0.720 | D61: MaaS | E61: Analytics | F61: 0.72 | G61: 0.01 | H61: 0.7128
A62: Amazon | B62: A2I-UEO-160-A93-421-00-00-00-00 | C62: AmazonA2I - US East (Ohio) - Machine Learning DetectModerationLabels MTurkTaskAt0.840 | D62: MaaS | E62: Analytics | F62: 0.84 | G62: 0.01 | H62: 0.8316
A63: Amazon | B63: A2I-UEO-160-A93-422-00-00-00-00 | C63: AmazonA2I - US East (Ohio) - Machine Learning DetectModerationLabels MTurkTaskAt0.960 | D63: MaaS | E63: Analytics | F63: 0.96 | G63: 0.01 | H63: 0.9504
A64: Amazon | B64: A2I-UEO-160-A93-424-00-00-00-00 | C64: AmazonA2I - US East (Ohio) - Machine Learning DetectModerationLabels MTurkTaskAt0.360 | D64: MaaS | E64: Analytics | F64: 0.36 | G64: 0.01 | H64: 0.3564
A65: Amazon | B65: A2I-UEO-160-A93-425-00-00-00-00 | C65: AmazonA2I - US East (Ohio) - Machine Learning DetectModerationLabels MTurkTaskAt0.480 | D65: MaaS | E65: Analytics | F65: 0.48 | G65: 0.01 | H65: 0.4752
A66: Amazon | B66: A2I-UEO-160-A93-428-00-00-00-00 | C66: AmazonA2I - US East (Ohio) - Machine Learning DetectModerationLabels MTurkTaskAt0.024 | D66: MaaS | E66: Analytics | F66: 0.024 | G66: 0.01 | H66: 0.02376
A67: Amazon | B67: A2I-USE-160-A44-258-123-00-00-00 | C67: AmazonA2I - US East (Northern Virginia) - Machine Learning Custom Any First 50,000 objects | D67: MaaS | E67: Analytics | F67: 0.08 | G67: 0.01 | H67: 0.0792
A68: Amazon | B68: A2I-USE-160-A44-258-124-00-00-00 | C68: AmazonA2I - US East (Northern Virginia) - Machine Learning Custom Any Next 950,000 objects | D68: MaaS | E68: Analytics | F68: 0.04 | G68: 0.01 | H68: 0.0396
A69: Amazon | B69: A2I-USE-160-A44-258-125-00-00-00 | C69: AmazonA2I - US East (Northern Virginia) - Machine Learning Custom Any More than 1,000,000 objects | D69: MaaS | E69: Analytics | F69: 0.02 | G69: 0.01 | H69: 0.0198
A70: Amazon | B70: A2I-USE-160-A44-406-00-00-00-00 | C70: AmazonA2I - US East (Northern Virginia) - Machine Learning Custom MTurkTaskAt0.012 | D70: MaaS | E70: Analytics | F70: 0.012 | G70: 0.01 | H70: 0.01188
A71: Amazon | B71: A2I-USE-160-A44-407-00-00-00-00 | C71: AmazonA2I - US East (Northern Virginia) - Machine Learning Custom MTurkTaskAt0.036 | D71: MaaS | E71: Analytics | F71: 0.036 | G71: 0.01 | H71: 0.03564
A72: Amazon | B72: A2I-USE-160-A44-409-00-00-00-00 | C72: AmazonA2I - US East (Northern Virginia) - Machine Learning Custom MTurkTaskAt0.048 | D72: MaaS | E72: Analytics | F72: 0.048 | G72: 0.01 | H72: 0.04752
A73: Amazon | B73: A2I-USE-160-A44-410-00-00-00-00 | C73: AmazonA2I - US East (Northern Virginia) - Machine Learning Custom MTurkTaskAt0.060 | D73: MaaS | E73: Analytics | F73: 0.06 | G73: 0.01 | H73: 0.0594
A74: Amazon | B74: A2I-USE-160-A44-411-00-00-00-00 | C74: AmazonA2I - US East (Northern Virginia) - Machine Learning Custom MTurkTaskAt0.072 | D74: MaaS | E74: Analytics | F74: 0.072 | G74: 0.01 | H74: 0.07128
A75: Amazon | B75: A2I-USE-160-A44-412-00-00-00-00 | C75: AmazonA2I - US East (Northern Virginia) - Machine Learning Custom MTurkTaskAt1.080 | D75: MaaS | E75: Analytics | F75: 1.08 | G75: 0.01 | H75: 1.0692
A76: Amazon | B76: A2I-USE-160-A44-413-00-00-00-00 | C76: AmazonA2I - US East (Northern Virginia) - Machine Learning Custom MTurkTaskAt0.120 | D76: MaaS | E76: Analytics | F76: 0.12 | G76: 0.01 | H76: 0.1188
A77: Amazon | B77: A2I-USE-160-A44-415-00-00-00-00 | C77: AmazonA2I - US East (Northern Virginia) - Machine Learning Custom MTurkTaskAt1.200 | D77: MaaS | E77: Analytics | F77: 1.2 | G77: 0.01 | H77: 1.188
A78: Amazon | B78: A2I-USE-160-A44-416-00-00-00-00 | C78: AmazonA2I - US East (Northern Virginia) - Machine Learning Custom MTurkTaskAt0.240 | D78: MaaS | E78: Analytics | F78: 0.24 | G78: 0.01 | H78: 0.2376
A79: Amazon | B79: A2I-USE-160-A44-418-00-00-00-00 | C79: AmazonA2I - US East (Northern Virginia) - Machine Learning Custom MTurkTaskAt0.600 | D79: MaaS | E79: Analytics | F79: 0.6 | G79: 0.01 | H79: 0.594
A80: Amazon | B80: A2I-USE-160-A44-419-00-00-00-00 | C80: AmazonA2I - US East (Northern Virginia) - Machine Learning Custom MTurkTaskAt0.720 | D80: MaaS | E80: Analytics | F80: 0.72 | G80: 0.01 | H80: 0.7128
A81: Amazon | B81: A2I-USE-160-A44-421-00-00-00-00 | C81: AmazonA2I - US East (Northern Virginia) - Machine Learning Custom MTurkTaskAt0.840 | D81: MaaS | E81: Analytics | F81: 0.84 | G81: 0.01 | H81: 0.8316
A82: Amazon | B82: A2I-USE-160-A44-422-00-00-00-00 | C82: AmazonA2I - US East (Northern Virginia) - Machine Learning Custom MTurkTaskAt0.960 | D82: MaaS | E82: Analytics | F82: 0.96 | G82: 0.01 | H82: 0.9504
A83: Amazon | B83: A2I-USE-160-A44-424-00-00-00-00 | C83: AmazonA2I - US East (Northern Virginia) - Machine Learning Custom MTurkTaskAt0.360 | D83: MaaS | E83: Analytics | F83: 0.36 | G83: 0.01 | H83: 0.3564
A84: Amazon | B84: A2I-USE-160-A44-425-00-00-00-00 | C84: AmazonA2I - US East (Northern Virginia) - Machine Learning Custom MTurkTaskAt0.480 | D84: MaaS | E84: Analytics | F84: 0.48 | G84: 0.01 | H84: 0.4752
A85: Amazon | B85: A2I-USE-160-A44-428-00-00-00-00 | C85: AmazonA2I - US East (Northern Virginia) - Machine Learning Custom MTurkTaskAt0.024 | D85: MaaS | E85: Analytics | F85: 0.024 | G85: 0.01 | H85: 0.02376
A86: Amazon | B86: A2I-USE-160-A92-258-121-00-00-00 | C86: AmazonA2I - US East (Northern Virginia) - Machine Learning AnalyzeDocument Any First 100,000 pages | D86: MaaS | E86: Analytics | F86: 0.03 | G86: 0.01 | H86: 0.0297
A87: Amazon | B87: A2I-USE-160-A92-258-122-00-00-00 | C87: AmazonA2I - US East (Northern Virginia) - Machine Learning AnalyzeDocument Any More than 100,000 pages | D87: MaaS | E87: Analytics | F87: 0.02 | G87: 0.01 | H87: 0.0198
A88: Amazon | B88: A2I-USE-160-A92-406-00-00-00-00 | C88: AmazonA2I - US East (Northern Virginia) - Machine Learning AnalyzeDocument MTurkTaskAt0.012 | D88: MaaS | E88: Analytics | F88: 0.012 | G88: 0.01 | H88: 0.01188
A89: Amazon | B89: A2I-USE-160-A92-407-00-00-00-00 | C89: AmazonA2I - US East (Northern Virginia) - Machine Learning AnalyzeDocument MTurkTaskAt0.036 | D89: MaaS | E89: Analytics | F89: 0.036 | G89: 0.01 | H89: 0.03564
A90: Amazon | B90: A2I-USE-160-A92-408-00-00-00-00 | C90: AmazonA2I - US East (Northern Virginia) - Machine Learning AnalyzeDocument MTurkTaskAt2.040 | D90: MaaS | E90: Analytics | F90: 2.04 | G90: 0.01 | H90: 2.0196
A91: Amazon | B91: A2I-USE-160-A92-409-00-00-00-00 | C91: AmazonA2I - US East (Northern Virginia) - Machine Learning AnalyzeDocument MTurkTaskAt0.048 | D91: MaaS | E91: Analytics | F91: 0.048 | G91: 0.01 | H91: 0.04752
A92: Amazon | B92: A2I-USE-160-A92-410-00-00-00-00 | C92: AmazonA2I - US East (Northern Virginia) - Machine Learning AnalyzeDocument MTurkTaskAt0.060 | D92: MaaS | E92: Analytics | F92: 0.06 | G92: 0.01 | H92: 0.0594
A93: Amazon | B93: A2I-USE-160-A92-411-00-00-00-00 | C93: AmazonA2I - US East (Northern Virginia) - Machine Learning AnalyzeDocument MTurkTaskAt0.072 | D93: MaaS | E93: Analytics | F93: 0.072 | G93: 0.01 | H93: 0.07128
A94: Amazon | B94: A2I-USE-160-A92-412-00-00-00-00 | C94: AmazonA2I - US East (Northern Virginia) - Machine Learning AnalyzeDocument MTurkTaskAt1.080 | D94: MaaS | E94: Analytics | F94: 1.08 | G94: 0.01 | H94: 1.0692
A95: Amazon | B95: A2I-USE-160-A92-413-00-00-00-00 | C95: AmazonA2I - US East (Northern Virginia) - Machine Learning AnalyzeDocument MTurkTaskAt0.120 | D95: MaaS | E95: Analytics | F95: 0.12 | G95: 0.01 | H95: 0.1188
A96: Amazon | B96: A2I-USE-160-A92-414-00-00-00-00 | C96: AmazonA2I - US East (Northern Virginia) - Machine Learning AnalyzeDocument MTurkTaskAt2.160 | D96: MaaS | E96: Analytics | F96: 2.16 | G96: 0.01 | H96: 2.1384
A97: Amazon | B97: A2I-USE-160-A92-415-00-00-00-00 | C97: AmazonA2I - US East (Northern Virginia) - Machine Learning AnalyzeDocument MTurkTaskAt1.200 | D97: MaaS | E97: Analytics | F97: 1.2 | G97: 0.01 | H97: 1.188
A98: Amazon | B98: A2I-USE-160-A92-416-00-00-00-00 | C98: AmazonA2I - US East (Northern Virginia) - Machine Learning AnalyzeDocument MTurkTaskAt0.240 | D98: MaaS | E98: Analytics | F98: 0.24 | G98: 0.01 | H98: 0.2376
A99: Amazon | B99: A2I-USE-160-A92-417-00-00-00-00 | C99: AmazonA2I - US East (Northern Virginia) - Machine Learning AnalyzeDocument MTurkTaskAt1.320 | D99: MaaS | E99: Analytics | F99: 1.32 | G99: 0.01 | H99: 1.3068
A100: Amazon | B100: A2I-USE-160-A92-418-00-00-00-00 | C100: AmazonA2I - US East (Northern Virginia) - Machine Learning AnalyzeDocument MTurkTaskAt0.600 | D100: MaaS | E100: Analytics | F100: 0.6 | G100: 0.01 | H100: 0.594
A101: Amazon | B101: A2I-USE-160-A92-419-00-00-00-00 | C101: AmazonA2I - US East (Northern Virginia) - Machine Learning AnalyzeDocument MTurkTaskAt0.720 | D101: MaaS | E101: Analytics | F101: 0.72 | G101: 0.01 | H101: 0.7128
A102: Amazon | B102: A2I-USE-160-A92-420-00-00-00-00 | C102: AmazonA2I - US East (Northern Virginia) - Machine Learning AnalyzeDocument MTurkTaskAt1.800 | D102: MaaS | E102: Analytics | F102: 1.8 | G102: 0.01 | H102: 1.782
A103: Amazon | B103: A2I-USE-160-A92-421-00-00-00-00 | C103: AmazonA2I - US East (Northern Virginia) - Machine Learning AnalyzeDocument MTurkTaskAt0.840 | D103: MaaS | E103: Analytics | F103: 0.84 | G103: 0.01 | H103: 0.8316
A104: Amazon | B104: A2I-USE-160-A92-422-00-00-00-00 | C104: AmazonA2I - US East (Northern Virginia) - Machine Learning AnalyzeDocument MTurkTaskAt0.960 | D104: MaaS | E104: Analytics | F104: 0.96 | G104: 0.01 | H104: 0.9504
A105: Amazon | B105: A2I-USE-160-A92-423-00-00-00-00 | C105: AmazonA2I - US East (Northern Virginia) - Machine Learning AnalyzeDocument MTurkTaskAt1.920 | D105: MaaS | E105: Analytics | F105: 1.92 | G105: 0.01 | H105: 1.9008
A106: Amazon | B106: A2I-USE-160-A92-424-00-00-00-00 | C106: AmazonA2I - US East (Northern Virginia) - Machine Learning AnalyzeDocument MTurkTaskAt0.360 | D106: MaaS | E106: Analytics | F106: 0.36 | G106: 0.01 | H106: 0.3564
A107: Amazon | B107: A2I-USE-160-A92-425-00-00-00-00 | C107: AmazonA2I - US East (Northern Virginia) - Machine Learning AnalyzeDocument MTurkTaskAt0.480 | D107: MaaS | E107: Analytics | F107: 0.48 | G107: 0.01 | H107: 0.4752
A108: Amazon | B108: A2I-USE-160-A92-426-00-00-00-00 | C108: AmazonA2I - US East (Northern Virginia) - Machine Learning AnalyzeDocument MTurkTaskAt2.280 | D108: MaaS | E108: Analytics | F108: 2.28 | G108: 0.01 | H108: 2.2572
A109: Amazon | B109: A2I-USE-160-A92-427-00-00-00-00 | C109: AmazonA2I - US East (Northern Virginia) - Machine Learning AnalyzeDocument MTurkTaskAt1.440 | D109: MaaS | E109: Analytics | F109: 1.44 | G109: 0.01 | H109: 1.4256
A110: Amazon | B110: A2I-USE-160-A92-428-00-00-00-00 | C110: AmazonA2I - US East (Northern Virginia) - Machine Learning AnalyzeDocument MTurkTaskAt0.024 | D110: MaaS | E110: Analytics | F110: 0.024 | G110: 0.01 | H110: 0.02376
A111: Amazon | B111: A2I-USE-160-A92-429-00-00-00-00 | C111: AmazonA2I - US East (Northern Virginia) - Machine Learning AnalyzeDocument MTurkTaskAt1.560 | D111: MaaS | E111: Analytics | F111: 1.56 | G111: 0.01 | H111: 1.5444
A112: Amazon | B112: A2I-USE-160-A92-430-00-00-00-00 | C112: AmazonA2I - US East (Northern Virginia) - Machine Learning AnalyzeDocument MTurkTaskAt2.400 | D112: MaaS | E112: Analytics | F112: 2.4 | G112: 0.01 | H112: 2.376
A113: Amazon | B113: A2I-USE-160-A92-431-00-00-00-00 | C113: AmazonA2I - US East (Northern Virginia) - Machine Learning AnalyzeDocument MTurkTaskAt1.680 | D113: MaaS | E113: Analytics | F113: 1.68 | G113: 0.01 | H113: 1.6632
A114: Amazon | B114: A2I-USE-160-A93-258-121-00-00-00 | C114: AmazonA2I - US East (Northern Virginia) - Machine Learning DetectModerationLabels Any First 100,000 pages | D114: MaaS | E114: Analytics | F114: 0.03 | G114: 0.01 | H114: 0.0297
A115: Amazon | B115: A2I-USE-160-A93-258-122-00-00-00 | C115: AmazonA2I - US East (Northern Virginia) - Machine Learning DetectModerationLabels Any More than 100,000 pages | D115: MaaS | E115: Analytics | F115: 0.02 | G115: 0.01 | H115: 0.0198
A116: Amazon | B116: A2I-USE-160-A93-406-00-00-00-00 | C116: AmazonA2I - US East (Northern Virginia) - Machine Learning DetectModerationLabels MTurkTaskAt0.012 | D116: MaaS | E116: Analytics | F116: 0.012 | G116: 0.01 | H116: 0.01188
A117: Amazon | B117: A2I-USE-160-A93-407-00-00-00-00 | C117: AmazonA2I - US East (Northern Virginia) - Machine Learning DetectModerationLabels MTurkTaskAt0.036 | D117: MaaS | E117: Analytics | F117: 0.036 | G117: 0.01 | H117: 0.03564
A118: Amazon | B118: A2I-USE-160-A93-409-00-00-00-00 | C118: AmazonA2I - US East (Northern Virginia) - Machine Learning DetectModerationLabels MTurkTaskAt0.048 | D118: MaaS | E118: Analytics | F118: 0.048 | G118: 0.01 | H118: 0.04752
A119: Amazon | B119: A2I-USE-160-A93-410-00-00-00-00 | C119: AmazonA2I - US East (Northern Virginia) - Machine Learning DetectModerationLabels MTurkTaskAt0.060 | D119: MaaS | E119: Analytics | F119: 0.06 | G119: 0.01 | H119: 0.0594
A120: Amazon | B120: A2I-USE-160-A93-411-00-00-00-00 | C120: AmazonA2I - US East (Northern Virginia) - Machine Learning DetectModerationLabels MTurkTaskAt0.072 | D120: MaaS | E120: Analytics | F120: 0.072 | G120: 0.01 | H120: 0.07128
A121: Amazon | B121: A2I-USE-160-A93-412-00-00-00-00 | C121: AmazonA2I - US East (Northern Virginia) - Machine Learning DetectModerationLabels MTurkTaskAt1.080 | D121: MaaS | E121: Analytics | F121: 1.08 | G121: 0.01 | H121: 1.0692
A122: Amazon | B122: A2I-USE-160-A93-413-00-00-00-00 | C122: AmazonA2I - US East (Northern Virginia) - Machine Learning DetectModerationLabels MTurkTaskAt0.120 | D122: MaaS | E122: Analytics | F122: 0.12 | G122: 0.01 | H122: 0.1188
A123: Amazon | B123: A2I-USE-160-A93-415-00-00-00-00 | C123: AmazonA2I - US East (Northern Virginia) - Machine Learning DetectModerationLabels MTurkTaskAt1.200 | D123: MaaS | E123: Analytics | F123: 1.2 | G123: 0.01 | H123: 1.188
A124: Amazon | B124: A2I-USE-160-A93-416-00-00-00-00 | C124: AmazonA2I - US East (Northern Virginia) - Machine Learning DetectModerationLabels MTurkTaskAt0.240 | D124: MaaS | E124: Analytics | F124: 0.24 | G124: 0.01 | H124: 0.2376
A125: Amazon | B125: A2I-USE-160-A93-418-00-00-00-00 | C125: AmazonA2I - US East (Northern Virginia) - Machine Learning DetectModerationLabels MTurkTaskAt0.600 | D125: MaaS | E125: Analytics | F125: 0.6 | G125: 0.01 | H125: 0.594
A126: Amazon | B126: A2I-USE-160-A93-419-00-00-00-00 | C126: AmazonA2I - US East (Northern Virginia) - Machine Learning DetectModerationLabels MTurkTaskAt0.720 | D126: MaaS | E126: Analytics | F126: 0.72 | G126: 0.01 | H126: 0.7128
A127: Amazon | B127: A2I-USE-160-A93-421-00-00-00-00 | C127: AmazonA2I - US East (Northern Virginia) - Machine Learning DetectModerationLabels MTurkTaskAt0.840 | D127: MaaS | E127: Analytics | F127: 0.84 | G127: 0.01 | H127: 0.8316
A128: Amazon | B128: A2I-USE-160-A93-422-00-00-00-00 | C128: AmazonA2I - US East (Northern Virginia) - Machine Learning DetectModerationLabels MTurkTaskAt0.960 | D128: MaaS | E128: Analytics | F128: 0.96 | G128: 0.01 | H128: 0.9504
A129: Amazon | B129: A2I-USE-160-A93-424-00-00-00-00 | C129: AmazonA2I - US East (Northern Virginia) - Machine Learning DetectModerationLabels MTurkTaskAt0.360 | D129: MaaS | E129: Analytics | F129: 0.36 | G129: 0.01 | H129: 0.3564
A130: Amazon | B130: A2I-USE-160-A93-425-00-00-00-00 | C130: AmazonA2I - US East (Northern Virginia) - Machine Learning DetectModerationLabels MTurkTaskAt0.480 | D130: MaaS | E130: Analytics | F130: 0.48 | G130: 0.01 | H130: 0.4752
A131: Amazon | B131: A2I-USE-160-A93-428-00-00-00-00 | C131: AmazonA2I - US East (Northern Virginia) - Machine Learning DetectModerationLabels MTurkTaskAt0.024 | D131: MaaS | E131: Analytics | F131: 0.024 | G131: 0.01 | H131: 0.02376
A132: Amazon | B132: A2I-UWO-160-A44-258-123-00-00-00 | C132: AmazonA2I - US West (Oregon) - Machine Learning Custom Any First 50,000 objects | D132: MaaS | E132: Analytics | F132: 0.08 | G132: 0.01 | H132: 0.0792
A133: Amazon | B133: A2I-UWO-160-A44-258-124-00-00-00 | C133: AmazonA2I - US West (Oregon) - Machine Learning Custom Any Next 950,000 objects | D133: MaaS | E133: Analytics | F133: 0.04 | G133: 0.01 | H133: 0.0396
A134: Amazon | B134: A2I-UWO-160-A44-258-125-00-00-00 | C134: AmazonA2I - US West (Oregon) - Machine Learning Custom Any More than 1,000,000 objects | D134: MaaS | E134: Analytics | F134: 0.02 | G134: 0.01 | H134: 0.0198
A135: Amazon | B135: A2I-UWO-160-A44-406-00-00-00-00 | C135: AmazonA2I - US West (Oregon) - Machine Learning Custom MTurkTaskAt0.012 | D135: MaaS | E135: Analytics | F135: 0.012 | G135: 0.01 | H135: 0.01188
A136: Amazon | B136: A2I-UWO-160-A44-407-00-00-00-00 | C136: AmazonA2I - US West (Oregon) - Machine Learning Custom MTurkTaskAt0.036 | D136: MaaS | E136: Analytics | F136: 0.036 | G136: 0.01 | H136: 0.03564
A137: Amazon | B137: A2I-UWO-160-A44-409-00-00-00-00 | C137: AmazonA2I - US West (Oregon) - Machine Learning Custom MTurkTaskAt0.048 | D137: MaaS | E137: Analytics | F137: 0.048 | G137: 0.01 | H137: 0.04752
A138: Amazon | B138: A2I-UWO-160-A44-410-00-00-00-00 | C138: AmazonA2I - US West (Oregon) - Machine Learning Custom MTurkTaskAt0.060 | D138: MaaS | E138: Analytics | F138: 0.06 | G138: 0.01 | H138: 0.0594
A139: Amazon | B139: A2I-UWO-160-A44-411-00-00-00-00 | C139: AmazonA2I - US West (Oregon) - Machine Learning Custom MTurkTaskAt0.072 | D139: MaaS | E139: Analytics | F139: 0.072 | G139: 0.01 | H139: 0.07128
A140: Amazon | B140: A2I-UWO-160-A44-412-00-00-00-00 | C140: AmazonA2I - US West (Oregon) - Machine Learning Custom MTurkTaskAt1.080 | D140: MaaS | E140: Analytics | F140: 1.08 | G140: 0.01 | H140: 1.0692
A141: Amazon | B141: A2I-UWO-160-A44-413-00-00-00-00 | C141: AmazonA2I - US West (Oregon) - Machine Learning Custom MTurkTaskAt0.120 | D141: MaaS | E141: Analytics | F141: 0.12 | G141: 0.01 | H141: 0.1188
A142: Amazon | B142: A2I-UWO-160-A44-415-00-00-00-00 | C142: AmazonA2I - US West (Oregon) - Machine Learning Custom MTurkTaskAt1.200 | D142: MaaS | E142: Analytics | F142: 1.2 | G142: 0.01 | H142: 1.188
A143: Amazon | B143: A2I-UWO-160-A44-416-00-00-00-00 | C143: AmazonA2I - US West (Oregon) - Machine Learning Custom MTurkTaskAt0.240 | D143: MaaS | E143: Analytics | F143: 0.24 | G143: 0.01 | H143: 0.2376
A144: Amazon | B144: A2I-UWO-160-A44-418-00-00-00-00 | C144: AmazonA2I - US West (Oregon) - Machine Learning Custom MTurkTaskAt0.600 | D144: MaaS | E144: Analytics | F144: 0.6 | G144: 0.01 | H144: 0.594
A145: Amazon | B145: A2I-UWO-160-A44-419-00-00-00-00 | C145: AmazonA2I - US West (Oregon) - Machine Learning Custom MTurkTaskAt0.720 | D145: MaaS | E145: Analytics | F145: 0.72 | G145: 0.01 | H145: 0.7128
A146: Amazon | B146: A2I-UWO-160-A44-421-00-00-00-00 | C146: AmazonA2I - US West (Oregon) - Machine Learning Custom MTurkTaskAt0.840 | D146: MaaS | E146: Analytics | F146: 0.84 | G146: 0.01 | H146: 0.8316
A147: Amazon | B147: A2I-UWO-160-A44-422-00-00-00-00 | C147: AmazonA2I - US West (Oregon) - Machine Learning Custom MTurkTaskAt0.960 | D147: MaaS | E147: Analytics | F147: 0.96 | G147: 0.01 | H147: 0.9504
A148: Amazon | B148: A2I-UWO-160-A44-424-00-00-00-00 | C148: AmazonA2I - US West (Oregon) - Machine Learning Custom MTurkTaskAt0.360 | D148: MaaS | E148: Analytics | F148: 0.36 | G148: 0.01 | H148: 0.3564
A149: Amazon | B149: A2I-UWO-160-A44-425-00-00-00-00 | C149: AmazonA2I - US West (Oregon) - Machine Learning Custom MTurkTaskAt0.480 | D149: MaaS | E149: Analytics | F149: 0.48 | G149: 0.01 | H149: 0.4752
A150: Amazon | B150: A2I-UWO-160-A44-428-00-00-00-00 | C150: AmazonA2I - US West (Oregon) - Machine Learning Custom MTurkTaskAt0.024 | D150: MaaS | E150: Analytics | F150: 0.024 | G150: 0.01 | H150: 0.02376
A151: Amazon | B151: A2I-UWO-160-A92-258-121-00-00-00 | C151: AmazonA2I - US West (Oregon) - Machine Learning AnalyzeDocument Any First 100,000 pages | D151: MaaS | E151: Analytics | F151: 0.03 | G151: 0.01 | H151: 0.0297
A152: Amazon | B152: A2I-UWO-160-A92-258-122-00-00-00 | C152: AmazonA2I - US West (Oregon) - Machine Learning AnalyzeDocument Any More than 100,000 pages | D152: MaaS | E152: Analytics | F152: 0.02 | G152: 0.01 | H152: 0.0198
A153: Amazon | B153: A2I-UWO-160-A92-406-00-00-00-00 | C153: AmazonA2I - US West (Oregon) - Machine Learning AnalyzeDocument MTurkTaskAt0.012 | D153: MaaS | E153: Analytics | F153: 0.012 | G153: 0.01 | H153: 0.01188
A154: Amazon | B154: A2I-UWO-160-A92-407-00-00-00-00 | C154: AmazonA2I - US West (Oregon) - Machine Learning AnalyzeDocument MTurkTaskAt0.036 | D154: MaaS | E154: Analytics | F154: 0.036 | G154: 0.01 | H154: 0.03564
A155: Amazon | B155: A2I-UWO-160-A92-408-00-00-00-00 | C155: AmazonA2I - US West (Oregon) - Machine Learning AnalyzeDocument MTurkTaskAt2.040 | D155: MaaS | E155: Analytics | F155: 2.04 | G155: 0.01 | H155: 2.0196
A156: Amazon | B156: A2I-UWO-160-A92-409-00-00-00-00 | C156: AmazonA2I - US West (Oregon) - Machine Learning AnalyzeDocument MTurkTaskAt0.048 | D156: MaaS | E156: Analytics | F156: 0.048 | G156: 0.01 | H156: 0.04752
A157: Amazon | B157: A2I-UWO-160-A92-410-00-00-00-00 | C157: AmazonA2I - US West (Oregon) - Machine Learning AnalyzeDocument MTurkTaskAt0.060 | D157: MaaS | E157: Analytics | F157: 0.06 | G157: 0.01 | H157: 0.0594
A158: Amazon | B158: A2I-UWO-160-A92-411-00-00-00-00 | C158: AmazonA2I - US West (Oregon) - Machine Learning AnalyzeDocument MTurkTaskAt0.072 | D158: MaaS | E158: Analytics | F158: 0.072 | G158: 0.01 | H158: 0.07128
A159: Amazon | B159: A2I-UWO-160-A92-412-00-00-00-00 | C159: AmazonA2I - US West (Oregon) - Machine Learning AnalyzeDocument MTurkTaskAt1.080 | D159: MaaS | E159: Analytics | F159: 1.08 | G159: 0.01 | H159: 1.0692
A160: Amazon | B160: A2I-UWO-160-A92-413-00-00-00-00 | C160: AmazonA2I - US West (Oregon) - Machine Learning AnalyzeDocument MTurkTaskAt0.120 | D160: MaaS | E160: Analytics | F160: 0.12 | G160: 0.01 | H160: 0.1188
A161: Amazon | B161: A2I-UWO-160-A92-414-00-00-00-00 | C161: AmazonA2I - US West (Oregon) - Machine Learning AnalyzeDocument MTurkTaskAt2.160 | D161: MaaS | E161: Analytics | F161: 2.16 | G161: 0.01 | H161: 2.1384
A162: Amazon | B162: A2I-UWO-160-A92-415-00-00-00-00 | C162: AmazonA2I - US West (Oregon) - Machine Learning AnalyzeDocument MTurkTaskAt1.200 | D162: MaaS | E162: Analytics | F162: 1.2 | G162: 0.01 | H162: 1.188
A163: Amazon | B163: A2I-UWO-160-A92-416-00-00-00-00 | C163: AmazonA2I - US West (Oregon) - Machine Learning AnalyzeDocument MTurkTaskAt0.240 | D163: MaaS | E163: Analytics | F163: 0.24 | G163: 0.01 | H163: 0.2376
A164: Amazon | B164: A2I-UWO-160-A92-417-00-00-00-00 | C164: AmazonA2I - US West (Oregon) - Machine Learning AnalyzeDocument MTurkTaskAt1.320 | D164: MaaS | E164: Analytics | F164: 1.32 | G164: 0.01 | H164: 1.3068
A165: Amazon | B165: A2I-UWO-160-A92-418-00-00-00-00 | C165: AmazonA2I - US West (Oregon) - Machine Learning AnalyzeDocument MTurkTaskAt0.600 | D165: MaaS | E165: Analytics | F165: 0.6 | G165: 0.01 | H165: 0.594
A166: Amazon | B166: A2I-UWO-160-A92-419-00-00-00-00 | C166: AmazonA2I - US West (Oregon) - Machine Learning AnalyzeDocument MTurkTaskAt0.720 | D166: MaaS | E166: Analytics | F166: 0.72 | G166: 0.01 | H166: 0.7128
A167: Amazon | B167: A2I-UWO-160-A92-420-00-00-00-00 | C167: AmazonA2I - US West (Oregon) - Machine Learning AnalyzeDocument MTurkTaskAt1.800 | D167: MaaS | E167: Analytics | F167: 1.8 | G167: 0.01 | H167: 1.782
A168: Amazon | B168: A2I-UWO-160-A92-421-00-00-00-00 | C168: AmazonA2I - US West (Oregon) - Machine Learning AnalyzeDocument MTurkTaskAt0.840 | D168: MaaS | E168: Analytics | F168: 0.84 | G168: 0.01 | H168: 0.8316
A169: Amazon | B169: A2I-UWO-160-A92-422-00-00-00-00 | C169: AmazonA2I - US West (Oregon) - Machine Learning AnalyzeDocument MTurkTaskAt0.960 | D169: MaaS | E169: Analytics | F169: 0.96 | G169: 0.01 | H169: 0.9504
A170: Amazon | B170: A2I-UWO-160-A92-423-00-00-00-00 | C170: AmazonA2I - US West (Oregon) - Machine Learning AnalyzeDocument MTurkTaskAt1.920 | D170: MaaS | E170: Analytics | F170: 1.92 | G170: 0.01 | H170: 1.9008
A171: Amazon | B171: A2I-UWO-160-A92-424-00-00-00-00 | C171: AmazonA2I - US West (Oregon) - Machine Learning AnalyzeDocument MTurkTaskAt0.360 | D171: MaaS | E171: Analytics | F171: 0.36 | G171: 0.01 | H171: 0.3564
A172: Amazon | B172: A2I-UWO-160-A92-425-00-00-00-00 | C172: AmazonA2I - US West (Oregon) - Machine Learning AnalyzeDocument MTurkTaskAt0.480 | D172: MaaS | E172: Analytics | F172: 0.48 | G172: 0.01 | H172: 0.4752
A173: Amazon | B173: A2I-UWO-160-A92-426-00-00-00-00 | C173: AmazonA2I - US West (Oregon) - Machine Learning AnalyzeDocument MTurkTaskAt2.280 | D173: MaaS | E173: Analytics | F173: 2.28 | G173: 0.01 | H173: 2.2572
A174: Amazon | B174: A2I-UWO-160-A92-427-00-00-00-00 | C174: AmazonA2I - US West (Oregon) - Machine Learning AnalyzeDocument MTurkTaskAt1.440 | D174: MaaS | E174: Analytics | F174: 1.44 | G174: 0.01 | H174: 1.4256
A175: Amazon | B175: A2I-UWO-160-A92-428-00-00-00-00 | C175: AmazonA2I - US West (Oregon) - Machine Learning AnalyzeDocument MTurkTaskAt0.024 | D175: MaaS | E175: Analytics | F175: 0.024 | G175: 0.01 | H175: 0.02376
A176: Amazon | B176: A2I-UWO-160-A92-429-00-00-00-00 | C176: AmazonA2I - US West (Oregon) - Machine Learning AnalyzeDocument MTurkTaskAt1.560 | D176: MaaS | E176: Analytics | F176: 1.56 | G176: 0.01 | H176: 1.5444
A177: Amazon | B177: A2I-UWO-160-A92-430-00-00-00-00 | C177: AmazonA2I - US West (Oregon) - Machine Learning AnalyzeDocument MTurkTaskAt2.400 | D177: MaaS | E177: Analytics | F177: 2.4 | G177: 0.01 | H177: 2.376
A178: Amazon | B178: A2I-UWO-160-A92-431-00-00-00-00 | C178: AmazonA2I - US West (Oregon) - Machine Learning AnalyzeDocument MTurkTaskAt1.680 | D178: MaaS | E178: Analytics | F178: 1.68 | G178: 0.01 | H178: 1.6632
A179: Amazon | B179: A2I-UWO-160-A93-258-121-00-00-00 | C179: AmazonA2I - US West (Oregon) - Machine Learning DetectModerationLabels Any First 100,000 pages | D179: MaaS | E179: Analytics | F179: 0.03 | G179: 0.01 | H179: 0.0297
A180: Amazon | B180: A2I-UWO-160-A93-258-122-00-00-00 | C180: AmazonA2I - US West (Oregon) - Machine Learning DetectModerationLabels Any More than 100,000 pages | D180: MaaS | E180: Analytics | F180: 0.02 | G180: 0.01 | H180: 0.0198
A181: Amazon | B181: A2I-UWO-160-A93-406-00-00-00-00 | C181: AmazonA2I - US West (Oregon) - Machine Learning DetectModerationLabels MTurkTaskAt0.012 | D181: MaaS | E181: Analytics | F181: 0.012 | G181: 0.01 | H181: 0.01188
A182: Amazon | B182: A2I-UWO-160-A93-407-00-00-00-00 | C182: AmazonA2I - US West (Oregon) - Machine Learning DetectModerationLabels MTurkTaskAt0.036 | D182: MaaS | E182: Analytics | F182: 0.036 | G182: 0.01 | H182: 0.03564
A183: Amazon | B183: A2I-UWO-160-A93-409-00-00-00-00 | C183: AmazonA2I - US West (Oregon) - Machine Learning DetectModerationLabels MTurkTaskAt0.048 | D183: MaaS | E183: Analytics | F183: 0.048 | G183: 0.01 | H183: 0.04752
A184: Amazon | B184: A2I-UWO-160-A93-410-00-00-00-00 | C184: AmazonA2I - US West (Oregon) - Machine Learning DetectModerationLabels MTurkTaskAt0.060 | D184: MaaS | E184: Analytics | F184: 0.06 | G184: 0.01 | H184: 0.0594
A185: Amazon | B185: A2I-UWO-160-A93-411-00-00-00-00 | C185: AmazonA2I - US West (Oregon) - Machine Learning DetectModerationLabels MTurkTaskAt0.072 | D185: MaaS | E185: Analytics | F185: 0.072 | G185: 0.01 | H185: 0.07128
A186: Amazon | B186: A2I-UWO-160-A93-412-00-00-00-00 | C186: AmazonA2I - US West (Oregon) - Machine Learning DetectModerationLabels MTurkTaskAt1.080 | D186: MaaS | E186: Analytics | F186: 1.08 | G186: 0.01 | H186: 1.0692
A187: Amazon | B187: A2I-UWO-160-A93-413-00-00-00-00 | C187: AmazonA2I - US West (Oregon) - Machine Learning DetectModerationLabels MTurkTaskAt0.120 | D187: MaaS | E187: Analytics | F187: 0.12 | G187: 0.01 | H187: 0.1188
A188: Amazon | B188: A2I-UWO-160-A93-415-00-00-00-00 | C188: AmazonA2I - US West (Oregon) - Machine Learning DetectModerationLabels MTurkTaskAt1.200 | D188: MaaS | E188: Analytics | F188: 1.2 | G188: 0.01 | H188: 1.188
A189: Amazon | B189: A2I-UWO-160-A93-416-00-00-00-00 | C189: AmazonA2I - US West (Oregon) - Machine Learning DetectModerationLabels MTurkTaskAt0.240 | D189: MaaS | E189: Analytics | F189: 0.24 | G189: 0.01 | H189: 0.2376
A190: Amazon | B190: A2I-UWO-160-A93-418-00-00-00-00 | C190: AmazonA2I - US West (Oregon) - Machine Learning DetectModerationLabels MTurkTaskAt0.600 | D190: MaaS | E190: Analytics | F190: 0.6 | G190: 0.01 | H190: 0.594
A191: Amazon | B191: A2I-UWO-160-A93-419-00-00-00-00 | C191: AmazonA2I - US West (Oregon) - Machine Learning DetectModerationLabels MTurkTaskAt0.720 | D191: MaaS | E191: Analytics | F191: 0.72 | G191: 0.01 | H191: 0.7128
A192: Amazon | B192: A2I-UWO-160-A93-421-00-00-00-00 | C192: AmazonA2I - US West (Oregon) - Machine Learning DetectModerationLabels MTurkTaskAt0.840 | D192: MaaS | E192: Analytics | F192: 0.84 | G192: 0.01 | H192: 0.8316
A193: Amazon | B193: A2I-UWO-160-A93-422-00-00-00-00 | C193: AmazonA2I - US West (Oregon) - Machine Learning DetectModerationLabels MTurkTaskAt0.960 | D193: MaaS | E193: Analytics | F193: 0.96 | G193: 0.01 | H193: 0.9504
A194: Amazon | B194: A2I-UWO-160-A93-424-00-00-00-00 | C194: AmazonA2I - US West (Oregon) - Machine Learning DetectModerationLabels MTurkTaskAt0.360 | D194: MaaS | E194: Analytics | F194: 0.36 | G194: 0.01 | H194: 0.3564
A195: Amazon | B195: A2I-UWO-160-A93-425-00-00-00-00 | C195: AmazonA2I - US West (Oregon) - Machine Learning DetectModerationLabels MTurkTaskAt0.480 | D195: MaaS | E195: Analytics | F195: 0.48 | G195: 0.01 | H195: 0.4752
A196: Amazon | B196: A2I-UWO-160-A93-428-00-00-00-00 | C196: AmazonA2I - US West (Oregon) - Machine Learning DetectModerationLabels MTurkTaskAt0.024 | D196: MaaS | E196: Analytics | F196: 0.024 | G196: 0.01 | H196: 0.02376
A197: Amazon | B197: A4B-USE-247-00-473-00-00-00-00 | C197: AlexaForBusiness - US East (Northern Virginia) - Device First 1,000 shared device assigned to a room | D197: MaaS | E197: Analytics | F197: 7 | G197: 0.01 | H197: 6.93
A198: Amazon | B198: A4B-USE-J1-00-470-00-00-00-00 | C198: AlexaForBusiness - US East (Northern Virginia) - User First 1,000 users you have invited | D198: MaaS | E198: Analytics | F198: 3 | G198: 0.01 | H198: 2.97
A199: Amazon | B199: AAP-USE-E4-00-00-00-00-00-00 | C199: AppStream - US East (Northern Virginia) - Stopped Instance Fee | D199: MaaS | E199: Development, Testing and Deployment | F199: 0.025 | G199: 0.01 | H199: 0.02475
A200: Amazon | B200: AAP-USE-K8-103-00-94-00-00-00 | C200: AppStream - US East (Northern Virginia) - ImageBuilder z1d.large Memory optimized | D200: MaaS | E200: Development, Testing and Deployment | F200: 0.45 | G200: 0.01 | H200: 0.4455
... 4300 more rows

Sheet AWS GovCloud (US)
A1: Manufacturer | B1: Part Number | C1: Description | D1: Category | E1: Sub-Category | F1: LIST PRICE | G1: MINIMUM DISCOUNT | H1: NVP PRICE
A2: Amazon | B2: AAP-GOV-K8-825-00-118-00-00-00 | C2: AppStream - GovCloud (US) - ImageBuilder g4dn.xlarge Graphics | D2: MaaS | E2: Development, Testing and Deployment | F2: 1.19 | G2: 0.01 | H2: 1.1781
A3: Amazon | B3: AAP-GOV-K8-826-00-118-00-00-00 | C3: AppStream - GovCloud (US) - ImageBuilder g4dn.2xlarge Graphics | D3: MaaS | E3: Development, Testing and Deployment | F3: 1.88 | G3: 0.01 | H3: 1.8612
A4: Amazon | B4: AAP-GOV-K8-827-00-118-00-00-00 | C4: AppStream - GovCloud (US) - ImageBuilder g4dn.4xlarge Graphics | D4: MaaS | E4: Development, Testing and Deployment | F4: 3.26 | G4: 0.01 | H4: 3.2274
A5: Amazon | B5: AAP-GOV-K8-828-00-118-00-00-00 | C5: AppStream - GovCloud (US) - ImageBuilder g4dn.8xlarge Graphics | D5: MaaS | E5: Development, Testing and Deployment | F5: 6.13 | G5: 0.01 | H5: 6.0687
A6: Amazon | B6: AAP-GOV-K8-829-00-118-00-00-00 | C6: AppStream - GovCloud (US) - ImageBuilder g4dn.12xlarge Graphics | D6: MaaS | E6: Development, Testing and Deployment | F6: 10.28 | G6: 0.01 | H6: 10.1772
A7: Amazon | B7: AAP-GOV-K8-830-00-118-00-00-00 | C7: AppStream - GovCloud (US) - ImageBuilder g4dn.16xlarge Graphics | D7: MaaS | E7: Development, Testing and Deployment | F7: 12.26 | G7: 0.01 | H7: 12.1374
A8: Amazon | B8: AAP-GOV-K8-A46-00-93-00-00-00 | C8: AppStream - GovCloud (US) - ImageBuilder 16xlarge Graphics Pro | D8: MaaS | E8: Development, Testing and Deployment | F8: 9.84 | G8: 0.01 | H8: 9.7416
A9: Amazon | B9: AAP-GOV-K8-A47-00-89-00-00-00 | C9: AppStream - GovCloud (US) - ImageBuilder 2xlarge Compute optimized | D9: MaaS | E9: Development, Testing and Deployment | F9: 1.2 | G9: 0.01 | H9: 1.188
A10: Amazon | B10: AAP-GOV-K8-A47-00-94-00-00-00 | C10: AppStream - GovCloud (US) - ImageBuilder 2xlarge Memory optimized | D10: MaaS | E10: Development, Testing and Deployment | F10: 1.2 | G10: 0.01 | H10: 1.188
A11: Amazon | B11: AAP-GOV-K8-A48-00-89-00-00-00 | C11: AppStream - GovCloud (US) - ImageBuilder 4xlarge Compute optimized | D11: MaaS | E11: Development, Testing and Deployment | F11: 2.4 | G11: 0.01 | H11: 2.376
A12: Amazon | B12: AAP-GOV-K8-A48-00-93-00-00-00 | C12: AppStream - GovCloud (US) - ImageBuilder 4xlarge Graphics Pro | D12: MaaS | E12: Development, Testing and Deployment | F12: 2.46 | G12: 0.01 | H12: 2.4354
A13: Amazon | B13: AAP-GOV-K8-A48-00-94-00-00-00 | C13: AppStream - GovCloud (US) - ImageBuilder 4xlarge Memory optimized | D13: MaaS | E13: Development, Testing and Deployment | F13: 2.4 | G13: 0.01 | H13: 2.376
A14: Amazon | B14: AAP-GOV-K8-A49-00-89-00-00-00 | C14: AppStream - GovCloud (US) - ImageBuilder 8xlarge Compute optimized | D14: MaaS | E14: Development, Testing and Deployment | F14: 4.8 | G14: 0.01 | H14: 4.752
A15: Amazon | B15: AAP-GOV-K8-A49-00-93-00-00-00 | C15: AppStream - GovCloud (US) - ImageBuilder 8xlarge Graphics Pro | D15: MaaS | E15: Development, Testing and Deployment | F15: 4.92 | G15: 0.01 | H15: 4.8708
A16: Amazon | B16: AAP-GOV-K8-A49-00-94-00-00-00 | C16: AppStream - GovCloud (US) - ImageBuilder 8xlarge Memory optimized | D16: MaaS | E16: Development, Testing and Deployment | F16: 4.8 | G16: 0.01 | H16: 4.752
A17: Amazon | B17: AAP-GOV-K8-A50-00-89-00-00-00 | C17: AppStream - GovCloud (US) - ImageBuilder large Compute optimized | D17: MaaS | E17: Development, Testing and Deployment | F17: 0.3 | G17: 0.01 | H17: 0.297
A18: Amazon | B18: AAP-GOV-K8-A50-00-90-00-00-00 | C18: AppStream - GovCloud (US) - ImageBuilder large General purpose | D18: MaaS | E18: Development, Testing and Deployment | F18: 0.24 | G18: 0.01 | H18: 0.2376
A19: Amazon | B19: AAP-GOV-K8-A50-00-94-00-00-00 | C19: AppStream - GovCloud (US) - ImageBuilder large Memory optimized | D19: MaaS | E19: Development, Testing and Deployment | F19: 0.3 | G19: 0.01 | H19: 0.297
A20: Amazon | B20: AAP-GOV-K8-A51-00-90-00-00-00 | C20: AppStream - GovCloud (US) - ImageBuilder medium General purpose | D20: MaaS | E20: Development, Testing and Deployment | F20: 0.12 | G20: 0.01 | H20: 0.1188
A21: Amazon | B21: AAP-GOV-K8-A52-00-89-00-00-00 | C21: AppStream - GovCloud (US) - ImageBuilder xlarge Compute optimized | D21: MaaS | E21: Development, Testing and Deployment | F21: 0.6 | G21: 0.01 | H21: 0.594
A22: Amazon | B22: AAP-GOV-K8-A52-00-94-00-00-00 | C22: AppStream - GovCloud (US) - ImageBuilder xlarge Memory optimized | D22: MaaS | E22: Development, Testing and Deployment | F22: 0.6 | G22: 0.01 | H22: 0.594
A23: Amazon | B23: AAP-GOV-K8-C13-00-90-00-00-00 | C23: AppStream - GovCloud (US) - ImageBuilder small General purpose | D23: MaaS | E23: Development, Testing and Deployment | F23: 0.09 | G23: 0.01 | H23: 0.0891
A24: Amazon | B24: AAP-GOV-K9-825-00-118-00-00-00 | C24: AppStream - GovCloud (US) - Fleet g4dn.xlarge Graphics | D24: MaaS | E24: Development, Testing and Deployment | F24: 1.19 | G24: 0.01 | H24: 1.1781
A25: Amazon | B25: AAP-GOV-K9-826-00-118-00-00-00 | C25: AppStream - GovCloud (US) - Fleet g4dn.2xlarge Graphics | D25: MaaS | E25: Development, Testing and Deployment | F25: 1.88 | G25: 0.01 | H25: 1.8612
A26: Amazon | B26: AAP-GOV-K9-827-00-118-00-00-00 | C26: AppStream - GovCloud (US) - Fleet g4dn.4xlarge Graphics | D26: MaaS | E26: Development, Testing and Deployment | F26: 3.26 | G26: 0.01 | H26: 3.2274
A27: Amazon | B27: AAP-GOV-K9-828-00-118-00-00-00 | C27: AppStream - GovCloud (US) - Fleet g4dn.8xlarge Graphics | D27: MaaS | E27: Development, Testing and Deployment | F27: 6.13 | G27: 0.01 | H27: 6.0687
A28: Amazon | B28: AAP-GOV-K9-829-00-118-00-00-00 | C28: AppStream - GovCloud (US) - Fleet g4dn.12xlarge Graphics | D28: MaaS | E28: Development, Testing and Deployment | F28: 10.28 | G28: 0.01 | H28: 10.1772
A29: Amazon | B29: AAP-GOV-K9-830-00-118-00-00-00 | C29: AppStream - GovCloud (US) - Fleet g4dn.16xlarge Graphics | D29: MaaS | E29: Development, Testing and Deployment | F29: 12.26 | G29: 0.01 | H29: 12.1374
A30: Amazon | B30: AAP-GOV-K9-A46-00-93-00-00-00 | C30: AppStream - GovCloud (US) - Fleet 16xlarge Graphics Pro | D30: MaaS | E30: Development, Testing and Deployment | F30: 9.84 | G30: 0.01 | H30: 9.7416
A31: Amazon | B31: AAP-GOV-K9-A47-00-89-00-00-00 | C31: AppStream - GovCloud (US) - Fleet 2xlarge Compute optimized | D31: MaaS | E31: Development, Testing and Deployment | F31: 1.2 | G31: 0.01 | H31: 1.188
A32: Amazon | B32: AAP-GOV-K9-A47-00-94-00-00-00 | C32: AppStream - GovCloud (US) - Fleet 2xlarge Memory optimized | D32: MaaS | E32: Development, Testing and Deployment | F32: 1.2 | G32: 0.01 | H32: 1.188
A33: Amazon | B33: AAP-GOV-K9-A48-00-89-00-00-00 | C33: AppStream - GovCloud (US) - Fleet 4xlarge Compute optimized | D33: MaaS | E33: Development, Testing and Deployment | F33: 2.4 | G33: 0.01 | H33: 2.376
A34: Amazon | B34: AAP-GOV-K9-A48-00-93-00-00-00 | C34: AppStream - GovCloud (US) - Fleet 4xlarge Graphics Pro | D34: MaaS | E34: Development, Testing and Deployment | F34: 2.46 | G34: 0.01 | H34: 2.4354
A35: Amazon | B35: AAP-GOV-K9-A48-00-94-00-00-00 | C35: AppStream - GovCloud (US) - Fleet 4xlarge Memory optimized | D35: MaaS | E35: Development, Testing and Deployment | F35: 2.4 | G35: 0.01 | H35: 2.376
A36: Amazon | B36: AAP-GOV-K9-A49-00-89-00-00-00 | C36: AppStream - GovCloud (US) - Fleet 8xlarge Compute optimized | D36: MaaS | E36: Development, Testing and Deployment | F36: 4.8 | G36: 0.01 | H36: 4.752
A37: Amazon | B37: AAP-GOV-K9-A49-00-93-00-00-00 | C37: AppStream - GovCloud (US) - Fleet 8xlarge Graphics Pro | D37: MaaS | E37: Development, Testing and Deployment | F37: 4.92 | G37: 0.01 | H37: 4.8708
A38: Amazon | B38: AAP-GOV-K9-A49-00-94-00-00-00 | C38: AppStream - GovCloud (US) - Fleet 8xlarge Memory optimized | D38: MaaS | E38: Development, Testing and Deployment | F38: 4.8 | G38: 0.01 | H38: 4.752
A39: Amazon | B39: AAP-GOV-K9-A50-00-89-00-00-00 | C39: AppStream - GovCloud (US) - Fleet large Compute optimized | D39: MaaS | E39: Development, Testing and Deployment | F39: 0.3 | G39: 0.01 | H39: 0.297
A40: Amazon | B40: AAP-GOV-K9-A50-00-90-00-00-00 | C40: AppStream - GovCloud (US) - Fleet large General purpose | D40: MaaS | E40: Development, Testing and Deployment | F40: 0.24 | G40: 0.01 | H40: 0.2376
A41: Amazon | B41: AAP-GOV-K9-A50-00-94-00-00-00 | C41: AppStream - GovCloud (US) - Fleet large Memory optimized | D41: MaaS | E41: Development, Testing and Deployment | F41: 0.3 | G41: 0.01 | H41: 0.297
A42: Amazon | B42: AAP-GOV-K9-A51-00-90-00-00-00 | C42: AppStream - GovCloud (US) - Fleet medium General purpose | D42: MaaS | E42: Development, Testing and Deployment | F42: 0.12 | G42: 0.01 | H42: 0.1188
A43: Amazon | B43: AAP-GOV-K9-A52-00-89-00-00-00 | C43: AppStream - GovCloud (US) - Fleet xlarge Compute optimized | D43: MaaS | E43: Development, Testing and Deployment | F43: 0.6 | G43: 0.01 | H43: 0.594
A44: Amazon | B44: AAP-GOV-K9-A52-00-94-00-00-00 | C44: AppStream - GovCloud (US) - Fleet xlarge Memory optimized | D44: MaaS | E44: Development, Testing and Deployment | F44: 0.6 | G44: 0.01 | H44: 0.594
A45: Amazon | B45: AAP-GOV-K9-C13-00-90-00-00-00 | C45: AppStream - GovCloud (US) - F+D108287:D108330leet small General purpose | D45: MaaS | E45: Development, Testing and Deployment | F45: 0.09 | G45: 0.01 | H45: 0.0891
A46: Amazon | B46: ACD-GOV-A6-00-00-00-00-00-00 | C46: Code Deploy - GovCloud (US) - On-Premises | D46: MaaS | E46: Development, Testing and Deployment | F46: 0.02 | G46: 0.01 | H46: 0.0198
A47: Amazon | B47: ACD-GUE-A6-00-00-00-00-00-00 | C47: Code Deploy - GovCloud (US-East) - On-Premises | D47: MaaS | E47: Development, Testing and Deployment | F47: 0.02 | G47: 0.01 | H47: 0.0198
A48: Amazon | B48: ACF-GOV-241-00-462-00-00-00-00 | C48: CloudFront - GovCloud (US) - Serverless Lambda-Edge-GB-Second | D48: PaaS | E48: Content Delivery Services | F48: 5.001e-05 | G48: 0.01 | H48: 4.95099e-05
A49: Amazon | B49: ACF-GOV-241-00-463-00-00-00-00 | C49: CloudFront - GovCloud (US) - Serverless Lambda-Edge-Request | D49: PaaS | E49: Content Delivery Services | F49: 6e-07 | G49: 0.01 | H49: 5.94e-07
A50: Amazon | B50: ACF-GUE-241-00-462-00-00-00-00 | C50: CloudFront - GovCloud (US-East) - Serverless Lambda-Edge-GB-Second | D50: PaaS | E50: Content Delivery Services | F50: 5.001e-05 | G50: 0.01 | H50: 4.95099e-05
A51: Amazon | B51: ACF-GUE-241-00-463-00-00-00-00 | C51: CloudFront - GovCloud (US-East) - Serverless Lambda-Edge-Request | D51: PaaS | E51: Content Delivery Services | F51: 6e-07 | G51: 0.01 | H51: 5.94e-07
A52: Amazon | B52: ACW-GOV-00-A35-00-00-00-00-00 | C52: CloudWatch - GovCloud (US) - DynamoDB | D52: MaaS | E52: Monitoring | F52: 3.6e-08 | G52: 0.01 | H52: 3.564e-08
A53: Amazon | B53: ACW-GOV-00-A39-00-00-00-00-00 | C53: CloudWatch - GovCloud (US) - CloudWatchLog | D53: MaaS | E53: Monitoring | F53: 2.7e-08 | G53: 0.01 | H53: 2.673e-08
A54: Amazon | B54: ACW-GOV-074-00-00-42-00-00-00 | C54: CloudWatch - GovCloud (US) - Storage Snapshot Current | D54: MaaS | E54: Monitoring | F54: 0.039 | G54: 0.01 | H54: 0.03861
A55: Amazon | B55: ACW-GOV-152-00-00-00-00-00-00 | C55: CloudWatch - GovCloud (US) - API Request | D55: MaaS | E55: Monitoring | F55: 1.3e-05 | G55: 0.01 | H55: 1.287e-05
A56: Amazon | B56: ACW-GOV-152-A31-00-00-00-00-00 | C56: CloudWatch - GovCloud (US) - API Request GetInsightRuleReport | D56: MaaS | E56: Monitoring | F56: 1.3e-05 | G56: 0.01 | H56: 1.287e-05
A57: Amazon | B57: ACW-GOV-152-A32-00-00-00-00-00 | C57: CloudWatch - GovCloud (US) - API Request GetMetricData | D57: MaaS | E57: Monitoring | F57: 1.3e-05 | G57: 0.01 | H57: 1.287e-05
A58: Amazon | B58: ACW-GOV-257-A36-00-42-00-00-00 | C58: CloudWatch - GovCloud (US) - Data Payload Ingested Logs Current | D58: MaaS | E58: Monitoring | F58: 0.675 | G58: 0.01 | H58: 0.66825
A59: Amazon | B59: ACW-GOV-257-A36-061-42-00-00-00 | C59: CloudWatch - GovCloud (US) - Data Payload Ingested Logs per GB log data ingested for the first 10TB Current | D59: MaaS | E59: Monitoring | F59: 0.675 | G59: 0.01 | H59: 0.66825
A60: Amazon | B60: ACW-GOV-257-A36-062-42-00-00-00 | C60: CloudWatch - GovCloud (US) - Data Payload Ingested Logs per GB log data ingested for the next 20TB (starting at 10TB) Current | D60: MaaS | E60: Monitoring | F60: 0.338 | G60: 0.01 | H60: 0.33462
A61: Amazon | B61: ACW-GOV-257-A36-063-42-00-00-00 | C61: CloudWatch - GovCloud (US) - Data Payload Ingested Logs per GB log data ingested for the next 20TB (starting at 30TB) Current | D61: MaaS | E61: Monitoring | F61: 0.135 | G61: 0.01 | H61: 0.13365
A62: Amazon | B62: ACW-GOV-257-A36-064-42-00-00-00 | C62: CloudWatch - GovCloud (US) - Data Payload Ingested Logs per GB log data ingested over 50TB Current | D62: MaaS | E62: Monitoring | F62: 0.068 | G62: 0.01 | H62: 0.06732
A63: Amazon | B63: ACW-GOV-257-A37-00-00-00-00-00 | C63: CloudWatch - GovCloud (US) - Data Payload Queried Logs | D63: MaaS | E63: Monitoring | F63: 0.00675 | G63: 0.01 | H63: 0.0066825
A64: Amazon | B64: ACW-GOV-257-A38-554-136-00-00-00 | C64: CloudWatch - GovCloud (US) - Data Payload Delivered Logs Amazon Kinesis Data Firehose first 10TB | D64: MaaS | E64: Monitoring | F64: 0.338 | G64: 0.01 | H64: 0.33462
A65: Amazon | B65: ACW-GOV-257-A38-554-137-00-00-00 | C65: CloudWatch - GovCloud (US) - Data Payload Delivered Logs Amazon Kinesis Data Firehose up to 30TB | D65: MaaS | E65: Monitoring | F65: 0.203 | G65: 0.01 | H65: 0.20097
A66: Amazon | B66: ACW-GOV-257-A38-554-138-00-00-00 | C66: CloudWatch - GovCloud (US) - Data Payload Delivered Logs Amazon Kinesis Data Firehose up to 50TB | D66: MaaS | E66: Monitoring | F66: 0.101 | G66: 0.01 | H66: 0.09999
A67: Amazon | B67: ACW-GOV-257-A38-554-139-00-00-00 | C67: CloudWatch - GovCloud (US) - Data Payload Delivered Logs Amazon Kinesis Data Firehose over 50TB | D67: MaaS | E67: Monitoring | F67: 0.068 | G67: 0.01 | H67: 0.06732
A68: Amazon | B68: ACW-GOV-257-A38-555-136-00-00-00 | C68: CloudWatch - GovCloud (US) - Data Payload Delivered Logs Amazon S3 first 10TB | D68: MaaS | E68: Monitoring | F68: 0.338 | G68: 0.01 | H68: 0.33462
A69: Amazon | B69: ACW-GOV-257-A38-555-137-00-00-00 | C69: CloudWatch - GovCloud (US) - Data Payload Delivered Logs Amazon S3 up to 30TB | D69: MaaS | E69: Monitoring | F69: 0.203 | G69: 0.01 | H69: 0.20097
A70: Amazon | B70: ACW-GOV-257-A38-555-138-00-00-00 | C70: CloudWatch - GovCloud (US) - Data Payload Delivered Logs Amazon S3 up to 50TB | D70: MaaS | E70: Monitoring | F70: 0.101 | G70: 0.01 | H70: 0.09999
A71: Amazon | B71: ACW-GOV-257-A38-555-139-00-00-00 | C71: CloudWatch - GovCloud (US) - Data Payload Delivered Logs Amazon S3 over 50TB | D71: MaaS | E71: Monitoring | F71: 0.068 | G71: 0.01 | H71: 0.06732
A72: Amazon | B72: ACW-GOV-259-C7-00-00-00-00-00 | C72: CloudWatch - GovCloud (US) - Alarm Standard | D72: MaaS | E72: Monitoring | F72: 0.13 | G72: 0.01 | H72: 0.1287
A73: Amazon | B73: ACW-GOV-259-U5-00-00-00-00-00 | C73: CloudWatch - GovCloud (US) - Alarm High Resolution | D73: MaaS | E73: Monitoring | F73: 0.39 | G73: 0.01 | H73: 0.3861
A74: Amazon | B74: ACW-GOV-260-00-K9-00-00-00-00 | C74: CloudWatch - GovCloud (US) - Metric First 10,000 Metrics | D74: MaaS | E74: Monitoring | F74: 0.3 | G74: 0.01 | H74: 0.297
A75: Amazon | B75: ACW-GOV-260-00-L1-00-00-00-00 | C75: CloudWatch - GovCloud (US) - Metric Next 240,000 Metrics | D75: MaaS | E75: Monitoring | F75: 0.1 | G75: 0.01 | H75: 0.099
A76: Amazon | B76: ACW-GOV-260-00-L2-00-00-00-00 | C76: CloudWatch - GovCloud (US) - Metric Next 750,000 Metrics | D76: MaaS | E76: Monitoring | F76: 0.05 | G76: 0.01 | H76: 0.0495
A77: Amazon | B77: ACW-GOV-260-00-L3-00-00-00-00 | C77: CloudWatch - GovCloud (US) - Metric Over 1 Million Metrics | D77: MaaS | E77: Monitoring | F77: 0.02 | G77: 0.01 | H77: 0.0198
A78: Amazon | B78: ACW-GOV-261-A34-00-00-00-00-00 | C78: CloudWatch - GovCloud (US) - Contributor Insights CloudWatchLogs | D78: MaaS | E78: Monitoring | F78: 0.5 | G78: 0.01 | H78: 0.495
A79: Amazon | B79: ACW-GOV-261-A35-00-00-00-00-00 | C79: CloudWatch - GovCloud (US) - Contributor Insights DynamoDB | D79: MaaS | E79: Monitoring | F79: 0.5 | G79: 0.01 | H79: 0.495
A80: Amazon | B80: ACW-GOV-262-00-00-00-00-00-00 | C80: CloudWatch - GovCloud (US) - Canaries | D80: MaaS | E80: Monitoring | F80: 0.0015 | G80: 0.01 | H80: 0.001485
A81: Amazon | B81: ACW-GUE-00-A35-00-00-00-00-00 | C81: CloudWatch - GovCloud (US-East) - DynamoDB | D81: MaaS | E81: Monitoring | F81: 3.6e-08 | G81: 0.01 | H81: 3.564e-08
A82: Amazon | B82: ACW-GUE-00-A39-00-00-00-00-00 | C82: CloudWatch - GovCloud (US-East) - CloudWatchLog | D82: MaaS | E82: Monitoring | F82: 2.7e-08 | G82: 0.01 | H82: 2.673e-08
A83: Amazon | B83: ACW-GUE-074-00-00-42-00-00-00 | C83: CloudWatch - GovCloud (US-East) - Storage Snapshot Current | D83: MaaS | E83: Monitoring | F83: 0.039 | G83: 0.01 | H83: 0.03861
A84: Amazon | B84: ACW-GUE-152-00-00-00-00-00-00 | C84: CloudWatch - GovCloud (US-East) - API Request | D84: MaaS | E84: Monitoring | F84: 1.3e-05 | G84: 0.01 | H84: 1.287e-05
A85: Amazon | B85: ACW-GUE-152-A31-00-00-00-00-00 | C85: CloudWatch - GovCloud (US-East) - API Request GetInsightRuleReport | D85: MaaS | E85: Monitoring | F85: 1.3e-05 | G85: 0.01 | H85: 1.287e-05
A86: Amazon | B86: ACW-GUE-152-A32-00-00-00-00-00 | C86: CloudWatch - GovCloud (US-East) - API Request GetMetricData | D86: MaaS | E86: Monitoring | F86: 1.3e-05 | G86: 0.01 | H86: 1.287e-05
A87: Amazon | B87: ACW-GUE-257-A36-00-42-00-00-00 | C87: CloudWatch - GovCloud (US-East) - Data Payload Ingested Logs Current | D87: MaaS | E87: Monitoring | F87: 0.675 | G87: 0.01 | H87: 0.66825
A88: Amazon | B88: ACW-GUE-257-A36-061-42-00-00-00 | C88: CloudWatch - GovCloud (US-East) - Data Payload Ingested Logs per GB log data ingested for the first 10TB Current | D88: MaaS | E88: Monitoring | F88: 0.675 | G88: 0.01 | H88: 0.66825
A89: Amazon | B89: ACW-GUE-257-A36-062-42-00-00-00 | C89: CloudWatch - GovCloud (US-East) - Data Payload Ingested Logs per GB log data ingested for the next 20TB (starting at 10TB) Current | D89: MaaS | E89: Monitoring | F89: 0.338 | G89: 0.01 | H89: 0.33462
A90: Amazon | B90: ACW-GUE-257-A36-063-42-00-00-00 | C90: CloudWatch - GovCloud (US-East) - Data Payload Ingested Logs per GB log data ingested for the next 20TB (starting at 30TB) Current | D90: MaaS | E90: Monitoring | F90: 0.135 | G90: 0.01 | H90: 0.13365
A91: Amazon | B91: ACW-GUE-257-A36-064-42-00-00-00 | C91: CloudWatch - GovCloud (US-East) - Data Payload Ingested Logs per GB log data ingested over 50TB Current | D91: MaaS | E91: Monitoring | F91: 0.068 | G91: 0.01 | H91: 0.06732
A92: Amazon | B92: ACW-GUE-257-A37-00-00-00-00-00 | C92: CloudWatch - GovCloud (US-East) - Data Payload Queried Logs | D92: MaaS | E92: Monitoring | F92: 0.00675 | G92: 0.01 | H92: 0.0066825
A93: Amazon | B93: ACW-GUE-257-A38-554-136-00-00-00 | C93: CloudWatch - GovCloud (US-East) - Data Payload Delivered Logs Amazon Kinesis Data Firehose first 10TB | D93: MaaS | E93: Monitoring | F93: 0.338 | G93: 0.01 | H93: 0.33462
A94: Amazon | B94: ACW-GUE-257-A38-554-137-00-00-00 | C94: CloudWatch - GovCloud (US-East) - Data Payload Delivered Logs Amazon Kinesis Data Firehose up to 30TB | D94: MaaS | E94: Monitoring | F94: 0.203 | G94: 0.01 | H94: 0.20097
A95: Amazon | B95: ACW-GUE-257-A38-554-138-00-00-00 | C95: CloudWatch - GovCloud (US-East) - Data Payload Delivered Logs Amazon Kinesis Data Firehose up to 50TB | D95: MaaS | E95: Monitoring | F95: 0.101 | G95: 0.01 | H95: 0.09999
A96: Amazon | B96: ACW-GUE-257-A38-554-139-00-00-00 | C96: CloudWatch - GovCloud (US-East) - Data Payload Delivered Logs Amazon Kinesis Data Firehose over 50TB | D96: MaaS | E96: Monitoring | F96: 0.068 | G96: 0.01 | H96: 0.06732
A97: Amazon | B97: ACW-GUE-257-A38-555-136-00-00-00 | C97: CloudWatch - GovCloud (US-East) - Data Payload Delivered Logs Amazon S3 first 10TB | D97: MaaS | E97: Monitoring | F97: 0.338 | G97: 0.01 | H97: 0.33462
A98: Amazon | B98: ACW-GUE-257-A38-555-137-00-00-00 | C98: CloudWatch - GovCloud (US-East) - Data Payload Delivered Logs Amazon S3 up to 30TB | D98: MaaS | E98: Monitoring | F98: 0.203 | G98: 0.01 | H98: 0.20097
A99: Amazon | B99: ACW-GUE-257-A38-555-138-00-00-00 | C99: CloudWatch - GovCloud (US-East) - Data Payload Delivered Logs Amazon S3 up to 50TB | D99: MaaS | E99: Monitoring | F99: 0.101 | G99: 0.01 | H99: 0.09999
A100: Amazon | B100: ACW-GUE-257-A38-555-139-00-00-00 | C100: CloudWatch - GovCloud (US-East) - Data Payload Delivered Logs Amazon S3 over 50TB | D100: MaaS | E100: Monitoring | F100: 0.068 | G100: 0.01 | H100: 0.06732
A101: Amazon | B101: ACW-GUE-259-C7-00-00-00-00-00 | C101: CloudWatch - GovCloud (US-East) - Alarm Standard | D101: MaaS | E101: Monitoring | F101: 0.13 | G101: 0.01 | H101: 0.1287
A102: Amazon | B102: ACW-GUE-259-U5-00-00-00-00-00 | C102: CloudWatch - GovCloud (US-East) - Alarm High Resolution | D102: MaaS | E102: Monitoring | F102: 0.39 | G102: 0.01 | H102: 0.3861
A103: Amazon | B103: ACW-GUE-260-00-K9-00-00-00-00 | C103: CloudWatch - GovCloud (US-East) - Metric First 10,000 Metrics | D103: MaaS | E103: Monitoring | F103: 0.3 | G103: 0.01 | H103: 0.297
A104: Amazon | B104: ACW-GUE-260-00-L1-00-00-00-00 | C104: CloudWatch - GovCloud (US-East) - Metric Next 240,000 Metrics | D104: MaaS | E104: Monitoring | F104: 0.1 | G104: 0.01 | H104: 0.099
A105: Amazon | B105: ACW-GUE-260-00-L2-00-00-00-00 | C105: CloudWatch - GovCloud (US-East) - Metric Next 750,000 Metrics | D105: MaaS | E105: Monitoring | F105: 0.05 | G105: 0.01 | H105: 0.0495
A106: Amazon | B106: ACW-GUE-260-00-L3-00-00-00-00 | C106: CloudWatch - GovCloud (US-East) - Metric Over 1 Million Metrics | D106: MaaS | E106: Monitoring | F106: 0.02 | G106: 0.01 | H106: 0.0198
A107: Amazon | B107: ACW-GUE-261-A34-00-00-00-00-00 | C107: CloudWatch - GovCloud (US-East) - Contributor Insights CloudWatchLogs | D107: MaaS | E107: Monitoring | F107: 0.5 | G107: 0.01 | H107: 0.495
A108: Amazon | B108: ACW-GUE-261-A35-00-00-00-00-00 | C108: CloudWatch - GovCloud (US-East) - Contributor Insights DynamoDB | D108: MaaS | E108: Monitoring | F108: 0.5 | G108: 0.01 | H108: 0.495
A109: Amazon | B109: ACW-GUE-262-00-00-00-00-00-00 | C109: CloudWatch - GovCloud (US-East) - Canaries | D109: MaaS | E109: Monitoring | F109: 0.0015 | G109: 0.01 | H109: 0.001485
A110: Amazon | B110: ADS-GOV-032-C7-00-00-00-00-00 | C110: Directory Service - GovCloud (US) - Shared Microsoft AD Standard | D110: PaaS | E110: Directory Services | F110: 0.0284 | G110: 0.01 | H110: 0.028116
A111: Amazon | B111: ADS-GOV-032-H7-00-00-00-00-00 | C111: Directory Service - GovCloud (US) - Shared Microsoft AD Enterprise | D111: PaaS | E111: Directory Services | F111: 0.0836 | G111: 0.01 | H111: 0.082764
A112: Amazon | B112: ADS-GOV-98-J5-00-00-00-00-00 | C112: Directory Service - GovCloud (US) - AD Connector Small | D112: PaaS | E112: Directory Services | F112: 0.06 | G112: 0.01 | H112: 0.0594
A113: Amazon | B113: ADS-GOV-98-J6-00-00-00-00-00 | C113: Directory Service - GovCloud (US) - AD Connector Large | D113: PaaS | E113: Directory Services | F113: 0.19 | G113: 0.01 | H113: 0.1881
A114: Amazon | B114: ADS-GOV-B7-C7-00-00-00-00-00 | C114: Directory Service - GovCloud (US) - Microsoft AD Standard | D114: PaaS | E114: Directory Services | F114: 0.0945 | G114: 0.01 | H114: 0.093555
A115: Amazon | B115: ADS-GOV-B7-H7-00-00-00-00-00 | C115: Directory Service - GovCloud (US) - Microsoft AD Enterprise | D115: PaaS | E115: Directory Services | F115: 0.2788 | G115: 0.01 | H115: 0.276012
A116: Amazon | B116: ADS-GUE-032-C7-00-00-00-00-00 | C116: Directory Service - GovCloud (US-East) - Shared Microsoft AD Standard | D116: PaaS | E116: Directory Services | F116: 0.0284 | G116: 0.01 | H116: 0.028116
A117: Amazon | B117: ADS-GUE-032-H7-00-00-00-00-00 | C117: Directory Service - GovCloud (US-East) - Shared Microsoft AD Enterprise | D117: PaaS | E117: Directory Services | F117: 0.0836 | G117: 0.01 | H117: 0.082764
A118: Amazon | B118: ADS-GUE-98-J5-00-00-00-00-00 | C118: Directory Service - GovCloud (US-East) - AD Connector Small | D118: PaaS | E118: Directory Services | F118: 0.06 | G118: 0.01 | H118: 0.0594
A119: Amazon | B119: ADS-GUE-98-J6-00-00-00-00-00 | C119: Directory Service - GovCloud (US-East) - AD Connector Large | D119: PaaS | E119: Directory Services | F119: 0.19 | G119: 0.01 | H119: 0.1881
A120: Amazon | B120: ADS-GUE-B7-C7-00-00-00-00-00 | C120: Directory Service - GovCloud (US-East) - Microsoft AD Standard | D120: PaaS | E120: Directory Services | F120: 0.0945 | G120: 0.01 | H120: 0.093555
A121: Amazon | B121: ADS-GUE-B7-H7-00-00-00-00-00 | C121: Directory Service - GovCloud (US-East) - Microsoft AD Enterprise | D121: PaaS | E121: Directory Services | F121: 0.2788 | G121: 0.01 | H121: 0.276012
A122: Amazon | B122: AEC-GOV-002-00-00-00-00-00-00 | C122: ElastiCache - GovCloud (US) - Snapshot Storage | D122: PaaS | E122: Caching Services | F122: 0.085 | G122: 0.01 | H122: 0.08415
A123: Amazon | B123: AEC-GOV-03-091-352-00-00-00-00 | C123: ElastiCache - GovCloud (US) - On-Demand r5.large redis | D123: PaaS | E123: Caching Services | F123: 0.259 | G123: 0.01 | H123: 0.25641
A124: Amazon | B124: AEC-GOV-03-091-352-00-77-00-00 | C124: ElastiCache - GovCloud (US) - On-Demand r5.large redis Outposts | D124: PaaS | E124: Caching Services | F124: 0.108 | G124: 0.01 | H124: 0.10692
A125: Amazon | B125: AEC-GOV-03-091-353-00-00-00-00 | C125: ElastiCache - GovCloud (US) - On-Demand r5.large memcached | D125: PaaS | E125: Caching Services | F125: 0.259 | G125: 0.01 | H125: 0.25641
A126: Amazon | B126: AEC-GOV-03-091-353-00-77-00-00 | C126: ElastiCache - GovCloud (US) - On-Demand r5.large memcached Outposts | D126: PaaS | E126: Caching Services | F126: 0.108 | G126: 0.01 | H126: 0.10692
A127: Amazon | B127: AEC-GOV-03-092-352-00-00-00-00 | C127: ElastiCache - GovCloud (US) - On-Demand r5.xlarge redis | D127: PaaS | E127: Caching Services | F127: 0.517 | G127: 0.01 | H127: 0.51183
A128: Amazon | B128: AEC-GOV-03-092-352-00-77-00-00 | C128: ElastiCache - GovCloud (US) - On-Demand r5.xlarge redis Outposts | D128: PaaS | E128: Caching Services | F128: 0.216 | G128: 0.01 | H128: 0.21384
A129: Amazon | B129: AEC-GOV-03-092-353-00-00-00-00 | C129: ElastiCache - GovCloud (US) - On-Demand r5.xlarge memcached | D129: PaaS | E129: Caching Services | F129: 0.517 | G129: 0.01 | H129: 0.51183
A130: Amazon | B130: AEC-GOV-03-092-353-00-77-00-00 | C130: ElastiCache - GovCloud (US) - On-Demand r5.xlarge memcached Outposts | D130: PaaS | E130: Caching Services | F130: 0.216 | G130: 0.01 | H130: 0.21384
A131: Amazon | B131: AEC-GOV-03-093-352-00-00-00-00 | C131: ElastiCache - GovCloud (US) - On-Demand r5.2xlarge redis | D131: PaaS | E131: Caching Services | F131: 1.035 | G131: 0.01 | H131: 1.02465
A132: Amazon | B132: AEC-GOV-03-093-352-00-77-00-00 | C132: ElastiCache - GovCloud (US) - On-Demand r5.2xlarge redis Outposts | D132: PaaS | E132: Caching Services | F132: 0.432 | G132: 0.01 | H132: 0.42768
A133: Amazon | B133: AEC-GOV-03-093-353-00-00-00-00 | C133: ElastiCache - GovCloud (US) - On-Demand r5.2xlarge memcached | D133: PaaS | E133: Caching Services | F133: 1.035 | G133: 0.01 | H133: 1.02465
A134: Amazon | B134: AEC-GOV-03-093-353-00-77-00-00 | C134: ElastiCache - GovCloud (US) - On-Demand r5.2xlarge memcached Outposts | D134: PaaS | E134: Caching Services | F134: 0.432 | G134: 0.01 | H134: 0.42768
A135: Amazon | B135: AEC-GOV-03-094-352-00-00-00-00 | C135: ElastiCache - GovCloud (US) - On-Demand r5.4xlarge redis | D135: PaaS | E135: Caching Services | F135: 2.069 | G135: 0.01 | H135: 2.04831
A136: Amazon | B136: AEC-GOV-03-094-352-00-77-00-00 | C136: ElastiCache - GovCloud (US) - On-Demand r5.4xlarge redis Outposts | D136: PaaS | E136: Caching Services | F136: 0.864 | G136: 0.01 | H136: 0.85536
A137: Amazon | B137: AEC-GOV-03-094-353-00-00-00-00 | C137: ElastiCache - GovCloud (US) - On-Demand r5.4xlarge memcached | D137: PaaS | E137: Caching Services | F137: 2.069 | G137: 0.01 | H137: 2.04831
A138: Amazon | B138: AEC-GOV-03-094-353-00-77-00-00 | C138: ElastiCache - GovCloud (US) - On-Demand r5.4xlarge memcached Outposts | D138: PaaS | E138: Caching Services | F138: 0.864 | G138: 0.01 | H138: 0.85536
A139: Amazon | B139: AEC-GOV-03-095-352-00-00-00-00 | C139: ElastiCache - GovCloud (US) - On-Demand r5.12xlarge redis | D139: PaaS | E139: Caching Services | F139: 6.207 | G139: 0.01 | H139: 6.14493
A140: Amazon | B140: AEC-GOV-03-095-352-00-77-00-00 | C140: ElastiCache - GovCloud (US) - On-Demand r5.12xlarge redis Outposts | D140: PaaS | E140: Caching Services | F140: 2.592 | G140: 0.01 | H140: 2.56608
A141: Amazon | B141: AEC-GOV-03-095-353-00-00-00-00 | C141: ElastiCache - GovCloud (US) - On-Demand r5.12xlarge memcached | D141: PaaS | E141: Caching Services | F141: 6.207 | G141: 0.01 | H141: 6.14493
A142: Amazon | B142: AEC-GOV-03-095-353-00-77-00-00 | C142: ElastiCache - GovCloud (US) - On-Demand r5.12xlarge memcached Outposts | D142: PaaS | E142: Caching Services | F142: 2.592 | G142: 0.01 | H142: 2.56608
A143: Amazon | B143: AEC-GOV-03-096-352-00-00-00-00 | C143: ElastiCache - GovCloud (US) - On-Demand r5.24xlarge redis | D143: PaaS | E143: Caching Services | F143: 12.414 | G143: 0.01 | H143: 12.28986
A144: Amazon | B144: AEC-GOV-03-096-352-00-77-00-00 | C144: ElastiCache - GovCloud (US) - On-Demand r5.24xlarge redis Outposts | D144: PaaS | E144: Caching Services | F144: 5.184 | G144: 0.01 | H144: 5.13216
A145: Amazon | B145: AEC-GOV-03-096-353-00-00-00-00 | C145: ElastiCache - GovCloud (US) - On-Demand r5.24xlarge memcached | D145: PaaS | E145: Caching Services | F145: 12.414 | G145: 0.01 | H145: 12.28986
A146: Amazon | B146: AEC-GOV-03-096-353-00-77-00-00 | C146: ElastiCache - GovCloud (US) - On-Demand r5.24xlarge memcached Outposts | D146: PaaS | E146: Caching Services | F146: 5.184 | G146: 0.01 | H146: 5.13216
A147: Amazon | B147: AEC-GOV-03-119-352-00-00-00-00 | C147: ElastiCache - GovCloud (US) - On-Demand t3.micro redis | D147: PaaS | E147: Caching Services | F147: 0.02 | G147: 0.01 | H147: 0.0198
A148: Amazon | B148: AEC-GOV-03-119-353-00-00-00-00 | C148: ElastiCache - GovCloud (US) - On-Demand t3.micro memcached | D148: PaaS | E148: Caching Services | F148: 0.02 | G148: 0.01 | H148: 0.0198
A149: Amazon | B149: AEC-GOV-03-120-352-00-00-00-00 | C149: ElastiCache - GovCloud (US) - On-Demand t3.small redis | D149: PaaS | E149: Caching Services | F149: 0.04 | G149: 0.01 | H149: 0.0396
A150: Amazon | B150: AEC-GOV-03-120-353-00-00-00-00 | C150: ElastiCache - GovCloud (US) - On-Demand t3.small memcached | D150: PaaS | E150: Caching Services | F150: 0.04 | G150: 0.01 | H150: 0.0396
A151: Amazon | B151: AEC-GOV-03-121-352-00-00-00-00 | C151: ElastiCache - GovCloud (US) - On-Demand t3.medium redis | D151: PaaS | E151: Caching Services | F151: 0.08 | G151: 0.01 | H151: 0.0792
A152: Amazon | B152: AEC-GOV-03-121-353-00-00-00-00 | C152: ElastiCache - GovCloud (US) - On-Demand t3.medium memcached | D152: PaaS | E152: Caching Services | F152: 0.08 | G152: 0.01 | H152: 0.0792
A153: Amazon | B153: AEC-GOV-03-79-352-00-00-00-00 | C153: ElastiCache - GovCloud (US) - On-Demand m3.xlarge redis | D153: PaaS | E153: Caching Services | F153: 0.425 | G153: 0.01 | H153: 0.42075
A154: Amazon | B154: AEC-GOV-03-79-353-00-00-00-00 | C154: ElastiCache - GovCloud (US) - On-Demand m3.xlarge memcached | D154: PaaS | E154: Caching Services | F154: 0.425 | G154: 0.01 | H154: 0.42075
A155: Amazon | B155: AEC-GOV-03-80-352-00-00-00-00 | C155: ElastiCache - GovCloud (US) - On-Demand m3.2xlarge redis | D155: PaaS | E155: Caching Services | F155: 0.855 | G155: 0.01 | H155: 0.84645
A156: Amazon | B156: AEC-GOV-03-80-353-00-00-00-00 | C156: ElastiCache - GovCloud (US) - On-Demand m3.2xlarge memcached | D156: PaaS | E156: Caching Services | F156: 0.855 | G156: 0.01 | H156: 0.84645
A157: Amazon | B157: AEC-GOV-03-D5-352-00-00-00-00 | C157: ElastiCache - GovCloud (US) - On-Demand m3.medium redis | D157: PaaS | E157: Caching Services | F157: 0.108 | G157: 0.01 | H157: 0.10692
A158: Amazon | B158: AEC-GOV-03-D5-353-00-00-00-00 | C158: ElastiCache - GovCloud (US) - On-Demand m3.medium memcached | D158: PaaS | E158: Caching Services | F158: 0.108 | G158: 0.01 | H158: 0.10692
A159: Amazon | B159: AEC-GOV-03-D6-352-00-00-00-00 | C159: ElastiCache - GovCloud (US) - On-Demand m3.large redis | D159: PaaS | E159: Caching Services | F159: 0.218 | G159: 0.01 | H159: 0.21582
A160: Amazon | B160: AEC-GOV-03-D6-353-00-00-00-00 | C160: ElastiCache - GovCloud (US) - On-Demand m3.large memcached | D160: PaaS | E160: Caching Services | F160: 0.218 | G160: 0.01 | H160: 0.21582
A161: Amazon | B161: AEC-GOV-03-E6-352-00-00-00-00 | C161: ElastiCache - GovCloud (US) - On-Demand r3.large redis | D161: PaaS | E161: Caching Services | F161: 0.273 | G161: 0.01 | H161: 0.27027
A162: Amazon | B162: AEC-GOV-03-E6-353-00-00-00-00 | C162: ElastiCache - GovCloud (US) - On-Demand r3.large memcached | D162: PaaS | E162: Caching Services | F162: 0.273 | G162: 0.01 | H162: 0.27027
A163: Amazon | B163: AEC-GOV-03-E7-352-00-00-00-00 | C163: ElastiCache - GovCloud (US) - On-Demand r3.xlarge redis | D163: PaaS | E163: Caching Services | F163: 0.546 | G163: 0.01 | H163: 0.54054
A164: Amazon | B164: AEC-GOV-03-E7-353-00-00-00-00 | C164: ElastiCache - GovCloud (US) - On-Demand r3.xlarge memcached | D164: PaaS | E164: Caching Services | F164: 0.546 | G164: 0.01 | H164: 0.54054
A165: Amazon | B165: AEC-GOV-03-E8-352-00-00-00-00 | C165: ElastiCache - GovCloud (US) - On-Demand r3.2xlarge redis | D165: PaaS | E165: Caching Services | F165: 1.092 | G165: 0.01 | H165: 1.08108
A166: Amazon | B166: AEC-GOV-03-E8-353-00-00-00-00 | C166: ElastiCache - GovCloud (US) - On-Demand r3.2xlarge memcached | D166: PaaS | E166: Caching Services | F166: 1.092 | G166: 0.01 | H166: 1.08108
A167: Amazon | B167: AEC-GOV-03-E9-352-00-00-00-00 | C167: ElastiCache - GovCloud (US) - On-Demand r3.4xlarge redis | D167: PaaS | E167: Caching Services | F167: 2.184 | G167: 0.01 | H167: 2.16216
A168: Amazon | B168: AEC-GOV-03-E9-353-00-00-00-00 | C168: ElastiCache - GovCloud (US) - On-Demand r3.4xlarge memcached | D168: PaaS | E168: Caching Services | F168: 2.184 | G168: 0.01 | H168: 2.16216
A169: Amazon | B169: AEC-GOV-03-F1-352-00-00-00-00 | C169: ElastiCache - GovCloud (US) - On-Demand r3.8xlarge redis | D169: PaaS | E169: Caching Services | F169: 4.368 | G169: 0.01 | H169: 4.32432
A170: Amazon | B170: AEC-GOV-03-F1-353-00-00-00-00 | C170: ElastiCache - GovCloud (US) - On-Demand r3.8xlarge memcached | D170: PaaS | E170: Caching Services | F170: 4.368 | G170: 0.01 | H170: 4.32432
A171: Amazon | B171: AEC-GOV-03-G1-352-00-00-00-00 | C171: ElastiCache - GovCloud (US) - On-Demand t2.micro redis | D171: PaaS | E171: Caching Services | F171: 0.019 | G171: 0.01 | H171: 0.01881
A172: Amazon | B172: AEC-GOV-03-G1-353-00-00-00-00 | C172: ElastiCache - GovCloud (US) - On-Demand t2.micro memcached | D172: PaaS | E172: Caching Services | F172: 0.019 | G172: 0.01 | H172: 0.01881
A173: Amazon | B173: AEC-GOV-03-G2-352-00-00-00-00 | C173: ElastiCache - GovCloud (US) - On-Demand t2.small redis | D173: PaaS | E173: Caching Services | F173: 0.04 | G173: 0.01 | H173: 0.0396
A174: Amazon | B174: AEC-GOV-03-G2-353-00-00-00-00 | C174: ElastiCache - GovCloud (US) - On-Demand t2.small memcached | D174: PaaS | E174: Caching Services | F174: 0.04 | G174: 0.01 | H174: 0.0396
A175: Amazon | B175: AEC-GOV-03-G3-352-00-00-00-00 | C175: ElastiCache - GovCloud (US) - On-Demand t2.medium redis | D175: PaaS | E175: Caching Services | F175: 0.08 | G175: 0.01 | H175: 0.0792
A176: Amazon | B176: AEC-GOV-03-G3-353-00-00-00-00 | C176: ElastiCache - GovCloud (US) - On-Demand t2.medium memcached | D176: PaaS | E176: Caching Services | F176: 0.08 | G176: 0.01 | H176: 0.0792
A177: Amazon | B177: AEC-GOV-03-R1-352-00-00-00-00 | C177: ElastiCache - GovCloud (US) - On-Demand r4.large redis | D177: PaaS | E177: Caching Services | F177: 0.273 | G177: 0.01 | H177: 0.27027
A178: Amazon | B178: AEC-GOV-03-R1-353-00-00-00-00 | C178: ElastiCache - GovCloud (US) - On-Demand r4.large memcached | D178: PaaS | E178: Caching Services | F178: 0.273 | G178: 0.01 | H178: 0.27027
A179: Amazon | B179: AEC-GOV-03-R2-352-00-00-00-00 | C179: ElastiCache - GovCloud (US) - On-Demand r4.xlarge redis | D179: PaaS | E179: Caching Services | F179: 0.546 | G179: 0.01 | H179: 0.54054
A180: Amazon | B180: AEC-GOV-03-R2-353-00-00-00-00 | C180: ElastiCache - GovCloud (US) - On-Demand r4.xlarge memcached | D180: PaaS | E180: Caching Services | F180: 0.546 | G180: 0.01 | H180: 0.54054
A181: Amazon | B181: AEC-GOV-03-R3-352-00-00-00-00 | C181: ElastiCache - GovCloud (US) - On-Demand r4.2xlarge redis | D181: PaaS | E181: Caching Services | F181: 1.092 | G181: 0.01 | H181: 1.08108
A182: Amazon | B182: AEC-GOV-03-R3-353-00-00-00-00 | C182: ElastiCache - GovCloud (US) - On-Demand r4.2xlarge memcached | D182: PaaS | E182: Caching Services | F182: 1.092 | G182: 0.01 | H182: 1.08108
A183: Amazon | B183: AEC-GOV-03-R4-352-00-00-00-00 | C183: ElastiCache - GovCloud (US) - On-Demand r4.4xlarge redis | D183: PaaS | E183: Caching Services | F183: 2.184 | G183: 0.01 | H183: 2.16216
A184: Amazon | B184: AEC-GOV-03-R4-353-00-00-00-00 | C184: ElastiCache - GovCloud (US) - On-Demand r4.4xlarge memcached | D184: PaaS | E184: Caching Services | F184: 2.184 | G184: 0.01 | H184: 2.16216
A185: Amazon | B185: AEC-GOV-03-R5-352-00-00-00-00 | C185: ElastiCache - GovCloud (US) - On-Demand r4.8xlarge redis | D185: PaaS | E185: Caching Services | F185: 4.368 | G185: 0.01 | H185: 4.32432
A186: Amazon | B186: AEC-GOV-03-R5-353-00-00-00-00 | C186: ElastiCache - GovCloud (US) - On-Demand r4.8xlarge memcached | D186: PaaS | E186: Caching Services | F186: 4.368 | G186: 0.01 | H186: 4.32432
A187: Amazon | B187: AEC-GOV-03-R6-352-00-00-00-00 | C187: ElastiCache - GovCloud (US) - On-Demand r4.16xlarge redis | D187: PaaS | E187: Caching Services | F187: 8.736 | G187: 0.01 | H187: 8.64864
A188: Amazon | B188: AEC-GOV-03-R6-353-00-00-00-00 | C188: ElastiCache - GovCloud (US) - On-Demand r4.16xlarge memcached | D188: PaaS | E188: Caching Services | F188: 8.736 | G188: 0.01 | H188: 8.64864
A189: Amazon | B189: AEC-GOV-03-Y6-352-00-00-00-00 | C189: ElastiCache - GovCloud (US) - On-Demand m5.large redis | D189: PaaS | E189: Caching Services | F189: 0.197 | G189: 0.01 | H189: 0.19503
A190: Amazon | B190: AEC-GOV-03-Y6-352-00-77-00-00 | C190: ElastiCache - GovCloud (US) - On-Demand m5.large redis Outposts | D190: PaaS | E190: Caching Services | F190: 0.076 | G190: 0.01 | H190: 0.07524
A191: Amazon | B191: AEC-GOV-03-Y6-353-00-00-00-00 | C191: ElastiCache - GovCloud (US) - On-Demand m5.large memcached | D191: PaaS | E191: Caching Services | F191: 0.197 | G191: 0.01 | H191: 0.19503
A192: Amazon | B192: AEC-GOV-03-Y6-353-00-77-00-00 | C192: ElastiCache - GovCloud (US) - On-Demand m5.large memcached Outposts | D192: PaaS | E192: Caching Services | F192: 0.076 | G192: 0.01 | H192: 0.07524
A193: Amazon | B193: AEC-GOV-03-Y7-352-00-00-00-00 | C193: ElastiCache - GovCloud (US) - On-Demand m5.xlarge redis | D193: PaaS | E193: Caching Services | F193: 0.393 | G193: 0.01 | H193: 0.38907
A194: Amazon | B194: AEC-GOV-03-Y7-352-00-77-00-00 | C194: ElastiCache - GovCloud (US) - On-Demand m5.xlarge redis Outposts | D194: PaaS | E194: Caching Services | F194: 0.152 | G194: 0.01 | H194: 0.15048
A195: Amazon | B195: AEC-GOV-03-Y7-353-00-00-00-00 | C195: ElastiCache - GovCloud (US) - On-Demand m5.xlarge memcached | D195: PaaS | E195: Caching Services | F195: 0.393 | G195: 0.01 | H195: 0.38907
A196: Amazon | B196: AEC-GOV-03-Y7-353-00-77-00-00 | C196: ElastiCache - GovCloud (US) - On-Demand m5.xlarge memcached Outposts | D196: PaaS | E196: Caching Services | F196: 0.152 | G196: 0.01 | H196: 0.15048
A197: Amazon | B197: AEC-GOV-03-Y8-352-00-00-00-00 | C197: ElastiCache - GovCloud (US) - On-Demand m5.2xlarge redis | D197: PaaS | E197: Caching Services | F197: 0.787 | G197: 0.01 | H197: 0.77913
A198: Amazon | B198: AEC-GOV-03-Y8-352-00-77-00-00 | C198: ElastiCache - GovCloud (US) - On-Demand m5.2xlarge redis Outposts | D198: PaaS | E198: Caching Services | F198: 0.304 | G198: 0.01 | H198: 0.30096
A199: Amazon | B199: AEC-GOV-03-Y8-353-00-00-00-00 | C199: ElastiCache - GovCloud (US) - On-Demand m5.2xlarge memcached | D199: PaaS | E199: Caching Services | F199: 0.787 | G199: 0.01 | H199: 0.77913
A200: Amazon | B200: AEC-GOV-03-Y8-353-00-77-00-00 | C200: ElastiCache - GovCloud (US) - On-Demand m5.2xlarge memcached Outposts | D200: PaaS | E200: Caching Services | F200: 0.304 | G200: 0.01 | H200: 0.30096
... 4300 more rows

Sheet Axe Dev
A1: Manufacturer | B1: Part Number | C1: Description | D1: Category | E1: Sub-Category | F1: LIST PRICE | G1: MINIMUM DISCOUNT | H1: NVP PRICE | I1: Unit
A2: Axe Dev | B2: AxeDevTools_E | C2: Axe DevTools Extension SaaS 6 Authorized Users | D2: SaaS | F2: 3600 | G2: 0.01 | H2: 3564 | I2: EA
A3: Axe Dev | B3: AxeDevTools_M | C3: Axe DevTools for Mobile SaaS 6 Authorized Users | D3: SaaS | F3: 9720 | G3: 0.01 | H3: 9622.8 | I3: EA
A4: Axe Dev | B4: AxeDevTools_M_MDP | C4: Managed Deployment Package for Axe DevTools for Mobile | D4: Value Added Services | F4: 6000 | G4: 0.01 | H4: 5940 | I4: EA
A5: Axe Dev | B5: AxeDevTools_MDP | C5: Managed Deployment Package for Axe Monitor | D5: Value Added Services | F5: 6000 | G5: 0.01 | H5: 5940 | I5: EA
A6: Axe Dev | B6: AxeMonitor | C6: Axe Monitor SaaS 25,000 Pages | D6: SaaS | F6: 18600 | G6: 0.01 | H6: 18414 | I6: EA

Sheet AXON ENTERPRISE
A1: Manufacturer | B1: Part Number | C1: Description | D1: Category | E1: Sub-Category | F1: LIST PRICE | G1: MINIMUM DISCOUNT | H1: NVP PRICE | I1: Unit
A2: AXON ENTERPRISE | B2: AX-FS-ENT-PLUS | C2: Bundle, Fusus Enterprise Plus, Bundle Includes Axon Elite 2.0 44TB HDD Storage - T, Elite AI 2.0 44TB HDD Storage -T, Pro AI 8TB HDD Storage-T, Pro 2.0 4TB HDD Storage -T, CAD-T, Listen -T, Enterprise Plus SaaS, Fusus Software Implementation, Fusus Hardware Deployment Priced Annually, Invoiced Annually Upfront Period of Performance: 08/2024 - 08/2029 | D2: SaaS | F2: 360000 | G2: 0.01 | H2: =F2*0.99 -> 356400 | I2: EA
A3: AXON ENTERPRISE | B3: AX-RFC-EXT-WTY | C3: Axon Respond - Fusus Core - Extended Warranty | D3: Value Added Services | F3: 0 | G3: 0.01 | H3: =F3*0.99 -> 0 | I3: EA
A4: AXON ENTERPRISE | B4: AX-RFC-PRO2-4TBHDD | C4: Axon Respond Hardware - Fusus Core - PRO 2.0 4TB HDD Storage | D4: IaaS | F4: 720 | G4: 0.01 | H4: =F4*0.99 -> 712.8 | I4: EA
A5: AXON ENTERPRISE | B5: AX-RFO-ENT-SAASEXP | C5: Axon Respond Fusus One, Enterprise SaaS Expansion | D5: SaaS | F5: 2700 | G5: 0.01 | H5: =F5*0.99 -> 2673 | I5: EA

Sheet Barracuda
A1: Manufacturer | B1: Part Number | C1: Description | D1: List Price | E1: MINIMUM DISCOUNT | F1: NVP PRICE | G1: Unit
A2: Barracuda | B2: BASCCCAZ005a | C2: Barracuda WAF Control Center for Microsoft Azure Account Level 5 | D2: 0 | E2: 0.01 | F2: 0 | G2: Each
A3: Barracuda | B3: BASCCCAZ005a-p1 | C3: Barracuda WAF Control Center for Microsoft Azure Account Level 5 1 Year Premium Support | D3: 1758.9 | E3: 0.01 | F3: 1741.311 | G3: Each
A4: Barracuda | B4: BASCCCAZ005a-p3 | C4: Barracuda WAF Control Center for Microsoft Azure Account Level 5 3 Year Premium Support | D4: 5276.7 | E4: 0.01 | F4: 5223.933 | G4: Each
A5: Barracuda | B5: BASCCCAZ005a-p5 | C5: Barracuda WAF Control Center for Microsoft Azure Account Level 5 5 Year Premium Support | D5: 8794.5 | E5: 0.01 | F5: 8706.555 | G5: Each
A6: Barracuda | B6: BASCCCAZ005a-v1 | C6: Barracuda WAF Control Center for Microsoft Azure Account Level 5 1 Year License | D6: 8028.9 | E6: 0.01 | F6: 7948.611 | G6: Each
A7: Barracuda | B7: BASCCCAZ005a-v3 | C7: Barracuda WAF Control Center for Microsoft Azure Account Level 5 3 Year License | D7: 24086.7 | E7: 0.01 | F7: 23845.833 | G7: Each
A8: Barracuda | B8: BASCCCAZ005a-v5 | C8: Barracuda WAF Control Center for Microsoft Azure Account Level 5 5 Year License | D8: 40144.5 | E8: 0.01 | F8: 39743.055 | G8: Each
A9: Barracuda | B9: BBFCAW003a | C9: Barracuda Load Balancer for Amazon Web Service Account Level 3 | D9: 0 | E9: 0.01 | F9: 0 | G9: Each
A10: Barracuda | B10: BBFCAW003a-v1 | C10: Barracuda Load Balancer for Amazon Web Service Level 3 - 1 year | D10: 2748.9 | E10: 0.01 | F10: 2721.411 | G10: Each
A11: Barracuda | B11: BBFCAW003a-v3 | C11: Barracuda Load Balancer for Amazon Web Service Level 3 - 3 year | D11: 8246.7 | E11: 0.01 | F11: 8164.233 | G11: Each
A12: Barracuda | B12: BBFCAW003a-v5 | C12: Barracuda Load Balancer for Amazon Web Service Level 3 - 5 year | D12: 13744.5 | E12: 0.01 | F12: 13607.055 | G12: Each
A13: Barracuda | B13: BBFCAW006a | C13: Barracuda Load Balancer for Amazon Web Service Account Level 6 | D13: 0 | E13: 0.01 | F13: 0 | G13: Each
A14: Barracuda | B14: BBFCAW006a-v1 | C14: Barracuda Load Balancer for Amazon Web Service Level 6 - 1 year | D14: 9348.9 | E14: 0.01 | F14: 9255.411 | G14: Each
A15: Barracuda | B15: BBFCAW006a-v3 | C15: Barracuda Load Balancer for Amazon Web Service Level 6 - 3 year | D15: 28046.7 | E15: 0.01 | F15: 27766.233 | G15: Each
A16: Barracuda | B16: BBFCAW006a-v5 | C16: Barracuda Load Balancer for Amazon Web Service Level 6 - 5 year | D16: 46744.5 | E16: 0.01 | F16: 46277.055 | G16: Each
A17: Barracuda | B17: BNACCAW400a | C17: Barracuda Secure Access Controller ACC400 for AWS Account | D17: 0 | E17: 0.01 | F17: 0 | G17: Each
A18: Barracuda | B18: BNACCAW400a-a1 | C18: Barracuda Secure Access Controller ACC400 for AWS - 1 Year Advanced Threat Protection | D18: 141.9 | E18: 0.01 | F18: 140.481 | G18: Each
A19: Barracuda | B19: BNACCAW400a-a3 | C19: Barracuda Secure Access Controller ACC400 for AWS - 3 Year Advanced Threat Protection | D19: 425.7 | E19: 0.01 | F19: 421.443 | G19: Each
A20: Barracuda | B20: BNACCAW400a-a5 | C20: Barracuda Secure Access Controller ACC400 for AWS - 5 Year Advanced Threat Protection | D20: 709.5 | E20: 0.01 | F20: 702.405 | G20: Each
A21: Barracuda | B21: BNACCAW400a-am1 | C21: Barracuda Secure Access Controller ACC400 for AWS - 1 Year Advanced Threat and Malware Protection Bundle | D21: 196.9 | E21: 0.01 | F21: 194.931 | G21: Each
A22: Barracuda | B22: BNACCAW400a-am3 | C22: Barracuda Secure Access Controller ACC400 for AWS - 3 Year Advanced Threat and Malware Protection Bundle | D22: 752.4 | E22: 0.01 | F22: 744.876 | G22: Each
A23: Barracuda | B23: BNACCAW400a-am5 | C23: Barracuda Secure Access Controller ACC400 for AWS - 5 Year Advanced Threat and Malware Protection Bundle | D23: 1254 | E23: 0.01 | F23: 1241.46 | G23: Each
A24: Barracuda | B24: BNACCAW400a-m1 | C24: Barracuda Secure Access Controller ACC400 for AWS - 1 Year Malware Protection | D24: 108.9 | E24: 0.01 | F24: 107.811 | G24: Each
A25: Barracuda | B25: BNACCAW400a-m3 | C25: Barracuda Secure Access Controller ACC400 for AWS - 3 Year Malware Protection | D25: 326.7 | E25: 0.01 | F25: 323.433 | G25: Each
A26: Barracuda | B26: BNACCAW400a-m5 | C26: Barracuda Secure Access Controller ACC400 for AWS - 5 Year Malware Protection | D26: 544.5 | E26: 0.01 | F26: 539.055 | G26: Each
A27: Barracuda | B27: BNACCAW400a-v1 | C27: Barracuda Secure Access Controller ACC400 for AWS - 1 year | D27: 713.9 | E27: 0.01 | F27: 706.761 | G27: Each
A28: Barracuda | B28: BNACCAW400a-v3 | C28: Barracuda Secure Access Controller ACC400 for AWS - 3 year | D28: 2141.7 | E28: 0.01 | F28: 2120.283 | G28: Each
A29: Barracuda | B29: BNACCAW400a-v5 | C29: Barracuda Secure Access Controller ACC400 for AWS - 5 year | D29: 3569.5 | E29: 0.01 | F29: 3533.805 | G29: Each
A30: Barracuda | B30: BNACCAW820a | C30: Barracuda Secure Access Controller ACC820 for AWS Account | D30: 0 | E30: 0.01 | F30: 0 | G30: Each
A31: Barracuda | B31: BNACCAW820a-a1 | C31: Barracuda Secure Access Controller ACC820 for AWS - 1 Year Advanced Threat Protection | D31: 1670.9 | E31: 0.01 | F31: 1654.191 | G31: Each
A32: Barracuda | B32: BNACCAW820a-a3 | C32: Barracuda Secure Access Controller ACC820 for AWS - 3 Year Advanced Threat Protection | D32: 5012.7 | E32: 0.01 | F32: 4962.573 | G32: Each
A33: Barracuda | B33: BNACCAW820a-a5 | C33: Barracuda Secure Access Controller ACC820 for AWS - 5 Year Advanced Threat Protection | D33: 8354.5 | E33: 0.01 | F33: 8270.955 | G33: Each
A34: Barracuda | B34: BNACCAW820a-am1 | C34: Barracuda Secure Access Controller ACC820 for AWS - 1 Year Advanced Threat and Malware Protection Bundle | D34: 2198.9 | E34: 0.01 | F34: 2176.911 | G34: Each
A35: Barracuda | B35: BNACCAW820a-am3 | C35: Barracuda Secure Access Controller ACC820 for AWS - 3 Year Advanced Threat and Malware Protection Bundle | D35: 8507.4 | E35: 0.01 | F35: 8422.326 | G35: Each
A36: Barracuda | B36: BNACCAW820a-am5 | C36: Barracuda Secure Access Controller ACC820 for AWS - 5 Year Advanced Threat and Malware Protection Bundle | D36: 14179 | E36: 0.01 | F36: 14037.21 | G36: Each
A37: Barracuda | B37: BNACCAW820a-m1 | C37: Barracuda Secure Access Controller ACC820 for AWS - 1 Year Malware Protection | D37: 1164.9 | E37: 0.01 | F37: 1153.251 | G37: Each
A38: Barracuda | B38: BNACCAW820a-m3 | C38: Barracuda Secure Access Controller ACC820 for AWS - 3 Year Malware Protection | D38: 3494.7 | E38: 0.01 | F38: 3459.753 | G38: Each
A39: Barracuda | B39: BNACCAW820a-m5 | C39: Barracuda Secure Access Controller ACC820 for AWS - 5 Year Malware Protection | D39: 5824.5 | E39: 0.01 | F39: 5766.255 | G39: Each
A40: Barracuda | B40: BNACCAW820a-v1 | C40: Barracuda Secure Access Controller ACC820 for AWS - 1 year | D40: 8358.9 | E40: 0.01 | F40: 8275.311 | G40: Each
A41: Barracuda | B41: BNACCAW820a-v3 | C41: Barracuda Secure Access Controller ACC820 for AWS - 3 year | D41: 25076.7 | E41: 0.01 | F41: 24825.933 | G41: Each
A42: Barracuda | B42: BNACCAW820a-v5 | C42: Barracuda Secure Access Controller ACC820 for AWS - 5 year | D42: 41794.5 | E42: 0.01 | F42: 41376.555 | G42: Each
A43: Barracuda | B43: BNACCAZ400a | C43: Barracuda Secure Access Controller ACC400 for Azure Account | D43: 0 | E43: 0.01 | F43: 0 | G43: Each
A44: Barracuda | B44: BNACCAZ400a-a1 | C44: Barracuda Secure Access Controller ACC400 for Azure - 1 Year Advanced Threat Protection | D44: 141.9 | E44: 0.01 | F44: 140.481 | G44: Each
A45: Barracuda | B45: BNACCAZ400a-a3 | C45: Barracuda Secure Access Controller ACC400 for Azure - 3 Year Advanced Threat Protection | D45: 425.7 | E45: 0.01 | F45: 421.443 | G45: Each
A46: Barracuda | B46: BNACCAZ400a-a5 | C46: Barracuda Secure Access Controller ACC400 for Azure - 5 Year Advanced Threat Protection | D46: 709.5 | E46: 0.01 | F46: 702.405 | G46: Each
A47: Barracuda | B47: BNACCAZ400a-am1 | C47: Barracuda Secure Access Controller ACC400 for Azure - 1 Year Advanced Threat and Malware Protection Bundle | D47: 196.9 | E47: 0.01 | F47: 194.931 | G47: Each
A48: Barracuda | B48: BNACCAZ400a-am3 | C48: Barracuda Secure Access Controller ACC400 for Azure - 3 Year Advanced Threat and Malware Protection Bundle | D48: 752.4 | E48: 0.01 | F48: 744.876 | G48: Each
A49: Barracuda | B49: BNACCAZ400a-am5 | C49: Barracuda Secure Access Controller ACC400 for Azure - 5 Year Advanced Threat and Malware Protection Bundle | D49: 1254 | E49: 0.01 | F49: 1241.46 | G49: Each
A50: Barracuda | B50: BNACCAZ400a-m1 | C50: Barracuda Secure Access Controller ACC400 for Azure - 1 Year Malware Protection | D50: 108.9 | E50: 0.01 | F50: 107.811 | G50: Each
A51: Barracuda | B51: BNACCAZ400a-m3 | C51: Barracuda Secure Access Controller ACC400 for Azure - 3 Year Malware Protection | D51: 326.7 | E51: 0.01 | F51: 323.433 | G51: Each
A52: Barracuda | B52: BNACCAZ400a-m5 | C52: Barracuda Secure Access Controller ACC400 for Azure - 5 Year Malware Protection | D52: 544.5 | E52: 0.01 | F52: 539.055 | G52: Each
A53: Barracuda | B53: BNACCAZ400a-v1 | C53: Barracuda Secure Access Controller ACC400 for Azure - 1 year | D53: 713.9 | E53: 0.01 | F53: 706.761 | G53: Each
A54: Barracuda | B54: BNACCAZ400a-v3 | C54: Barracuda Secure Access Controller ACC400 for Azure - 3 year | D54: 2141.7 | E54: 0.01 | F54: 2120.283 | G54: Each
A55: Barracuda | B55: BNACCAZ400a-v5 | C55: Barracuda Secure Access Controller ACC400 for Azure - 5 year | D55: 3569.5 | E55: 0.01 | F55: 3533.805 | G55: Each
A56: Barracuda | B56: BNACCAZ820a | C56: Barracuda Secure Access Controller ACC820 for Azure Account | D56: 0 | E56: 0.01 | F56: 0 | G56: Each
A57: Barracuda | B57: BNACCAZ820a-a1 | C57: Barracuda Secure Access Controller ACC820 for Azure - 1 Year Advanced Threat Protection | D57: 1670.9 | E57: 0.01 | F57: 1654.191 | G57: Each
A58: Barracuda | B58: BNACCAZ820a-a3 | C58: Barracuda Secure Access Controller ACC820 for Azure - 3 Year Advanced Threat Protection | D58: 5012.7 | E58: 0.01 | F58: 4962.573 | G58: Each
A59: Barracuda | B59: BNACCAZ820a-a5 | C59: Barracuda Secure Access Controller ACC820 for Azure - 5 Year Advanced Threat Protection | D59: 8354.5 | E59: 0.01 | F59: 8270.955 | G59: Each
A60: Barracuda | B60: BNACCAZ820a-am1 | C60: Barracuda Secure Access Controller ACC820 for Azure - 1 Year Advanced Threat and Malware Protection Bundle | D60: 2198.9 | E60: 0.01 | F60: 2176.911 | G60: Each
A61: Barracuda | B61: BNACCAZ820a-am3 | C61: Barracuda Secure Access Controller ACC820 for Azure - 3 Year Advanced Threat and Malware Protection Bundle | D61: 8507.4 | E61: 0.01 | F61: 8422.326 | G61: Each
A62: Barracuda | B62: BNACCAZ820a-am5 | C62: Barracuda Secure Access Controller ACC820 for Azure - 5 Year Advanced Threat and Malware Protection Bundle | D62: 14179 | E62: 0.01 | F62: 14037.21 | G62: Each
A63: Barracuda | B63: BNACCAZ820a-m1 | C63: Barracuda Secure Access Controller ACC820 for Azure - 1 Year Malware Protection | D63: 1164.9 | E63: 0.01 | F63: 1153.251 | G63: Each
A64: Barracuda | B64: BNACCAZ820a-m3 | C64: Barracuda Secure Access Controller ACC820 for Azure - 3 Year Malware Protection | D64: 3494.7 | E64: 0.01 | F64: 3459.753 | G64: Each
A65: Barracuda | B65: BNACCAZ820a-m5 | C65: Barracuda Secure Access Controller ACC820 for Azure - 5 Year Malware Protection | D65: 5824.5 | E65: 0.01 | F65: 5766.255 | G65: Each
A66: Barracuda | B66: BNACCAZ820a-p1 | C66: Barracuda Secure Access Controller ACC820 for Azure - 1 year Premium Support | D66: 1087.9 | E66: 0.01 | F66: 1077.021 | G66: Each
A67: Barracuda | B67: BNACCAZ820a-p3 | C67: Barracuda Secure Access Controller ACC820 for Azure - 3 year Premium Support | D67: 3263.7 | E67: 0.01 | F67: 3231.063 | G67: Each
A68: Barracuda | B68: BNACCAZ820a-p5 | C68: Barracuda Secure Access Controller ACC820 for Azure - 5 year Premium Support | D68: 5439.5 | E68: 0.01 | F68: 5385.105 | G68: Each
A69: Barracuda | B69: BNACCAZ820a-v1 | C69: Barracuda Secure Access Controller ACC820 for Azure - 1 year | D69: 8358.9 | E69: 0.01 | F69: 8275.311 | G69: Each
A70: Barracuda | B70: BNACCAZ820a-v3 | C70: Barracuda Secure Access Controller ACC820 for Azure - 3 year | D70: 25076.7 | E70: 0.01 | F70: 24825.933 | G70: Each
A71: Barracuda | B71: BNACCAZ820a-v5 | C71: Barracuda Secure Access Controller ACC820 for Azure - 5 year | D71: 41794.5 | E71: 0.01 | F71: 41376.555 | G71: Each
A72: Barracuda | B72: BNACCLD400a | C72: Barracuda Secure Access Controller ACC400 for GCP Account | D72: 0 | E72: 0.01 | F72: 0 | G72: Each
A73: Barracuda | B73: BNACCLD400a-a1 | C73: Barracuda Secure Access Controller ACC400 for GCP - 1 Year Advanced Threat Protection | D73: 141.9 | E73: 0.01 | F73: 140.481 | G73: Each
A74: Barracuda | B74: BNACCLD400a-a3 | C74: Barracuda Secure Access Controller ACC400 for GCP - 3 Year Advanced Threat Protection | D74: 425.7 | E74: 0.01 | F74: 421.443 | G74: Each
A75: Barracuda | B75: BNACCLD400a-a5 | C75: Barracuda Secure Access Controller ACC400 for GCP - 5 Year Advanced Threat Protection | D75: 709.5 | E75: 0.01 | F75: 702.405 | G75: Each
A76: Barracuda | B76: BNACCLD400a-am1 | C76: Barracuda Secure Access Controller ACC400 for GCP - 1 Year Advanced Threat and Malware Protection Bundle | D76: 196.9 | E76: 0.01 | F76: 194.931 | G76: Each
A77: Barracuda | B77: BNACCLD400a-am3 | C77: Barracuda Secure Access Controller ACC400 for GCP - 3 Year Advanced Threat and Malware Protection Bundle | D77: 752.4 | E77: 0.01 | F77: 744.876 | G77: Each
A78: Barracuda | B78: BNACCLD400a-am5 | C78: Barracuda Secure Access Controller ACC400 for GCP - 5 Year Advanced Threat and Malware Protection Bundle | D78: 1254 | E78: 0.01 | F78: 1241.46 | G78: Each
A79: Barracuda | B79: BNACCLD400a-m1 | C79: Barracuda Secure Access Controller ACC400 for GCP - 1 Year Malware Protection | D79: 108.9 | E79: 0.01 | F79: 107.811 | G79: Each
A80: Barracuda | B80: BNACCLD400a-m3 | C80: Barracuda Secure Access Controller ACC400 for GCP - 3 Year Malware Protection | D80: 326.7 | E80: 0.01 | F80: 323.433 | G80: Each
A81: Barracuda | B81: BNACCLD400a-m5 | C81: Barracuda Secure Access Controller ACC400 for GCP - 5 Year Malware Protection | D81: 544.5 | E81: 0.01 | F81: 539.055 | G81: Each
A82: Barracuda | B82: BNACCLD400a-v1 | C82: Barracuda Secure Access Controller ACC400 for GCP - 1 Year License | D82: 713.9 | E82: 0.01 | F82: 706.761 | G82: Each
A83: Barracuda | B83: BNACCLD400a-v3 | C83: Barracuda Secure Access Controller ACC400 for GCP - 3 Year License | D83: 2141.7 | E83: 0.01 | F83: 2120.283 | G83: Each
A84: Barracuda | B84: BNACCLD400a-v5 | C84: Barracuda Secure Access Controller ACC400 for GCP - 5 Year License | D84: 3569.5 | E84: 0.01 | F84: 3533.805 | G84: Each
A85: Barracuda | B85: BNACCLD820a | C85: Barracuda Secure Access Controller ACC820 for GCP Account | D85: 0 | E85: 0.01 | F85: 0 | G85: Each
A86: Barracuda | B86: BNACCLD820a-a1 | C86: Barracuda Secure Access Controller ACC820 for GCP - 1 Year Advanced Threat Protection | D86: 1670.9 | E86: 0.01 | F86: 1654.191 | G86: Each
A87: Barracuda | B87: BNACCLD820a-a3 | C87: Barracuda Secure Access Controller ACC820 for GCP - 3 Year Advanced Threat Protection | D87: 5012.7 | E87: 0.01 | F87: 4962.573 | G87: Each
A88: Barracuda | B88: BNACCLD820a-a5 | C88: Barracuda Secure Access Controller ACC820 for GCP - 5 Year Advanced Threat Protection | D88: 8354.5 | E88: 0.01 | F88: 8270.955 | G88: Each
A89: Barracuda | B89: BNACCLD820a-am1 | C89: Barracuda Secure Access Controller ACC820 for GCP - 1 Year Advanced Threat and Malware Protection Bundle | D89: 2198.9 | E89: 0.01 | F89: 2176.911 | G89: Each
A90: Barracuda | B90: BNACCLD820a-am3 | C90: Barracuda Secure Access Controller ACC820 for GCP - 3 Year Advanced Threat and Malware Protection Bundle | D90: 8507.4 | E90: 0.01 | F90: 8422.326 | G90: Each
A91: Barracuda | B91: BNACCLD820a-am5 | C91: Barracuda Secure Access Controller ACC820 for GCP - 5 Year Advanced Threat and Malware Protection Bundle | D91: 14179 | E91: 0.01 | F91: 14037.21 | G91: Each
A92: Barracuda | B92: BNACCLD820a-m1 | C92: Barracuda Secure Access Controller ACC820 for GCP - 1 Year Malware Protection | D92: 1164.9 | E92: 0.01 | F92: 1153.251 | G92: Each
A93: Barracuda | B93: BNACCLD820a-m3 | C93: Barracuda Secure Access Controller ACC820 for GCP - 3 Year Malware Protection | D93: 3494.7 | E93: 0.01 | F93: 3459.753 | G93: Each
A94: Barracuda | B94: BNACCLD820a-m5 | C94: Barracuda Secure Access Controller ACC820 for GCP - 5 Year Malware Protection | D94: 5824.5 | E94: 0.01 | F94: 5766.255 | G94: Each
A95: Barracuda | B95: BNACCLD820a-p1 | C95: Barracuda Secure Access Controller ACC820 for GCP - 1 year Premium Support | D95: 1087.9 | E95: 0.01 | F95: 1077.021 | G95: Each
A96: Barracuda | B96: BNACCLD820a-p3 | C96: Barracuda Secure Access Controller ACC820 for GCP - 3 year Premium Support | D96: 3263.7 | E96: 0.01 | F96: 3231.063 | G96: Each
A97: Barracuda | B97: BNACCLD820a-p5 | C97: Barracuda Secure Access Controller ACC820 for GCP - 5 year Premium Support | D97: 5439.5 | E97: 0.01 | F97: 5385.105 | G97: Each
A98: Barracuda | B98: BNACCLD820a-v1 | C98: Barracuda Secure Access Controller ACC820 for GCP - 1 Year License | D98: 8358.9 | E98: 0.01 | F98: 8275.311 | G98: Each
A99: Barracuda | B99: BNACCLD820a-v3 | C99: Barracuda Secure Access Controller ACC820 for GCP - 3 Year License | D99: 25076.7 | E99: 0.01 | F99: 24825.933 | G99: Each
A100: Barracuda | B100: BNACCLD820a-v5 | C100: Barracuda Secure Access Controller ACC820 for GCP - 5 Year License | D100: 41794.5 | E100: 0.01 | F100: 41376.555 | G100: Each
A101: Barracuda | B101: BNCCAW400a | C101: Barracuda Firewall Control Center VCC400 for AWS Account | D101: 0 | E101: 0.01 | F101: 0 | G101: Each
A102: Barracuda | B102: BNCCAW400a-v1 | C102: Barracuda Firewall Control Center VCC400 for AWS Account 1 Year Term | D102: 2748.9 | E102: 0.01 | F102: 2721.411 | G102: Each
A103: Barracuda | B103: BNCCAW400a-v3 | C103: Barracuda Firewall Control Center VCC400 for AWS Account 3 Year Term | D103: 8246.7 | E103: 0.01 | F103: 8164.233 | G103: Each
A104: Barracuda | B104: BNCCAW400a-v5 | C104: Barracuda Firewall Control Center VCC400 for AWS Account 5 Year Term | D104: 13744.5 | E104: 0.01 | F104: 13607.055 | G104: Each
A105: Barracuda | B105: BNCCAZ400a | C105: Barracuda Firewall Control Center VCC400 for Azure Account | D105: 0 | E105: 0.01 | F105: 0 | G105: Each
A106: Barracuda | B106: BNCCAZ400a-v1 | C106: Barracuda Firewall Control Center VCC400 for Azure - 1 year | D106: 2748.9 | E106: 0.01 | F106: 2721.411 | G106: Each
A107: Barracuda | B107: BNCCAZ400a-v3 | C107: Barracuda Firewall Control Center VCC400 for Azure - 3 year | D107: 8246.7 | E107: 0.01 | F107: 8164.233 | G107: Each
A108: Barracuda | B108: BNCCAZ400a-v5 | C108: Barracuda Firewall Control Center VCC400 for Azure - 5 year | D108: 13744.5 | E108: 0.01 | F108: 13607.055 | G108: Each
A109: Barracuda | B109: BNCCLD400a | C109: Barracuda Firewall Control Center VCC400 for GCP | D109: 0 | E109: 0.01 | F109: 0 | G109: Each
A110: Barracuda | B110: BNCCLD400a-v1 | C110: Barracuda Firewall Control Center VCC400 for GCP - 1 Year License | D110: 2748.9 | E110: 0.01 | F110: 2721.411 | G110: Each
A111: Barracuda | B111: BNCCLD400a-v3 | C111: Barracuda Firewall Control Center VCC400 for GCP - 3 Year License | D111: 8246.7 | E111: 0.01 | F111: 8164.233 | G111: Each
A112: Barracuda | B112: BNCCLD400a-v5 | C112: Barracuda Firewall Control Center VCC400 for GCP - 5 Year License | D112: 13744.5 | E112: 0.01 | F112: 13607.055 | G112: Each
A113: Barracuda | B113: BNGCAW001a | C113: Barracuda CloudGen Firewall for Amazon Web Service Account Level 1 | D113: 0 | E113: 0.01 | F113: 0 | G113: Each
A114: Barracuda | B114: BNGCAW001a-am1 | C114: Barracuda CloudGen Firewall for Amazon Web Services Account Level 1 1 Year Advanced Threat and Malware Protection Bundle | D114: 342.63 | E114: 0.01 | F114: 339.2037 | G114: Each
A115: Barracuda | B115: BNGCAW001a-am3 | C115: Barracuda CloudGen Firewall for Amazon Web Services Account Level 1 3 Year Advanced Threat and Malware Protection Bundle | D115: 1344.15 | E115: 0.01 | F115: 1330.7085 | G115: Each
A116: Barracuda | B116: BNGCAW001a-am5 | C116: Barracuda CloudGen Firewall for Amazon Web Services Account Level 1 5 Year Advanced Threat and Malware Protection Bundle | D116: 2240.25 | E116: 0.01 | F116: 2217.8475 | G116: Each
A117: Barracuda | B117: BNGCAW001a-m1 | C117: Barracuda CloudGen Firewall Malware Protection for Amazon Web Services Level 1 - 1 Year | D117: 184.49 | E117: 0.01 | F117: 182.6451 | G117: Each
A118: Barracuda | B118: BNGCAW001a-m3 | C118: Barracuda CloudGen Firewall Malware Protection for Amazon Web Services Level 1 - 3 Year | D118: 553.47 | E118: 0.01 | F118: 547.9353 | G118: Each
A119: Barracuda | B119: BNGCAW001a-m5 | C119: Barracuda CloudGen Firewall Malware Protection for Amazon Web Services Level 1 - 5 Year | D119: 922.45 | E119: 0.01 | F119: 913.2255 | G119: Each
A120: Barracuda | B120: BNGCAW001a-p1 | C120: Barracuda CloudGen Firewall Premium Support for Amazon Web Service Level 1 - 1 year | D120: 329.45 | E120: 0.01 | F120: 326.1555 | G120: Each
A121: Barracuda | B121: BNGCAW001a-p3 | C121: Barracuda CloudGen Firewall Premium Support for Amazon Web Service Level 1 - 3 year | D121: 988.35 | E121: 0.01 | F121: 978.4665 | G121: Each
A122: Barracuda | B122: BNGCAW001a-p5 | C122: Barracuda CloudGen Firewall Premium Support for Amazon Web Service Level 1 - 5 year | D122: 1647.25 | E122: 0.01 | F122: 1630.7775 | G122: Each
A123: Barracuda | B123: BNGCAW001a-v1 | C123: Barracuda CloudGen Firewall for Amazon Web Service Level 1 - 1 Year | D123: 1317.8 | E123: 0.01 | F123: 1304.622 | G123: Each
A124: Barracuda | B124: BNGCAW001a-v3 | C124: Barracuda CloudGen Firewall for Amazon Web Service Level 1 - 3 year | D124: 3953.4 | E124: 0.01 | F124: 3913.866 | G124: Each
A125: Barracuda | B125: BNGCAW001a-v5 | C125: Barracuda CloudGen Firewall for Amazon Web Service Level 1 - 5 year | D125: 6589 | E125: 0.01 | F125: 6523.11 | G125: Each
A126: Barracuda | B126: BNGCAW001a-vp1 | C126: Barracuda CloudGen Firewall for Amazon Web Services Account Level 1 1 Year Advanced Remote Access | D126: 329.45 | E126: 0.01 | F126: 326.1555 | G126: Each
A127: Barracuda | B127: BNGCAW001a-vp3 | C127: Barracuda CloudGen Firewall for Amazon Web Services Account Level 1 3 Year Advanced Remote Access | D127: 988.35 | E127: 0.01 | F127: 978.4665 | G127: Each
A128: Barracuda | B128: BNGCAW001a-vp5 | C128: Barracuda CloudGen Firewall for Amazon Web Services Account Level 1 5 Year Advanced Remote Access | D128: 1647.25 | E128: 0.01 | F128: 1630.7775 | G128: Each
A129: Barracuda | B129: BNGCAW004a | C129: Barracuda CloudGen Firewall for AWS Account Level 4 | D129: 0 | E129: 0.01 | F129: 0 | G129: Each
A130: Barracuda | B130: BNGCAW004a-am1 | C130: Barracuda CloudGen Firewall for AWS Account Level 4 1 Year Advanced Threat and Malware Protection Bundle | D130: 1593.9 | E130: 0.01 | F130: 1577.961 | G130: Each
A131: Barracuda | B131: BNGCAW004a-am3 | C131: Barracuda CloudGen Firewall for AWS Account Level 4 3 Year Advanced Threat and Malware Protection Bundle | D131: 6164.4 | E131: 0.01 | F131: 6102.756 | G131: Each
A132: Barracuda | B132: BNGCAW004a-am5 | C132: Barracuda CloudGen Firewall for AWS Account Level 4 5 Year Advanced Threat and Malware Protection Bundle | D132: 10274 | E132: 0.01 | F132: 10171.26 | G132: Each
A133: Barracuda | B133: BNGCAW004a-m1 | C133: Barracuda CloudGen Firewall Malware Protection for AWS Level 4 - 1 Year | D133: 845.9 | E133: 0.01 | F133: 837.441 | G133: Each
A134: Barracuda | B134: BNGCAW004a-m3 | C134: Barracuda CloudGen Firewall Malware Protection for AWS Level 4 - 3 Year | D134: 2537.7 | E134: 0.01 | F134: 2512.323 | G134: Each
A135: Barracuda | B135: BNGCAW004a-m5 | C135: Barracuda CloudGen Firewall Malware Protection for AWS Level 4 - 5 Year | D135: 4229.5 | E135: 0.01 | F135: 4187.205 | G135: Each
A136: Barracuda | B136: BNGCAW004a-p1 | C136: Barracuda CloudGen Firewall Premium Support for AWS Level 4 - 1 year | D136: 1450.9 | E136: 0.01 | F136: 1436.391 | G136: Each
A137: Barracuda | B137: BNGCAW004a-p3 | C137: Barracuda CloudGen Firewall Premium Support for AWS Level 4 - 3 year | D137: 4352.7 | E137: 0.01 | F137: 4309.173 | G137: Each
A138: Barracuda | B138: BNGCAW004a-p5 | C138: Barracuda CloudGen Firewall Premium Support for AWS Level 4 - 5 year | D138: 7254.5 | E138: 0.01 | F138: 7181.955 | G138: Each
A139: Barracuda | B139: BNGCAW004a-v1 | C139: Barracuda CloudGen Firewall for AWS Level 4 - 1 Year | D139: 6048.9 | E139: 0.01 | F139: 5988.411 | G139: Each
A140: Barracuda | B140: BNGCAW004a-v3 | C140: Barracuda CloudGen Firewall for AWS Level 4 - 3 year | D140: 18146.7 | E140: 0.01 | F140: 17965.233 | G140: Each
A141: Barracuda | B141: BNGCAW004a-v5 | C141: Barracuda CloudGen Firewall for AWS Level 4 - 5 year | D141: 30244.5 | E141: 0.01 | F141: 29942.055 | G141: Each
A142: Barracuda | B142: BNGCAW004a-vp1 | C142: Barracuda CloudGen Firewall for AWS Account Level 4 1 Year Advanced Remote Access | D142: 878.9 | E142: 0.01 | F142: 870.111 | G142: Each
A143: Barracuda | B143: BNGCAW004a-vp3 | C143: Barracuda CloudGen Firewall for AWS Account Level 4 3 Year Advanced Remote Access | D143: 2636.7 | E143: 0.01 | F143: 2610.333 | G143: Each
A144: Barracuda | B144: BNGCAW004a-vp5 | C144: Barracuda CloudGen Firewall for AWS Account Level 4 5 Year Advanced Remote Access | D144: 4394.5 | E144: 0.01 | F144: 4350.555 | G144: Each
A145: Barracuda | B145: BNGCAW008a | C145: Barracuda CloudGen Firewall for AWS Account Level 8 | D145: 0 | E145: 0.01 | F145: 0 | G145: Each
A146: Barracuda | B146: BNGCAW008a-am1 | C146: Barracuda CloudGen Firewall for AWS Account Level 8 1 Year Advanced Threat and Malware Protection Bundle | D146: 4178.9 | E146: 0.01 | F146: 4137.111 | G146: Each
A147: Barracuda | B147: BNGCAW008a-am3 | C147: Barracuda CloudGen Firewall for AWS Account Level 8 3 Year Advanced Threat and Malware Protection Bundle | D147: 16988.4 | E147: 0.01 | F147: 16818.516 | G147: Each
A148: Barracuda | B148: BNGCAW008a-am5 | C148: Barracuda CloudGen Firewall for AWS Account Level 8 5 Year Advanced Threat and Malware Protection Bundle | D148: 28314 | E148: 0.01 | F148: 28030.86 | G148: Each
A149: Barracuda | B149: BNGCAW008a-m1 | C149: Barracuda CloudGen Firewall Malware Protection for AWS Level 8 - 1 Year | D149: 2528.9 | E149: 0.01 | F149: 2503.611 | G149: Each
A150: Barracuda | B150: BNGCAW008a-m3 | C150: Barracuda CloudGen Firewall Malware Protection for AWS Level 8 - 3 Year | D150: 7586.7 | E150: 0.01 | F150: 7510.833 | G150: Each
A151: Barracuda | B151: BNGCAW008a-m5 | C151: Barracuda CloudGen Firewall Malware Protection for AWS Level 8 - 5 Year | D151: 12644.5 | E151: 0.01 | F151: 12518.055 | G151: Each
A152: Barracuda | B152: BNGCAW008a-p1 | C152: Barracuda CloudGen Firewall Premium Support for AWS Level 8 - 1 year | D152: 4068.9 | E152: 0.01 | F152: 4028.211 | G152: Each
A153: Barracuda | B153: BNGCAW008a-p3 | C153: Barracuda CloudGen Firewall Premium Support for AWS Level 8 - 3 year | D153: 12206.7 | E153: 0.01 | F153: 12084.633 | G153: Each
A154: Barracuda | B154: BNGCAW008a-p5 | C154: Barracuda CloudGen Firewall Premium Support for AWS Level 8 - 5 year | D154: 20344.5 | E154: 0.01 | F154: 20141.055 | G154: Each
A155: Barracuda | B155: BNGCAW008a-v1 | C155: Barracuda CloudGen Firewall for AWS Level 8 - 1 Year | D155: 15728.9 | E155: 0.01 | F155: 15571.611 | G155: Each
A156: Barracuda | B156: BNGCAW008a-v3 | C156: Barracuda CloudGen Firewall for AWS Level 8 - 3 year | D156: 47186.7 | E156: 0.01 | F156: 46714.833 | G156: Each
A157: Barracuda | B157: BNGCAW008a-v5 | C157: Barracuda CloudGen Firewall for AWS Level 8 - 5 year | D157: 78644.5 | E157: 0.01 | F157: 77858.055 | G157: Each
A158: Barracuda | B158: BNGCAW008a-vp1 | C158: Barracuda CloudGen Firewall for AWS Account Level 8 1 Year Advanced Remote Access | D158: 3958.9 | E158: 0.01 | F158: 3919.311 | G158: Each
A159: Barracuda | B159: BNGCAW008a-vp3 | C159: Barracuda CloudGen Firewall for AWS Account Level 8 3 Year Advanced Remote Access | D159: 11876.7 | E159: 0.01 | F159: 11757.933 | G159: Each
A160: Barracuda | B160: BNGCAW008a-vp5 | C160: Barracuda CloudGen Firewall for AWS Account Level 8 5 Year Advanced Remote Access | D160: 19794.5 | E160: 0.01 | F160: 19596.555 | G160: Each
A161: Barracuda | B161: BNGCAZ001a | C161: Barracuda CloudGen Firewall for Microsoft Azure Account Level 1 | D161: 0 | E161: 0.01 | F161: 0 | G161: Each
A162: Barracuda | B162: BNGCAZ001a-am1 | C162: Barracuda CloudGen Firewall for Microsoft Azure Account Level 1 1 Year Advanced Threat and Malware Protection Bundle | D162: 342.63 | E162: 0.01 | F162: 339.2037 | G162: Each
A163: Barracuda | B163: BNGCAZ001a-am3 | C163: Barracuda CloudGen Firewall for Microsoft Azure Account Level 1 3 Year Advanced Threat and Malware Protection Bundle | D163: 1344.15 | E163: 0.01 | F163: 1330.7085 | G163: Each
A164: Barracuda | B164: BNGCAZ001a-am5 | C164: Barracuda CloudGen Firewall for Microsoft Azure Account Level 1 5 Year Advanced Threat and Malware Protection Bundle | D164: 2240.25 | E164: 0.01 | F164: 2217.8475 | G164: Each
A165: Barracuda | B165: BNGCAZ001a-m1 | C165: Barracuda CloudGen Firewall Malware Protection for Microsoft Azure Level 1 - 1 Year | D165: 184.49 | E165: 0.01 | F165: 182.6451 | G165: Each
A166: Barracuda | B166: BNGCAZ001a-m3 | C166: Barracuda CloudGen Firewall Malware Protection for Microsoft Azure Level 1 - 3 Year | D166: 553.47 | E166: 0.01 | F166: 547.9353 | G166: Each
A167: Barracuda | B167: BNGCAZ001a-m5 | C167: Barracuda CloudGen Firewall Malware Protection for Microsoft Azure Level 1 - 5 Year | D167: 922.45 | E167: 0.01 | F167: 913.2255 | G167: Each
A168: Barracuda | B168: BNGCAZ001a-p1 | C168: Barracuda CloudGen Firewall Premium Support for Microsoft Azure Level 1 - 1 year | D168: 329.45 | E168: 0.01 | F168: 326.1555 | G168: Each
A169: Barracuda | B169: BNGCAZ001a-p3 | C169: Barracuda CloudGen Firewall Premium Support for Microsoft Azure Level 1 - 3 year | D169: 988.35 | E169: 0.01 | F169: 978.4665 | G169: Each
A170: Barracuda | B170: BNGCAZ001a-p5 | C170: Barracuda CloudGen Firewall Premium Support for Microsoft Azure Level 1 - 5 year | D170: 1647.25 | E170: 0.01 | F170: 1630.7775 | G170: Each
A171: Barracuda | B171: BNGCAZ001a-v1 | C171: Barracuda CloudGen Firewall for Microsoft Azure Level 1 - 1 Year | D171: 1317.8 | E171: 0.01 | F171: 1304.622 | G171: Each
A172: Barracuda | B172: BNGCAZ001a-v3 | C172: Barracuda CloudGen Firewall for Microsoft Azure Level 1 - 3 year | D172: 3953.4 | E172: 0.01 | F172: 3913.866 | G172: Each
A173: Barracuda | B173: BNGCAZ001a-v5 | C173: Barracuda CloudGen Firewall for Microsoft Azure Level 1 - 5 year | D173: 6589 | E173: 0.01 | F173: 6523.11 | G173: Each
A174: Barracuda | B174: BNGCAZ001a-vp1 | C174: Barracuda CloudGen Firewall for Microsoft Azure Level 1 1 Year Advanced Remote Access | D174: 329.45 | E174: 0.01 | F174: 326.1555 | G174: Each
A175: Barracuda | B175: BNGCAZ001a-vp3 | C175: Barracuda CloudGen Firewall for Microsoft Azure Level 1 3 Year Advanced Remote Access | D175: 988.35 | E175: 0.01 | F175: 978.4665 | G175: Each
A176: Barracuda | B176: BNGCAZ001a-vp5 | C176: Barracuda CloudGen Firewall for Microsoft Azure Level 1 5 Year Advanced Remote Access | D176: 1647.25 | E176: 0.01 | F176: 1630.7775 | G176: Each
A177: Barracuda | B177: BNGCAZ004a | C177: Barracuda CloudGen Firewall for Azure Account Level 4 | D177: 0 | E177: 0.01 | F177: 0 | G177: Each
A178: Barracuda | B178: BNGCAZ004a-am1 | C178: Barracuda CloudGen Firewall for Azure Account Level 4 1 Year Advanced Threat and Malware Protection Bundle | D178: 1593.9 | E178: 0.01 | F178: 1577.961 | G178: Each
A179: Barracuda | B179: BNGCAZ004a-am3 | C179: Barracuda CloudGen Firewall for Azure Account Level 4 3 Year Advanced Threat and Malware Protection Bundle | D179: 6164.4 | E179: 0.01 | F179: 6102.756 | G179: Each
A180: Barracuda | B180: BNGCAZ004a-am5 | C180: Barracuda CloudGen Firewall for Azure Account Level 4 5 Year Advanced Threat and Malware Protection Bundle | D180: 10274 | E180: 0.01 | F180: 10171.26 | G180: Each
A181: Barracuda | B181: BNGCAZ004a-m1 | C181: Barracuda CloudGen Firewall Malware Protection for Azure Level 4 - 1 Year | D181: 845.9 | E181: 0.01 | F181: 837.441 | G181: Each
A182: Barracuda | B182: BNGCAZ004a-m3 | C182: Barracuda CloudGen Firewall Malware Protection for Azure Level 4 - 3 Year | D182: 2537.7 | E182: 0.01 | F182: 2512.323 | G182: Each
A183: Barracuda | B183: BNGCAZ004a-m5 | C183: Barracuda CloudGen Firewall Malware Protection for Azure Level 4 - 5 Year | D183: 4229.5 | E183: 0.01 | F183: 4187.205 | G183: Each
A184: Barracuda | B184: BNGCAZ004a-p1 | C184: Barracuda CloudGen Firewall Premium Support for Azure Level 4 - 1 year | D184: 1450.9 | E184: 0.01 | F184: 1436.391 | G184: Each
A185: Barracuda | B185: BNGCAZ004a-p3 | C185: Barracuda CloudGen Firewall Premium Support for Azure Level 4 - 3 year | D185: 4352.7 | E185: 0.01 | F185: 4309.173 | G185: Each
A186: Barracuda | B186: BNGCAZ004a-p5 | C186: Barracuda CloudGen Firewall Premium Support for Azure Level 4 - 5 year | D186: 7254.5 | E186: 0.01 | F186: 7181.955 | G186: Each
A187: Barracuda | B187: BNGCAZ004a-v1 | C187: Barracuda CloudGen Firewall for Azure Level 4 - 1 Year | D187: 6048.9 | E187: 0.01 | F187: 5988.411 | G187: Each
A188: Barracuda | B188: BNGCAZ004a-v3 | C188: Barracuda CloudGen Firewall for Azure Level 4 - 3 year | D188: 18146.7 | E188: 0.01 | F188: 17965.233 | G188: Each
A189: Barracuda | B189: BNGCAZ004a-v5 | C189: Barracuda CloudGen Firewall for Azure Level 4 - 5 year | D189: 30244.5 | E189: 0.01 | F189: 29942.055 | G189: Each
A190: Barracuda | B190: BNGCAZ004a-vp1 | C190: Barracuda CloudGen Firewall for Azure Level 4 1 Year Advanced Remote Access | D190: 878.9 | E190: 0.01 | F190: 870.111 | G190: Each
A191: Barracuda | B191: BNGCAZ004a-vp3 | C191: Barracuda CloudGen Firewall for Azure Level 4 3 Year Advanced Remote Access | D191: 2636.7 | E191: 0.01 | F191: 2610.333 | G191: Each
A192: Barracuda | B192: BNGCAZ004a-vp5 | C192: Barracuda CloudGen Firewall for Azure Level 4 5 Year Advanced Remote Access | D192: 4394.5 | E192: 0.01 | F192: 4350.555 | G192: Each
A193: Barracuda | B193: BNGCAZ008a | C193: Barracuda CloudGen Firewall for Azure Account Level 8 | D193: 0 | E193: 0.01 | F193: 0 | G193: Each
A194: Barracuda | B194: BNGCAZ008a-am1 | C194: Barracuda CloudGen Firewall for Azure Account Level 8 1 Year Advanced Threat and Malware Protection Bundle | D194: 4178.9 | E194: 0.01 | F194: 4137.111 | G194: Each
A195: Barracuda | B195: BNGCAZ008a-am3 | C195: Barracuda CloudGen Firewall for Azure Account Level 8 3 Year Advanced Threat and Malware Protection Bundle | D195: 16988.4 | E195: 0.01 | F195: 16818.516 | G195: Each
A196: Barracuda | B196: BNGCAZ008a-am5 | C196: Barracuda CloudGen Firewall for Azure Account Level 8 5 Year Advanced Threat and Malware Protection Bundle | D196: 28314 | E196: 0.01 | F196: 28030.86 | G196: Each
A197: Barracuda | B197: BNGCAZ008a-m1 | C197: Barracuda CloudGen Firewall Malware Protection for Azure Level 8 - 1 Year | D197: 2528.9 | E197: 0.01 | F197: 2503.611 | G197: Each
A198: Barracuda | B198: BNGCAZ008a-m3 | C198: Barracuda CloudGen Firewall Malware Protection for Azure Level 8 - 3 Year | D198: 7586.7 | E198: 0.01 | F198: 7510.833 | G198: Each
A199: Barracuda | B199: BNGCAZ008a-m5 | C199: Barracuda CloudGen Firewall Malware Protection for Azure Level 8 - 5 Year | D199: 12644.5 | E199: 0.01 | F199: 12518.055 | G199: Each
A200: Barracuda | B200: BNGCAZ008a-p1 | C200: Barracuda CloudGen Firewall Premium Support for Azure Level 8 - 1 year | D200: 4068.9 | E200: 0.01 | F200: 4028.211 | G200: Each
... 627 more rows

Sheet Bitwarden
A1: Manufacturer | B1: Part Number | C1: Description | D1: Category | E1: Sub-Category | F1: LIST PRICE | G1: MINIMUM DISCOUNT | H1: NVP PRICE | I1: Unit
A2: Bitwarden | B2: BITWARDEN-ENT | C2: Bitwarden Enterprise Organization Seat - All enterprise features are included with entrprise licenses: Premium 24/7 global support, SSO Integration, Directory Connector, API Access, Event and Audit Logs, Custom Management Role, Free Families Plan for Users, SCIM, Admin Password Reset, Bitwarden Send, Vault Health Reports, Personal Emergency Access, Bitwarden Authenticator (TOTP), Two-step login, Enterprise Policies | D2: SaaS | F2: 60 | G2: 0.01 | H2: 59.4 | I2: Each

Sheet Blackbaud
A1: Manufacturer | B1: Part Number | C1: Description | D1: Category | E1: Sub-Category | F1: LIST PRICE | G1: MINIMUM DISCOUNT | H1: NVP PRICE | I1: Unit
A2: Blackbaud | B2: FE-NXT-Add-Yr1 | C2: FE NXT Add Database - Billed Annual, Contract term: 36 months | D2: SaaS | F2: 1799 | G2: 0.01 | H2: 1781.01 | I2: EA
A3: Blackbaud | B3: FE-NXT-Mig-Prep | C3: FE NXT Migration Preparation (Billed: 50% Up Front/ 50% in 90 Days) | D3: SaaS | F3: 2499 | G3: 0.01 | H3: 2474.01 | I3: EA
A4: Blackbaud | B4: FENXT-Nightly-BU | C4: FENXT Nightly Back-up (Azure) - Billed Annual, Contract term: 12 months | D4: SaaS | F4: 9999 | G4: 0.01 | H4: 9899.01 | I4: EA
A5: Blackbaud | B5: FE-NXT-Prog-Mgt | C5: FE NXT Prog Mgt Compliance Success Offer - 13 Users | D5: SaaS | F5: 16499 | G5: 0.01 | H5: 16334.01 | I5: EA
A6: Blackbaud | B6: FE-NXT-ADD | C6: FE NXT ADD DATABASE - BILLED ANNUALLY | D6: PaaS | F6: 1730.4 | G6: 0.01 | H6: 1713.096 | I6: EA
A7: Blackbaud | B7: FE-NXT-PROG-MGT-13 | C7: FE NXT PROGRAM MANAGEMENT COMPLIANCE SUCCESS OFFER - 13 USERS, BILLED ANNUALLY | D7: Value Added Services | F7: 15555.41 | G7: 0.01 | H7: 15399.8559 | I7: EA

Sheet BlackCat Grant Management
A1: Manufacturer | B1: Part Number | C1: Description | D1: Category | E1: Sub-Category | F1: LIST PRICE | G1: MINIMUM DISCOUNT | H1: NVP PRICE | I1: Unit
A2: Panther International, LLC | B2: BCGT19-CATCS | C2: BlackCat Grant Management System for Transit, CalTrans - Annual SaaS Inclusive Software as a Service (SaaS) includes: BlackCat GMS – Transit Best Practices in Grant Management; System updates; User/Subrecipient Training; Maintenance; Support; and Materials. No limit on Transit subrecipient agencies or users. Legacy system integration and historical data entry are sold separately | D2: SaaS | E2: Enterprise Application | F2: 250000 | G2: 0.01 | H2: =ROUND(F2*(1-G2),2) -> 247500 | I2: EA

Sheet Blueink
A1: Category | C1: SKU | D1: Name | E1: Category | F1: NVP Minimum Discount | G1: MSRP Number of Envelopes | H1: NVP Price Number of Envelopes | I1: MSRP Per Envelope | J1: NVP Price Number of Envelopes | K1: MSRP Monthly | L1: NVP Price Number of Envelopes | M1: MSRP Annual | N1: NVP Price Number of Envelopes | O1: Max Quantity | P1: Users / License
A2: Per User Pricing
A3: Does not include Enterprise Features (API, SmartLink, Bulk) | C3: blu_user_pro_1m | D3: Business Pro Monthly - Per User | E3: SaaS | F3: 0.01 | G3: Unl. | H3: Unl. | K3: 32 | L3: 31.68 | M3: 384 | N3: 380.16 | O3: 100 | P3: 1
C4: blu_user_pro_1y | D4: Business Pro Annual - Per User | E4: SaaS | F4: 0.01 | G4: Unl. | H4: Unl. | M4: 240 | N4: 237.6 | O4: 100 | P4: 1
C5: blu_user_standard_1m | D5: Standard Monthly - Per User | E5: SaaS | F5: 0.01 | G5: 10 | H5: 9.9 | K5: 20 | L5: 19.8 | M5: 240 | N5: 237.6 | O5: 50 | P5: 1
C6: blu_user_standard_1y | D6: Standard Annual - Per User | E6: SaaS | F6: 0.01 | G6: 120 | H6: 118.8 | M6: 144 | N6: 142.56 | O6: 50 | P6: 1
A8: Enterprise Pricing
A9: - Includes All Enterprise Features: | B9: Monthly Contract | C9: blu_ent_100_1m | D9: Enterprise Monthly - 100 Envelopes - Unlimited Users | E9: SaaS | F9: 0.01 | G9: 100 | H9: 99 | I9: 3 | J9: 2.97 | K9: 300 | L9: 297 | M9: 3600 | N9: 3564 | P9: Unl.
A10: API | C10: blu_ent_250_1m | D10: Enterprise Monthly - 250 Envelopes - Unlimited Users | E10: SaaS | F10: 0.01 | G10: 250 | H10: 247.5 | I10: 2.9 | J10: 2.87 | K10: 725 | L10: 717.75 | M10: 8700 | N10: 8613 | P10: Unl.
A11: SmartLink Forms | C11: blu_ent_500_1m | D11: Enterprise Monthly - 500 Envelopes - Unlimited Users | E11: SaaS | F11: 0.01 | G11: 500 | H11: 495 | I11: 2.8 | J11: 2.77 | K11: 1400 | L11: 1386 | M11: 16800 | N11: 16632 | P11: Unl.
A12: Bulk Send | C12: blu_ent_1000_1m | D12: Enterprise Monthly - 1000 Envelopes - Unlimited Users | E12: SaaS | F12: 0.01 | G12: 1000 | H12: 990 | I12: 2.7 | J12: 2.67 | K12: 2700 | L12: 2673 | M12: 32400 | N12: 32076 | P12: Unl.
A13: Teams | C13: blu_ent_2500_1m | D13: Enterprise Monthly - 2500 Envelopes - Unlimited Users | E13: SaaS | F13: 0.01 | G13: 2500 | H13: 2475 | I13: 2.6 | J13: 2.57 | K13: 6500 | L13: 6435 | M13: 78000 | N13: 77220 | P13: Unl.
A14: Includes Standard Enterprise Support | C14: blu_ent_5000_1m | D14: Enterprise Monthly - 5000 Envelopes - Unlimited Users | E14: SaaS | F14: 0.01 | G14: 5000 | H14: 4950 | I14: 2.5 | J14: 2.48 | K14: 12500 | L14: 12375 | M14: 150000 | N14: 148500 | P14: Unl.
A15: Includes Standard Enterprise Onboarding | C15: blu_ent_10000_1m | D15: Enterprise Monthly - 10000 Envelopes - Unlimited Users | E15: SaaS | F15: 0.01 | G15: 10000 | H15: 9900 | I15: 2.4 | J15: 2.38 | K15: 24000 | L15: 23760 | M15: 288000 | N15: 285120 | P15: Unl.
C16: blu_ent_25000_1m | D16: Enterprise Monthly - 25000 Envelopes - Unlimited Users | E16: SaaS | F16: 0.01 | G16: 25000 | H16: 24750 | I16: 2.3 | J16: 2.28 | K16: 57500 | L16: 56925 | M16: 690000 | N16: 683100 | P16: Unl.
B18: Yearly Contract | C18: blu_ent_1200_1y | D18: Enterprise Annual - 1200 Envelopes - Unlimited Users | E18: SaaS | F18: 0.01 | G18: 1200 | H18: 1188 | I18: 2.85 | J18: 2.82 | M18: 3420 | N18: 3385.8 | P18: Unl.
C19: blu_ent_3000_1y | D19: Enterprise Annual - 3000 Envelopes - Unlimited Users | E19: SaaS | F19: 0.01 | G19: 3000 | H19: 2970 | I19: 2.76 | J19: 2.73 | M19: 8265 | N19: 8182.35 | P19: Unl.
C20: blu_ent_6000_1y | D20: Enterprise Annual - 6000 Envelopes - Unlimited Users | E20: SaaS | F20: 0.01 | G20: 6000 | H20: 5940 | I20: 2.66 | J20: 2.63 | M20: 15960 | N20: 15800.4 | P20: Unl.
C21: blu_ent_12000_1y | D21: Enterprise Annual - 12000 Envelopes - Unlimited Users | E21: SaaS | F21: 0.01 | G21: 12000 | H21: 11880 | I21: 2.57 | J21: 2.54 | M21: 30780 | N21: 30472.2 | P21: Unl.
C22: blu_ent_30000_1y | D22: Enterprise Annual - 30000 Envelopes - Unlimited Users | E22: SaaS | F22: 0.01 | G22: 30000 | H22: 29700 | I22: 2.47 | J22: 2.45 | M22: 74100 | N22: 73359 | P22: Unl.
C23: blu_ent_60000_1y | D23: Enterprise Annual - 60000 Envelopes - Unlimited Users | E23: SaaS | F23: 0.01 | G23: 60000 | H23: 59400 | I23: 2.38 | J23: 2.36 | M23: 142500 | N23: 141075 | P23: Unl.
C24: blu_ent_120000_1y | D24: Enterprise Annual - 120000 Envelopes - Unlimited Users | E24: SaaS | F24: 0.01 | G24: 120000 | H24: 118800 | I24: 2.28 | J24: 2.26 | M24: 273600 | N24: 270864 | P24: Unl.
C25: blu_ent_300000_1y | D25: Enterprise Annual - 300000 Envelopes - Unlimited Users | E25: SaaS | F25: 0.01 | G25: 300000 | H25: 297000 | I25: 2.19 | J25: 2.17 | M25: 655500 | N25: 648945 | P25: Unl.
J26: $- | N26: $-
A27: API Envelopes | J27: $- | N27: $-
A28: API-only envelopes | B28: Monthly Contract | C28: blu_api_100_1m | D28: API Monthly - 100 Envelopes | E28: SaaS | F28: 0.01 | G28: 100 | H28: 99 | I28: 1.5 | J28: 1.49 | K28: 150 | L28: 148.5 | M28: 1800 | N28: 1782
A29: 2 dev user seats | C29: blu_api_250_1m | D29: API Monthly - 250 Envelopes | E29: SaaS | F29: 0.01 | G29: 250 | H29: 247.5 | I29: 1.45 | J29: 1.44 | K29: 362.5 | L29: 358.88 | M29: 4350 | N29: 4306.5
A30: Can be combined with other plans | C30: blu_api_500_1m | D30: API Monthly - 500 Envelopes | E30: SaaS | F30: 0.01 | G30: 500 | H30: 495 | I30: 1.4 | J30: 1.39 | K30: 700 | L30: 693 | M30: 8400 | N30: 8316
C31: blu_api_1000_1m | D31: API Monthly - 1000 Envelopes | E31: SaaS | F31: 0.01 | G31: 1000 | H31: 990 | I31: 1.35 | J31: 1.34 | K31: 1350 | L31: 1336.5 | M31: 16200 | N31: 16038
C32: blu_api_2500_1m | D32: API Monthly - 2500 Envelopes | E32: SaaS | F32: 0.01 | G32: 2500 | H32: 2475 | I32: 1.3 | J32: 1.29 | K32: 3250 | L32: 3217.5 | M32: 39000 | N32: 38610
C33: blu_api_5000_1m | D33: API Monthly - 5000 Envelopes | E33: SaaS | F33: 0.01 | G33: 5000 | H33: 4950 | I33: 1.25 | J33: 1.24 | K33: 6250 | L33: 6187.5 | M33: 75000 | N33: 74250
C34: blu_api_10000_1m | D34: API Monthly - 10000 Envelopes | E34: SaaS | F34: 0.01 | G34: 10000 | H34: 9900 | I34: 1.2 | J34: 1.19 | K34: 12000 | L34: 11880 | M34: 144000 | N34: 142560
C35: blu_api_25000_1m | D35: API Monthly - 25000 Envelopes | E35: SaaS | F35: 0.01 | G35: 25000 | H35: 24750 | I35: 1.15 | J35: 1.14 | K35: 28750 | L35: 28462.5 | M35: 345000 | N35: 341550
B37: Yearly Contract | C37: blu_api_1200_1y | D37: API Annual - 1200 Envelopes | E37: SaaS | F37: 0.01 | G37: 1200 | H37: 1188 | I37: 1.43 | J37: 1.42 | M37: 1710 | N37: 1692.9
C38: blu_api_3000_1y | D38: API Annual - 3000 Envelopes | E38: SaaS | F38: 0.01 | G38: 3000 | H38: 2970 | I38: 1.38 | J38: 1.37 | M38: 4132.5 | N38: 4091.18
C39: blu_api_6000_1y | D39: API Annual - 6000 Envelopes | E39: SaaS | F39: 0.01 | G39: 6000 | H39: 5940 | I39: 1.33 | J39: 1.32 | M39: 7980 | N39: 7900.2
C40: blu_api_12000_1y | D40: API Annual - 12000 Envelopes | E40: SaaS | F40: 0.01 | G40: 12000 | H40: 11880 | I40: 1.28 | J40: 1.27 | M40: 15390 | N40: 15236.1
C41: blu_api_30000_1y | D41: API Annual - 30000 Envelopes | E41: SaaS | F41: 0.01 | G41: 30000 | H41: 29700 | I41: 1.24 | J41: 1.23 | M41: 37050 | N41: 36679.5
C42: blu_api_60000_1y | D42: API Annual - 60000 Envelopes | E42: SaaS | F42: 0.01 | G42: 60000 | H42: 59400 | I42: 1.19 | J42: 1.18 | M42: 71250 | N42: 70537.5
C43: blu_api_120000_1y | D43: API Annual - 120000 Envelopes | E43: SaaS | F43: 0.01 | G43: 120000 | H43: 118800 | I43: 1.14 | J43: 1.13 | M43: 136800 | N43: 135432
C44: blu_api_300000_1y | D44: API Annual - 300000 Envelopes | E44: SaaS | F44: 0.01 | G44: 300000 | H44: 297000 | I44: 1.09 | J44: 1.08 | M44: 327750 | N44: 324472.5
A46: Premium Support Plans | G46: Number of Hours | I46: Per Hour
A47: Named Rep | C47: blu_support_p_10h | D47: Support - 10 hours | E47: SaaS | F47: 0.01 | G47: 10 | I47: 180 | J47: 178.2 | M47: 1800 | N47: 1782 | O47: 5
A48: Phone Support | C48: blu_support_p_25h | D48: Support - 25 hours | E48: SaaS | F48: 0.01 | G48: 25 | I48: 175 | J48: 173.25 | M48: 4375 | N48: 4331.25 | O48: 5
A49: Additional Support Hours + SLA | C49: blu_support_p_50h | D49: Support - 50 hours | E49: SaaS | F49: 0.01 | G49: 50 | I49: 170 | J49: 168.3 | M49: 8500 | N49: 8415 | O49: 5
A50: Training | C50: blu_support_p_100h | D50: Support - 100 hours | E50: SaaS | F50: 0.01 | G50: 100 | I50: 160 | J50: 158.4 | M50: 16000 | N50: 15840 | O50: 5
A51: Integration Support
A52: Document Concierge
A53: Document Digitization
A54: Document Workflow Consulting

Sheet BMC
A1: Manufacturer | B1: Part Number | C1: Description | D1: Category | E1: Sub-Category | F1: List Price | G1: MINIMUM DISCOUNT | H1: NVP PRICE | I1: Unit
A2: BMC | B2: BMC-HELIX-AUTO-CONSOLE | C2: BMC Helix Portfolio Management - Named User - MarketZone, BMC SaaS Support, Unit of Measure: Per Named User - SaaS, 10 Named Users Per Month PoP: 22-MAR-2024 - 21-MAR-2025 | D2: SaaS | F2: 9.85 | G2: 0.01 | H2: 9.7515 | I2: EA
A3: BMC | B3: BMC-HELIX-DIGI-WORKPLACE-ADV-NAMED-100 | C3: BMC Helix Digital Workplace Advanced - Named User (100 Users, BMC SaaS Support, Unit of Measure: Per Named User, 10 Units Per Month PoP: 22-MAR-2024 - 21-MAR-2025 | D3: SaaS | F3: 53.15 | G3: 0.01 | H3: 52.6185 | I3: EA
A4: BMC | B4: BMC-HELIX-WORKFLOWS-NAMED-USER-100 | C4: BMC Helix Business Workflows - Named User (100 Users), BMC SaaS Support, Unit of Measure: Per Named User, 10 Units Per Month PoP: 22-MAR-2024 - 21-MAR-2025 | D4: SaaS | F4: 66.39 | G4: 0.01 | H4: 65.7261 | I4: EA
A5: BMC | B5: BMC-LRN-CREDIT | C5: BMC Software Learning Pass Credit | D5: SaaS | F5: 855 | G5: 0.01 | H5: =F5-(F5*G5) -> 846.45 | I5: Each
A6: BMC | B6: BMC-PORTFOLIO-MANAGEMENT-CON-USER | C6: BMC Helix Portfolio Management - Concurrent User - MarketZone, BMC SaaS Support, Unit of Measure: Per Concurrent User - SaaS, 6 Concurrent Users Per Month PoP: 22-MAR-2024 - 21-MAR-2025 | D6: SaaS | F6: 196.72 | G6: 0.01 | H6: 194.7528 | I6: EA
A7: BMC | B7: BMC-PORTFOLIO-MANAGEMENT-NAMED-USER | C7: BMC Helix Portfolio Management - Named User - MarketZone, BMC SaaS Support, Unit of Measure: Per Named User - SaaS, 10 Named Users Per Month PoP: 22-MAR-2024 - 21-MAR-2025 | D7: SaaS | F7: 70.81 | G7: 0.01 | H7: 70.1019 | I7: EA
A8: BMC | B8: BMC-SCS-CRDT-25PK-GRP1 | C8: BMC Success Credits 25 Pack Service - Group 1 | D8: SaaS | F8: 46875 | G8: 0.01 | H8: 46406.25 | I8: EA
A9: BMC | B9: BMC-SCS-SUB-STRT-GRP1 | C9: BMC Success Subscription - Starter Service - Group 1 | D9: SaaS | F9: 87500 | G9: 0.01 | H9: 86625 | I9: EA
A10: BMC | B10: BMC-SRVC-DESK | C10: BMC HELIX ITSM - Service Desk User License | D10: SaaS | F10: 920.56 | G10: 0.01 | H10: 911.3544 | I10: EA
A11: BMC | B11: BMC-SRVC-DESK-CNCRNT | C11: BMC Helix ITSM - Service Desk Concurrent User License | D11: SaaS | F11: 2761.28 | G11: 0.01 | H11: 2733.6672 | I11: EA
A12: BMC | B12: BMC-SRVC-OPT | C12: BMC Helix ITSM - Service Optimization User License | D12: SaaS | F12: 974.39 | G12: 0.01 | H12: 964.6461 | I12: EA
A13: BMC | B13: BMC-SUITE | C13: BMC Helix ITSM -Suite User License | D13: SaaS | F13: 1669.48 | G13: 0.01 | H13: 1652.7852 | I13: EA
A14: BMC | B14: BMC-SUITE-CNCRNT | C14: BMC Helix ITSM -Suite Concurrent User License | D14: SaaS | F14: 5008.06 | G14: 0.01 | H14: 4957.9794 | I14: EA
A15: BMC | B15: BMC-TRUESIGHT--AUTO-HELIX | C15: TrueSight Server Automation for BMC Helix Automation Console, BMC Continuous Support, Unit of Measure: Per Managed Asset - Server Endpoint, 250 Endpoints Per Month PoP: 22-MAR-2024 - 21-MAR-2025 | D15: SaaS | F15: 2.19 | G15: 0.01 | H15: 2.1681 | I15: EA
A16: BMC | B16: LPBHP.0.0.00-2YR | C16: BMC Helix Digital Workplace Advanced - Per named User (100 Users) | D16: SaaS | F16: 192.62 | G16: 0.01 | H16: =F16-(F16*G16) -> 190.6938 | I16: Each
A17: BMC | B17: LPDA2.0.0.00-2YR | C17: BMC Helix Platform - Per enterprised | D17: SaaS | F17: 1800 | G17: 0.01 | H17: =F17-(F17*G17) -> 1782 | I17: Each

Sheet Bridge Intelligence
A1: Manufacturer | B1: Part Number | C1: Description | D1: List Price | E1: MINIMUM DISCOUNT | F1: NVP PRICE | G1: Unit
A2: Bridge Intelligence, LLC | B2: inspectX Customization 49267 | C2: inspectX Customization for Utah Department of Transportation | D2: 50000 | E2: 0.1 | F2: 45000 | G2: Each
A3: Bridge Intelligence, LLC | B3: inspectX license 49267 | C3: 1-year inspectX license for Utah Department of Transportation | D3: 52000 | E3: 0.1 | F3: 46800 | G3: Each
A4: Bridge Intelligence, LLC | B4: Cloud Hosting 49267 | C4: 1-year cloud hosting for inspectX | D4: 8000 | E4: 0.1 | F4: 7200 | G4: Each
A5: Bridge Intelligence, LLC | B5: inspectX Cloud Deployment 49267 | C5: Initial deployment of inspectX - One time cost | D5: 8000 | E5: 0.1 | F5: 7200 | G5: Each
A6: Bridge Intelligence, LLC | B6: inspectX-Setup-VAOT | C6: setting up all the cloud services and the infrastructure for the inspectX production and test environment PDF report configuration Adding state invent | D6: 22100 | E6: 0.1 | F6: 21879 | G6: Service
A7: Bridge Intelligence, LLC | B7: inspectX-PM-VAOT | C7: Project Management Meetings with the client Gathering requirements from the client Preparing required documents | D7: 279.5 | E7: 0.1 | F7: 276.71 | G7: Service
A8: Bridge Intelligence, LLC | B8: inspectX-DM-VAOT | C8: Data migration from AASHTO BrM MS Access BIS and Maintenance items into inspectX | D8: 47840 | E8: 0.1 | F8: 47361.6 | G8: Service
A9: Bridge Intelligence, LLC | B9: inspectX-TRN-VAOT | C9: One round of webbased training including Structures inspectors training Application Administrator training | D9: 2860 | E9: 0.1 | F9: 2831.4 | G9: Service
A10: Bridge Intelligence, LLC | B10: inspectX-VTRANS-VAOT | C10: Monthly Cloud Cost Until Renewal for Vtransparency Integration | D10: 300 | E10: 0.01 | F10: =D10-(D10*E10) -> 297 | G10: Each
A11: Bridge Intelligence, LLC | B11: inspectX-5100 | C11: For 5100 assets, no limitation on number of users or devices Annual License | D11: 130000 | E11: 0.01 | F11: =D11-(D11*E11) -> 128700 | G11: 5100 assets
A12: Bridge Intelligence, LLC | B12: inspectX-CLD-VAOT | C12: One year of cloud hosting for inspectX based on VAOT requirements defined in the RFP | D12: 30000 | E12: 0.01 | F12: =D12-(D12*E12) -> 29700 | G12: 1 year
A13: Bridge Intelligence, LLC | B13: inspectX-SRVunit-VAOT | C13: Each service unit includes 40 hours of service. | D13: 12000 | E13: 0.01 | F13: =D13-(D13*E13) -> 11880 | G13: 40 Hour Service Unit

Sheet Burlington English
A1: Manufacturer | B1: Part Number | C1: Description | D1: Category | E1: Sub-Category | F1: List Price | G1: MINIMUM DISCOUNT | H1: NVP PRICE | I1: Unit
A2: Burlington English | B2: BUR-SEATS-2000 | C2: BurlingtonEnglish, 2000 Seats, Invoiced Annually, 250 Additional Seats are Included at No Cost, | D2: SaaS | F2: 120 | G2: 0.01 | H2: 118.8 | I2: EA
A3: Burlington English | B3: BUR-SEATS-ADD | C3: BurlingtonEnglish, Additional Seat, Cost Per Seat, Invoiced Annually | D3: SaaS | F3: 120 | G3: 0.01 | H3: 118.8 | I3: EA

Sheet CA Technologies
A1: Manufacturer | B1: Part Number | C1: Description | D1: List Price | E1: MINIMUM DISCOUNT | F1: NVP PRICE | G1: Unit
A2: CA Technologies | B2: AGUEPR990 | C2: CA Agile Central Unlimited Edition SaaS for PPM Promo | D2: 588 | E2: 0.01 | F2: 582.12 | G2: Each
A3: CA Technologies | B3: APCA10990 | C3: CA App Synthetic Monitor 5 Minute Adv 10GB 10 Pack | D3: 4200 | E3: 0.01 | F3: 4158 | G3: Each
A4: CA Technologies | B4: APCA20990 | C4: CA App Synthetic Monitor 5 Minute Adv 20GB 10 Pack | D4: 6360 | E4: 0.01 | F4: 6296.4 | G4: Each
A5: CA Technologies | B5: APCA40990 | C5: CA App Synthetic Monitor 5 Minute Adv 40GB 10 Pack | D5: 10800 | E5: 0.01 | F5: 10692 | G5: Each
A6: CA Technologies | B6: APCB10990 | C6: CA App Synthetic Monitor 1 Minute Basic 10 Pack | D6: 7560 | E6: 0.01 | F6: 7484.4 | G6: Each
A7: CA Technologies | B7: APCB50990 | C7: CA App Synthetic Monitor 5 Minute Basic 50 Pack | D7: 5520 | E7: 0.01 | F7: 5464.8 | G7: Each
A8: CA Technologies | B8: APCR20990 | C8: CA App Synthetic Monitor 10 Min RBM 20GB 1Pk | D8: 4080 | E8: 0.01 | F8: 4039.2 | G8: Each
A9: CA Technologies | B9: APCR40990 | C9: CA App Synthetic Monitor 5 Min RBM 40GB 1Pk | D9: 6360 | E9: 0.01 | F9: 6296.4 | G9: Each
A10: CA Technologies | B10: APMCA5990 | C10: CA App Synthetic Monitor 15 Minute Adv 5GB 10 Pack | D10: 4200 | E10: 0.01 | F10: 4158 | G10: Each
A11: CA Technologies | B11: APMCMA990 | C11: CA App Synthetic Monitor Adv Option | D11: 67200 | E11: 0.01 | F11: 66528 | G11: Each
A12: CA Technologies | B12: APMCMI990 | C12: CA App Synthetic Monitor Intermediate Option | D12: 42000 | E12: 0.01 | F12: 41580 | G12: Each
A13: CA Technologies | B13: APMCMI990 | C13: CA App Synthetic Monitor Intermediate Option | D13: 42000 | E13: 0.01 | F13: 41580 | G13: Each
A14: CA Technologies | B14: ASOORT990 | C14: CA Automic Service Orchestration – Orchestration Targets | D14: 398.09 | E14: 0.01 | F14: 394.1091 | G14: Each
A15: CA Technologies | B15: AUTARE990 | C15: CA Automic Analytics and Reporting for External Data | D15: 23885.58 | E15: 0.01 | F15: 23646.7242 | G15: Each
A16: CA Technologies | B16: AUTASC990 | C16: CA Automic Automated System Copy for SAP - Enterprise Edition | D16: 119427.92 | E16: 0.01 | F16: 118233.6408 | G16: Each
A17: CA Technologies | B17: AUTCDS990 | C17: CA Automic Continuous Delivery for Siebel – Additional Siebel Enterprise Target | D17: 56870.44 | E17: 0.01 | F17: 56301.7356 | G17: Each
A18: CA Technologies | B18: AUTCHA990 | C18: CA Automic Continuous Delivery for Siebel - High Availability Cluster | D18: 119427.92 | E18: 0.01 | F18: 118233.6408 | G18: Each
A19: CA Technologies | B19: AUTCON990 | C19: CA Automic Continuous Delivery for Siebel - Enterprise Edition | D19: 358283.76 | E19: 0.01 | F19: 354700.9224 | G19: Each
A20: CA Technologies | B20: AUTCTD990 | C20: CA Automic Continuous Delivery for Temenos - Deployment Targets | D20: 15000 | E20: 0.01 | F20: 14850 | G20: Each
A21: CA Technologies | B21: AUTCTE990 | C21: CA Automic Continuous Delivery for - Temenos Enterprise Edition | D21: 240000 | E21: 0.01 | F21: 237600 | G21: Each
A22: CA Technologies | B22: AUTCTH990 | C22: CA Automic Continuous Delivery for Temenos - High Availability Cluster | D22: 100000 | E22: 0.01 | F22: 99000 | G22: Each
A23: CA Technologies | B23: AUTDPM990 | C23: CA Automic Data Provisioning and Masking | D23: 9213.01 | E23: 0.01 | F23: 9120.8799 | G23: Each
A24: CA Technologies | B24: AUTJRM990 | C24: CA Automic Job Request Management | D24: 62557.48 | E24: 0.01 | F24: 61931.9052 | G24: Each
A25: CA Technologies | B25: AUTOCE990 | C25: CA Automic Oracle CC&B Edition | D25: 214970.26 | E25: 0.01 | F25: 212820.5574 | G25: Each
A26: CA Technologies | B26: AUTOCH990 | C26: CA Automic Oracle CC&B High Availability Cluster | D26: 47771.17 | E26: 0.01 | F26: 47293.4583 | G26: Each
A27: CA Technologies | B27: AUTOME990 | C27: CA Automic Oracle Retail MOM – Enterprise Edition | D27: 147863.14 | E27: 0.01 | F27: 146384.5086 | G27: Each
A28: CA Technologies | B28: AUTOMH990 | C28: CA Automic Oracle Retail MOM – High Availability Cluster | D28: 51183.39 | E28: 0.01 | F28: 50671.5561 | G28: Each
A29: CA Technologies | B29: AUTOMN990 | C29: CA Automic Oracle Retail MOM Nodes | D29: 51183.39 | E29: 0.01 | F29: 50671.5561 | G29: Each
A30: CA Technologies | B30: AUTOMU990 | C30: CA Automic Additional OmniView User | D30: 4777.12 | E30: 0.01 | F30: 4729.3488 | G30: Each
A31: CA Technologies | B31: AUTOMV990 | C31: CA Automic Omniview | D31: 17061.13 | E31: 0.01 | F31: 16890.5187 | G31: Each
A32: CA Technologies | B32: AUTOPA990 | C32: CA Automic Process Analytics | D32: 12511.5 | E32: 0.01 | F32: 12386.385 | G32: Each
A33: CA Technologies | B33: AUTOPO990 | C33: CA Automic Event Engine | D33: 51183.39 | E33: 0.01 | F33: 50671.5561 | G33: Each
A34: CA Technologies | B34: AUTPRA990 | C34: CA Automic Predictive Analytics | D34: 28435.22 | E34: 0.01 | F34: 28150.8678 | G34: Each
A35: CA Technologies | B35: AUTPSR990 | C35: CA Automic Proxy Server | D35: 28435.22 | E35: 0.01 | F35: 28150.8678 | G35: Each
A36: CA Technologies | B36: AUTRDT990 | C36: CA Automic Release Automation – Deployment Targets | D36: 1819.85 | E36: 0.01 | F36: 1801.6515 | G36: Each
A37: CA Technologies | B37: AUTRHA990 | C37: CA Automic Release Automation - High Availability Cluster | D37: 119427.92 | E37: 0.01 | F37: 118233.6408 | G37: Each
A38: CA Technologies | B38: AUTRLB990 | C38: CA Automic Release Automation - Base Edition | D38: 238855.84 | E38: 0.01 | F38: 236467.2816 | G38: Each
A39: CA Technologies | B39: AUTRSS990 | C39: CA Automic Release Automation – Self Services | D39: 181985.4 | E39: 0.01 | F39: 180165.546 | G39: Each
A40: CA Technologies | B40: AUTWA2990 | C40: CA Automic Workload Automation – BS2000 | D40: 34122.26 | E40: 0.01 | F40: 33781.0374 | G40: Each
A41: CA Technologies | B41: AUTWAA990 | C41: CA Automic Workload Automation – Avaloq | D41: 28435.22 | E41: 0.01 | F41: 28150.8678 | G41: Each
A42: CA Technologies | B42: AUTWAB990 | C42: CA Automic Workload Automation - Base Edition | D42: 96679.74 | E42: 0.01 | F42: 95712.9426 | G42: Each
A43: CA Technologies | B43: AUTWAF990 | C43: CA Automic Workload Automation – Failover | D43: 28435.22 | E43: 0.01 | F43: 28150.8678 | G43: Each
A44: CA Technologies | B44: AUTWEE990 | C44: CA Automic Workload Automation – Enterprise Edition | D44: 238855.84 | E44: 0.01 | F44: 236467.2816 | G44: Each
A45: CA Technologies | B45: AUTWHA990 | C45: CA Automic Workload Automation - High Availability Cluster | D45: 51183.39 | E45: 0.01 | F45: 50671.5561 | G45: Each
A46: CA Technologies | B46: AUTWMN990 | C46: CA Automic Workload Automation – Mainframe/Midrange Nodes | D46: 34122.26 | E46: 0.01 | F46: 33781.0374 | G46: Each
A47: CA Technologies | B47: AUTWPA990 | C47: CA Automic Workload Automation – HP NSK NSAA | D47: 34122.26 | E47: 0.01 | F47: 33781.0374 | G47: Each
A48: CA Technologies | B48: AUTWPV990 | C48: CA Automic Workload Automation – HP NSK NSVA | D48: 12511.5 | E48: 0.01 | F48: 12386.385 | G48: Each
A49: CA Technologies | B49: AUTWSO990 | C49: CA Automic Workload Automation – SAP Other User | D49: 1819.85 | E49: 0.01 | F49: 1801.6515 | G49: Each
A50: CA Technologies | B50: AUTWSP990 | C50: CA Automic Workload Automation – SAP Professional User | D50: 3639.71 | E50: 0.01 | F50: 3603.3129 | G50: Each
A51: CA Technologies | B51: AUTWTK990 | C51: CA Automic Workload Automation - Task Edition | D51: 51183.39 | E51: 0.01 | F51: 50671.5561 | G51: Each
A52: CA Technologies | B52: AUTWTN990 | C52: CA Automic Workload Automation – Technology Nodes | D52: 3639.71 | E52: 0.01 | F52: 3603.3129 | G52: Each
A53: CA Technologies | B53: AWA1TK990 | C53: CA Automic Workload Automation – 1 task | D53: 341.22 | E53: 0.01 | F53: 337.8078 | G53: Each
A54: CA Technologies | B54: AWAAPN990 | C54: CA Automic Workload Automation – Application Nodes | D54: 28435.22 | E54: 0.01 | F54: 28150.8678 | G54: Each
A55: CA Technologies | B55: AWAATT990 | C55: CA Automic Workload Automation - Automation for Temenos | D55: 62557.48 | E55: 0.01 | F55: 61931.9052 | G55: Each
A56: CA Technologies | B56: AWAAUH990 | C56: CA Automic Workload Automation – Automation for Hyperion | D56: 73931.57 | E56: 0.01 | F56: 73192.2543 | G56: Each
A57: CA Technologies | B57: CA_NP_A | C57: Architect | D57: 356 | E57: 0.01 | F57: 352.44 | G57: Each
A58: CA Technologies | B58: CA_NP_AC | C58: Associate Consultant | D58: 206 | E58: 0.01 | F58: 203.94 | G58: Each
A59: CA Technologies | B59: CA_NP_AGAC | C59: Agile Coach | D59: 431 | E59: 0.01 | F59: 426.69 | G59: Each
A60: CA Technologies | B60: CA_NP_AGATS | C60: Agile Tech Services | D60: 431 | E60: 0.01 | F60: 426.69 | G60: Each
A61: CA Technologies | B61: CA_NP_AGBAC | C61: Business Agility Consultant | D61: 681 | E61: 0.01 | F61: 674.19 | G61: Each
A62: CA Technologies | B62: CA_NP_AGRC | C62: Resident Coach | D62: 306 | E62: 0.01 | F62: 302.94 | G62: Each
A63: CA Technologies | B63: CA_NP_AGRSM | C63: Resident Scrum Master | D63: 256 | E63: 0.01 | F63: 253.44 | G63: Each
A64: CA Technologies | B64: CA_NP_AGTC | C64: Transformation Consultant | D64: 493.5 | E64: 0.01 | F64: 488.565 | G64: Each
A65: CA Technologies | B65: CA_NP_C | C65: Consultant | D65: 281 | E65: 0.01 | F65: 278.19 | G65: Each
A66: CA Technologies | B66: CA_NP_CSA_Full | C66: Enhanced Support Services (Full) | D66: 177778 | E66: 0.01 | F66: 176000.22 | G66: Each
A67: CA Technologies | B67: CA_NP_CSA_Half | C67: Enhanced Support Services (Half) | D67: 150000 | E67: 0.01 | F67: 148500 | G67: Each
A68: CA Technologies | B68: CA_NP_ESS_Gold* | C68: Customer Success Advocate Gold | D68: 138889 | E68: 0.01 | F68: 137500.11 | G68: Each
A69: CA Technologies | B69: CA_NP_ESS_Platinum* | C69: Customer Success Advocate Platinum | D69: 277778 | E69: 0.01 | F69: 275000.22 | G69: Each
A70: CA Technologies | B70: CA_NP_ESS_Silver* | C70: Customer Success Advocate Silver | D70: 55556 | E70: 0.01 | F70: 55000.44 | G70: Each
A71: CA Technologies | B71: CA_NP_MSC* | C71: Managed Services Consultant | D71: 160 | E71: 0.01 | F71: 158.4 | G71: Each
A72: CA Technologies | B72: CA_NP_PM | C72: Project Manager | D72: 311 | E72: 0.01 | F72: 307.89 | G72: Each
A73: CA Technologies | B73: CA_NP_PWPSSA* | C73: Global Delivery PWP & SSA | D73: 277 | E73: 0.01 | F73: 274.23 | G73: Each
A74: CA Technologies | B74: CA_NP_SA | C74: Sr. Architect | D74: 376 | E74: 0.01 | F74: 372.24 | G74: Each
A75: CA Technologies | B75: CA_NP_SC | C75: Sr. Consultant | D75: 311 | E75: 0.01 | F75: 307.89 | G75: Each
A76: CA Technologies | B76: CA_NP_SCC* | C76: Solution Center Consultant | D76: 60 | E76: 0.01 | F76: 59.4 | G76: Each
A77: CA Technologies | B77: CA_NP_SCTL* | C77: Solution Center Technical Lead | D77: 100 | E77: 0.01 | F77: 99 | G77: Each
A78: CA Technologies | B78: CA_NP_SE* | C78: Support Engineer | D78: 150 | E78: 0.01 | F78: 148.5 | G78: Each
A79: CA Technologies | B79: CA_NP_SPM | C79: Sr. Project Manager | D79: 331 | E79: 0.01 | F79: 327.69 | G79: Each
A80: CA Technologies | B80: CA_NP_TSM* | C80: Technical Services Manager | D80: 215 | E80: 0.01 | F80: 212.85 | G80: Each
A81: CA Technologies | B81: CODSV1991 | C81: *CA PPM SaaS View Only User (100 user pack) - 1 Year deals | D81: 900 | E81: 0.01 | F81: 891 | G81: Each
A82: CA Technologies | B82: EDUPPM | C82: Education PPM Training Funds | D82: 100 | E82: 0.01 | F82: 99 | G82: Each
A83: CA Technologies | B83: NCUBMF990 | C83: CA App Synthetic Monitor 5 Minute Basic Monitor 10 pack | D83: 1740 | E83: 0.01 | F83: 1722.6 | G83: Each
A84: CA Technologies | B84: NCUBMT990 | C84: CA App Synthetic Monitor 5 Minute Basic Monitor 3 pack | D84: 540 | E84: 0.01 | F84: 534.6 | G84: Each
A85: CA Technologies | B85: NCUEAF990 | C85: CA App Synthetic Monitor 5 Minute Advanced Monitor (10 GB) 1 | D85: 708 | E85: 0.01 | F85: 700.92 | G85: Each
A86: CA Technologies | B86: NCUEBM990 | C86: CA App Synthetic Monitor 1 Minute Basic Monitor 1 | D86: 1080 | E86: 0.01 | F86: 1069.2 | G86: Each
A87: CA Technologies | B87: NCUEBP990 | C87: CA App Synthetic Monitor 5 Minute Basic Monitor 25 pack | D87: 3900 | E87: 0.01 | F87: 3861 | G87: Each
A88: CA Technologies | B88: NCUEMA990 | C88: CA App Synthetic Monitor 15 Minute Advanced Monitor (5 GB) 1 | D88: 348 | E88: 0.01 | F88: 344.52 | G88: Each
A89: CA Technologies | B89: NCUEMM990 | C89: CA App Synthetic Monitor 5 Minute Basic Monitor 1 | D89: 216 | E89: 0.01 | F89: 213.84 | G89: Each
A90: CA Technologies | B90: NCUEMP990 | C90: CA App Synthetic Monitor 10 Minute Basic Monitor 10 pack | D90: 936 | E90: 0.01 | F90: 926.64 | G90: Each
A91: CA Technologies | B91: NCUETB990 | C91: CA App Synthetic Monitor 10 Minute Basic Monitor 1 | D91: 108 | E91: 0.01 | F91: 106.92 | G91: Each
A92: CA Technologies | B92: NCUETP990 | C92: CA App Synthetic Monitor 10 Minute Basic Monitor 3 pack | D92: 288 | E92: 0.01 | F92: 285.12 | G92: Each
A93: CA Technologies | B93: NCUMAM990 | C93: CA App Synthetic Monitor 5 Minute Advanced Monitor (10 GB) 10 pack | D93: 6000 | E93: 0.01 | F93: 5940 | G93: Each
A94: CA Technologies | B94: NCUMCB990 | C94: CA App Synthetic Monitor Corporate Bundle | D94: 5940 | E94: 0.01 | F94: 5880.6 | G94: Each
A95: CA Technologies | B95: NCUMEB990 | C95: CA App Synthetic Monitor Enterprise Bundle | D95: 18000 | E95: 0.01 | F95: 17820 | G95: Each
A96: CA Technologies | B96: NCUMFA990 | C96: CA App Synthetic Monitor 5 Minute Advanced Monitor (40 GB) 1 | D96: 1800 | E96: 0.01 | F96: 1782 | G96: Each
A97: CA Technologies | B97: NCUMMA990 | C97: CA App Synthetic Monitor 5 Minute Advanced Monitor (20 GB) 1 | D97: 1080 | E97: 0.01 | F97: 1069.2 | G97: Each
A98: CA Technologies | B98: NCUMSB990 | C98: CA App Synthetic Monitor Multi-Site Bundle | D98: 1188 | E98: 0.01 | F98: 1176.12 | G98: Each
A99: CA Technologies | B99: SOENTE990 | C99: CA Automic Service Orchestration – Enterprise Edition | D99: 181985.4 | E99: 0.01 | F99: 180165.546 | G99: Each
A100: CA Technologies | B100: SOHGAC990 | C100: CA Automic Service Orchestration - High Availability Cluster | D100: 51183.39 | E100: 0.01 | F100: 50671.5561 | G100: Each
A101: CA Technologies | B101: APIMPR990 | C101: CA API Management SaaS Portal -Partner | D101: 30000 | E101: 0.01 | F101: 29700 | G101: Each
A102: CA Technologies | B102: APIMSA990 | C102: CA API Management SaaS Gateway add-on -Partner | D102: 21600 | E102: 0.01 | F102: 21384 | G102: Each
A103: CA Technologies | B103: APIMSP990 | C103: CA API Management SaaS Partner | D103: 78000 | E103: 0.01 | F103: 77220 | G103: Each
A104: CA Technologies | B104: CODSFF991 | C104: *CA PPM SAAS Full Function User | D104: 720 | E104: 0.01 | F104: 712.8 | G104: Each
A105: CA Technologies | B105: CODSRU991 | C105: *CA PPM SAAS Restricted User | D105: 360 | E105: 0.01 | F105: 356.4 | G105: Each
A106: CA Technologies | B106: CODSVU991 | C106: *CA PPM SAAS VIEW ONLY USER (1000 User pack) | D106: 5000 | E106: 0.01 | F106: 4950 | G106: Each
A107: CA Technologies | B107: CODSBX991 | C107: *CA PPM SAAS Sandbox Small Environment | D107: 30000 | E107: 0.01 | F107: 29700 | G107: Each
A108: CA Technologies | B108: CODSB2991 | C108: *CA PPM SAAS Sandbox Near Production Environment | D108: 48000 | E108: 0.01 | F108: 47520 | G108: Each

Sheet Calero
A1: Manufacturer | B1: Part Number | C1: Description | D1: Category | E1: Sub-Category | F1: List Price | G1: MINIMUM DISCOUNT | H1: NVP PRICE | I1: Unit
A2: CALERO | B2: Renewal TM | C2: Renewal - TM Maintenance Annual Maintenance | D2: SaaS | F2: 56617 | G2: 0.01 | H2: 56050.83 | I2: EA

Sheet Capstorm
A1: Manufacturer | B1: Part Number | C1: Description | D1: List Price | E1: MINIMUM DISCOUNT | F1: NVP PRICE | G1: Unit
A2: Capstorm, LLC. | B2: CAP-ENT-LIC | C2: Capstorm Annual Enterprise License (3 Year Agreement) - Use with one (1) enterprise production Salesforce organization Use with up to five (5) sandboxes monthly SQLServer connector. Unlimited backups and restores Unlimited backup verification Unlimited field masking for sandboxes General release application updates at no additional charge. License is for primary Salesforce licensee and one (1) 3rd party consultancy. | D2: 299000 | E2: 0.02 | F2: =D2*(1-E2) -> 293020 | G2: Each
A3: Capstorm, LLC. | B3: CAP-STD-SPT | C3: Standard Support - Online resources including product knowledge base and email support (3 Year Agreement) | D3: 19000 | E3: 0.02 | F3: =D3*(1-E3) -> 18620 | G3: Each
A4: Capstorm, LLC. | B4: CAP-IMPL | C4: Implementation Service (Optional) - One time cost for backup implementation. Initial backup implementation. Includes: Software installation. Manual verification of initial backup success. Report listing any objects/fields that are not included in the initial backup due to Salesforce credential limitations. Q&A session with a Capstorm senior developer | D4: 5900 | E4: 0.02 | F4: 5782 | G4: Each

Sheet Carahsoft
A1: Manufacturer | B1: Part Number | C1: Description | D1: Category | E1: Sub-Category | F1: List Price | G1: MINIMUM DISCOUNT | H1: NVP PRICE | I1: Unit
A2: Carahsoft | B2: Dito-Servces | C2: Custom Professional Services. Scoped Milestone. SOW Required. Dito Services Carahsoft Technology Corporation - Dito-Services | D2: Value Added Services | F2: 200000 | G2: 0.01 | H2: 198000 | I2: EA

Sheet Checkpoint
A1: Manufacturer | B1: Part Number | C1: Description | D1: List Price | E1: MINIMUM DISCOUNT | F1: NVP PRICE | G1: Unit
A2: Checkpoint | B2: CPAP-SG6900-PLUSSNBT | C2: 6900 APP WITH SB SUB PKG 1Y PERP Product stocked by manufacturer. Delivery times vary. | D2: 96830 | E2: 0.02 | F2: =D2*(1-E2) -> 94893.4 | G2: Each
A3: Checkpoint | B3: CPACRAILEXT6000/7000 | C3: EXTENDED SLIDE RAILS FOR ACCS 6000/7000 SERIES Product stocked by manufacturer. Delivery times vary. | D3: 231 | E3: 0.02 | F3: =D3*(1-E3) -> 226.38 | G3: Each
A4: Checkpoint | B4: CPSB-MOB-200 | C4: MOBILE ACCESS BLADE UP TO 200 LICS CONCURRENT CONNECTIONS Product stocked by manufacturer. Delivery times vary. | D4: 4610 | E4: 0.02 | F4: 4517.8 | G4: Each
A5: Checkpoint | B5: CPES-SS-PREMIUM | C5: CHECK POINT ENTERPRISE SUPPORT SVCS SUPP PRICING VARIES Product stocked by manufacturer. Delivery times vary. | D5: 36688.74 | E5: 0.02 | F5: 35954.9652 | G5: Each

Sheet Cisco
A1: Category | B1: Product | C1: Product Description | D1: Initial Term From | E1: Initial Term To | F1: Prepay From | G1: Prepay To | H1: List Price | I1: NVP Max Price | J1: Price Unit Of Measure
A3: Cisco Elastic Services Controller
B4: ESC-TERM-K9 | C4: Elastic Services Controller (Top Level), Subscription
A5: Cisco Network Services Orchestrator
A6: Cisco Network Services Orchestrator | B6: NSO-SPLA-K9 | C6: SPLA for Network Service Orchestration
A7: Cisco Network Services Orchestrator | B7: NSO-VNF-ORCH-M | C7: NSO Virtual Device Orchestration including ESC (Monthly) | J7: Per VNFs
A8: Cisco Network Services Orchestrator | B8: NSO-TERM-K9 | C8: Network Services Orchestrator (Top Level) , Subscription
A9: Cisco Network Services Orchestrator | B9: NSO-PNF-ORCH-M | C9: NSO Physical Device Orchestration (Monthly) | I9: =IF(H9="","",H9-(H9*0.01)) ->  | J9: Per Device
A10: Cisco Network Services Orchestrator | B10: NSO-VNF-NFVO-M | C10: NSO NFVO/VNFM Virtual Orchestration including ESC (Monthly) | I10: =IF(H10="","",H10-(H10*0.01)) ->  | J10: Per VNFs
A11: Cisco Network Services Orchestrator | B11: NED-IOS | C11: NSO NED Cisco IOS & IOS XE: 1 Active Prod Netw Server Lic | D11: 13 | E11: 35 | F11: 1 | G11: 60 | H11: 1814.25 | I11: =IF(H11="","",H11-(H11*0.01)) -> 1796.1075 | J11: Per Server
A12: Cisco Network Services Orchestrator | B12: NED-IOS | C12: NSO NED Cisco IOS & IOS XE: 1 Active Prod Netw Server Lic | D12: 1 | E12: 12 | F12: 1 | G12: 60 | H12: 1814.25 | I12: =IF(H12="","",H12-(H12*0.01)) -> 1796.1075 | J12: Per Server
A13: Cisco Network Services Orchestrator | B13: NED-IOS | C13: NSO NED Cisco IOS & IOS XE: 1 Active Prod Netw Server Lic | D13: 36 | E13: 60 | F13: 1 | G13: 60 | H13: 1547.15 | I13: 1531.6785 | J13: Per Server
A14: Cisco Network Services Orchestrator | B14: NSO-CFP-SDWAN | C14: NSO SDWAN Core Function Pack Base Package | D14: 1 | E14: 12 | F14: 1 | G14: 60 | H14: 2041 | I14: 2020.59 | J14: Per Server
A15: Cisco Network Services Orchestrator | B15: NSO-CFP-SDWAN | C15: NSO SDWAN Core Function Pack Base Package | D15: 13 | E15: 35 | F15: 1 | G15: 60 | H15: 2041 | I15: 2020.59 | J15: Per Server
A16: Cisco Network Services Orchestrator | B16: NSO-CFP-SDWAN | C16: NSO SDWAN Core Function Pack Base Package | D16: 36 | E16: 60 | F16: 1 | G16: 60 | H16: 1741.55 | I16: 1724.1345 | J16: Per Server
A17: Cisco Network Services Orchestrator | B17: NED-ADVA-FSPNH | C17: NSO NED Adva FSP NH: 1 Active Prod Net Srver License | D17: 13 | E17: 35 | F17: 1 | G17: 60 | H17: 1814.25 | I17: 1796.1075 | J17: Per Server
A18: Cisco Network Services Orchestrator | B18: NED-ADVA-FSPNH | C18: NSO NED Adva FSP NH: 1 Active Prod Net Srver License | D18: 36 | E18: 60 | F18: 1 | G18: 60 | H18: 1547.15 | I18: 1531.6785 | J18: Per Server
A19: Cisco Network Services Orchestrator | B19: NED-ADVA-FSPNH | C19: NSO NED Adva FSP NH: 1 Active Prod Net Srver License | D19: 1 | E19: 12 | F19: 1 | G19: 60 | H19: 1814.25 | I19: 1796.1075 | J19: Per Server
A20: Cisco Network Services Orchestrator | B20: NED-HWEI-USN | C20: NSO NED Huawei USN: 1 Active Prod Net Server License | D20: 13 | E20: 35 | F20: 1 | G20: 60 | H20: 1814.25 | I20: 1796.1075 | J20: Per Server
A21: Cisco Network Services Orchestrator | B21: NED-HWEI-USN | C21: NSO NED Huawei USN: 1 Active Prod Net Server License | D21: 36 | E21: 60 | F21: 1 | G21: 60 | H21: 1547.15 | I21: 1531.6785 | J21: Per Server
A22: Cisco Network Services Orchestrator | B22: NED-HWEI-USN | C22: NSO NED Huawei USN: 1 Active Prod Net Server License | D22: 1 | E22: 12 | F22: 1 | G22: 60 | H22: 1814.25 | I22: 1796.1075 | J22: Per Server
A23: Cisco Network Services Orchestrator | B23: NED-NEXTDC-AXON | C23: NSO NED NEXTDC AXON: 1 Active Prod Net Server License | D23: 13 | E23: 35 | F23: 1 | G23: 60 | H23: 1814.25 | I23: 1796.1075 | J23: Per Server
A24: Cisco Network Services Orchestrator | B24: NED-NEXTDC-AXON | C24: NSO NED NEXTDC AXON: 1 Active Prod Net Server License | D24: 36 | E24: 60 | F24: 1 | G24: 60 | H24: 1547.15 | I24: 1531.6785 | J24: Per Server
A25: Cisco Network Services Orchestrator | B25: NED-NEXTDC-AXON | C25: NSO NED NEXTDC AXON: 1 Active Prod Net Server License | D25: 1 | E25: 12 | F25: 1 | G25: 60 | H25: 1814.25 | I25: 1796.1075 | J25: Per Server
A26: Cisco Network Services Orchestrator | B26: NED-INFOBLOX | C26: NSO NED Infoblox: Active Prod Netw Server License | D26: 13 | E26: 35 | F26: 1 | G26: 60 | H26: 1814.25 | I26: 1796.1075 | J26: Per Server
A27: Cisco Network Services Orchestrator | B27: NED-INFOBLOX | C27: NSO NED Infoblox: Active Prod Netw Server License | D27: 36 | E27: 60 | F27: 1 | G27: 60 | H27: 1547.15 | I27: 1531.6785 | J27: Per Server
A28: Cisco Network Services Orchestrator | B28: NED-INFOBLOX | C28: NSO NED Infoblox: Active Prod Netw Server License | D28: 1 | E28: 12 | F28: 1 | G28: 60 | H28: 1814.25 | I28: 1796.1075 | J28: Per Server
A29: Cisco Network Services Orchestrator | B29: NSO-NFVO-LARGE | C29: NSO NFVO ESC RTM license for Core / Large VIM VNFs | D29: 1 | E29: 12 | F29: 1 | G29: 60 | H29: 5.5 | I29: 5.445 | J29: Per VNFs
A30: Cisco Network Services Orchestrator | B30: NSO-NFVO-LARGE | C30: NSO NFVO ESC RTM license for Core / Large VIM VNFs | D30: 36 | E30: 60 | F30: 1 | G30: 60 | H30: 7.58 | I30: 7.5042 | J30: Per VNFs
A31: Cisco Network Services Orchestrator | B31: NSO-NFVO-LARGE | C31: NSO NFVO ESC RTM license for Core / Large VIM VNFs | D31: 13 | E31: 35 | F31: 1 | G31: 60 | H31: 9.17 | I31: 9.0783 | J31: Per VNFs
A32: Cisco Network Services Orchestrator | B32: NSO-NFVO-LARGE | C32: NSO NFVO ESC RTM license for Core / Large VIM VNFs | D32: 13 | E32: 35 | F32: 1 | G32: 60 | H32: 4.58 | I32: 4.5342 | J32: Per VNFs
A33: Cisco Network Services Orchestrator | B33: NSO-NFVO-LARGE | C33: NSO NFVO ESC RTM license for Core / Large VIM VNFs | D33: 13 | E33: 35 | F33: 1 | G33: 60 | H33: 5.5 | I33: 5.445 | J33: Per VNFs
A34: Cisco Network Services Orchestrator | B34: NSO-NFVO-LARGE | C34: NSO NFVO ESC RTM license for Core / Large VIM VNFs | D34: 1 | E34: 12 | F34: 1 | G34: 60 | H34: 7.33 | I34: 7.2567 | J34: Per VNFs
A35: Cisco Network Services Orchestrator | B35: NSO-NFVO-LARGE | C35: NSO NFVO ESC RTM license for Core / Large VIM VNFs | D35: 36 | E35: 60 | F35: 1 | G35: 60 | H35: 6.82 | I35: 6.7518 | J35: Per VNFs
A36: Cisco Network Services Orchestrator | B36: NSO-NFVO-LARGE | C36: NSO NFVO ESC RTM license for Core / Large VIM VNFs | D36: 13 | E36: 35 | F36: 1 | G36: 60 | H36: 7.33 | I36: 7.2567 | J36: Per VNFs
A37: Cisco Network Services Orchestrator | B37: NSO-NFVO-LARGE | C37: NSO NFVO ESC RTM license for Core / Large VIM VNFs | D37: 36 | E37: 60 | F37: 1 | G37: 60 | H37: 6.06 | I37: 5.9994 | J37: Per VNFs
A38: Cisco Network Services Orchestrator | B38: NSO-NFVO-LARGE | C38: NSO NFVO ESC RTM license for Core / Large VIM VNFs | D38: 1 | E38: 12 | F38: 1 | G38: 60 | H38: 9.17 | I38: 9.0783 | J38: Per VNFs
A39: Cisco Network Services Orchestrator | B39: NSO-NFVO-LARGE | C39: NSO NFVO ESC RTM license for Core / Large VIM VNFs | D39: 13 | E39: 35 | F39: 1 | G39: 60 | H39: 6.42 | I39: 6.3558 | J39: Per VNFs
A40: Cisco Network Services Orchestrator | B40: NSO-NFVO-LARGE | C40: NSO NFVO ESC RTM license for Core / Large VIM VNFs | D40: 1 | E40: 12 | F40: 1 | G40: 60 | H40: 4.58 | I40: 4.5342 | J40: Per VNFs
A41: Cisco Network Services Orchestrator | B41: NSO-NFVO-LARGE | C41: NSO NFVO ESC RTM license for Core / Large VIM VNFs | D41: 36 | E41: 60 | F41: 1 | G41: 60 | H41: 4.55 | I41: 4.5045 | J41: Per VNFs
A42: Cisco Network Services Orchestrator | B42: NSO-NFVO-LARGE | C42: NSO NFVO ESC RTM license for Core / Large VIM VNFs | D42: 1 | E42: 12 | F42: 1 | G42: 60 | H42: 6.42 | I42: 6.3558 | J42: Per VNFs
A43: Cisco Network Services Orchestrator | B43: NSO-NFVO-LARGE | C43: NSO NFVO ESC RTM license for Core / Large VIM VNFs | D43: 1 | E43: 12 | F43: 1 | G43: 60 | H43: 8.25 | I43: 8.1675 | J43: Per VNFs
A44: Cisco Network Services Orchestrator | B44: NSO-NFVO-LARGE | C44: NSO NFVO ESC RTM license for Core / Large VIM VNFs | D44: 36 | E44: 60 | F44: 1 | G44: 60 | H44: 3.79 | I44: 3.7521 | J44: Per VNFs
A45: Cisco Network Services Orchestrator | B45: NSO-NFVO-LARGE | C45: NSO NFVO ESC RTM license for Core / Large VIM VNFs | D45: 13 | E45: 35 | F45: 1 | G45: 60 | H45: 8.25 | I45: 8.1675 | J45: Per VNFs
A46: Cisco Network Services Orchestrator | B46: NSO-NFVO-LARGE | C46: NSO NFVO ESC RTM license for Core / Large VIM VNFs | D46: 36 | E46: 60 | F46: 1 | G46: 60 | H46: 5.31 | I46: 5.2569 | J46: Per VNFs
A47: Cisco Network Services Orchestrator | B47: NSO-HA-LIC | C47: One High Availability NSO Server license for Product Network | D47: 13 | E47: 35 | F47: 1 | G47: 60 | H47: 2041.08 | I47: 2020.6692 | J47: Per Server
A48: Cisco Network Services Orchestrator | B48: NSO-HA-LIC | C48: One High Availability NSO Server license for Product Network | D48: 1 | E48: 12 | F48: 1 | G48: 60 | H48: 2041.08 | I48: 2020.6692 | J48: Per Server
A49: Cisco Network Services Orchestrator | B49: NSO-HA-LIC | C49: One High Availability NSO Server license for Product Network | D49: 36 | E49: 60 | F49: 1 | G49: 60 | H49: 1740.54 | I49: 1723.1346 | J49: Per Server
A50: Cisco Network Services Orchestrator | B50: NED-QPS | C50: NSO NED Cisco QPS: 1 Active Production Network Server Lic | D50: 13 | E50: 35 | F50: 1 | G50: 60 | H50: 1814.25 | I50: 1796.1075 | J50: Per Server
A51: Cisco Network Services Orchestrator | B51: NED-QPS | C51: NSO NED Cisco QPS: 1 Active Production Network Server Lic | D51: 1 | E51: 12 | F51: 1 | G51: 60 | H51: 1814.25 | I51: 1796.1075 | J51: Per Server
A52: Cisco Network Services Orchestrator | B52: NED-QPS | C52: NSO NED Cisco QPS: 1 Active Production Network Server Lic | D52: 36 | E52: 60 | F52: 1 | G52: 60 | H52: 1547.15 | I52: 1531.6785 | J52: Per Server
A53: Cisco Network Services Orchestrator | B53: NED-IOSX | C53: NSO NED Cisco IOS XR: 1 Active Production Netw Service Lic | D53: 13 | E53: 35 | F53: 1 | G53: 60 | H53: 1814.25 | I53: 1796.1075 | J53: Per Server
A54: Cisco Network Services Orchestrator | B54: NED-IOSX | C54: NSO NED Cisco IOS XR: 1 Active Production Netw Service Lic | D54: 36 | E54: 60 | F54: 1 | G54: 60 | H54: 1547.15 | I54: 1531.6785 | J54: Per Server
A55: Cisco Network Services Orchestrator | B55: NED-IOSX | C55: NSO NED Cisco IOS XR: 1 Active Production Netw Service Lic | D55: 1 | E55: 12 | F55: 1 | G55: 60 | H55: 1814.25 | I55: 1796.1075 | J55: Per Server
A56: Cisco Network Services Orchestrator | B56: ESC-NSO-HA | C56: One add-on High Avail. ESC Server Lic for NSO Prod Network | D56: 36 | E56: 60 | F56: 1 | G56: 60 | H56: 387.5 | I56: 383.625 | J56: Per Server
A57: Cisco Network Services Orchestrator | B57: ESC-NSO-HA | C57: One add-on High Avail. ESC Server Lic for NSO Prod Network | D57: 13 | E57: 35 | F57: 1 | G57: 60 | H57: 450 | I57: 445.5 | J57: Per Server
A58: Cisco Network Services Orchestrator | B58: ESC-NSO-HA | C58: One add-on High Avail. ESC Server Lic for NSO Prod Network | D58: 1 | E58: 12 | F58: 1 | G58: 60 | H58: 450 | I58: 445.5 | J58: Per Server
A59: Cisco Network Services Orchestrator | B59: NED-MRV | C59: NSO NED MRV Optiswitch: 1 Active Production Netw Server Lic | D59: 13 | E59: 35 | F59: 1 | G59: 60 | H59: 1814.25 | I59: 1796.1075 | J59: Per Server
A60: Cisco Network Services Orchestrator | B60: NED-MRV | C60: NSO NED MRV Optiswitch: 1 Active Production Netw Server Lic | D60: 36 | E60: 60 | F60: 1 | G60: 60 | H60: 1547.15 | I60: 1531.6785 | J60: Per Server
A61: Cisco Network Services Orchestrator | B61: NED-MRV | C61: NSO NED MRV Optiswitch: 1 Active Production Netw Server Lic | D61: 1 | E61: 12 | F61: 1 | G61: 60 | H61: 1814.25 | I61: 1796.1075 | J61: Per Server
A62: Cisco Network Services Orchestrator | B62: NED-1ACC-1OS | C62: NSO NED OneAccess OneOS: Active Prod Netw Server License | D62: 13 | E62: 35 | F62: 1 | G62: 60 | H62: 1814.25 | I62: 1796.1075 | J62: Per Server
A63: Cisco Network Services Orchestrator | B63: NED-1ACC-1OS | C63: NSO NED OneAccess OneOS: Active Prod Netw Server License | D63: 1 | E63: 12 | F63: 1 | G63: 60 | H63: 1814.25 | I63: 1796.1075 | J63: Per Server
A64: Cisco Network Services Orchestrator | B64: NED-1ACC-1OS | C64: NSO NED OneAccess OneOS: Active Prod Netw Server License | D64: 36 | E64: 60 | F64: 1 | G64: 60 | H64: 1547.15 | I64: 1531.6785 | J64: Per Server
A65: Cisco Network Services Orchestrator | B65: NED-CISCO-SMA | C65: NSO NED Cisco SMA: Active Prod Netw Server License | D65: 13 | E65: 35 | F65: 1 | G65: 60 | H65: 1814.25 | I65: 1796.1075 | J65: Per Server
A66: Cisco Network Services Orchestrator | B66: NED-CISCO-SMA | C66: NSO NED Cisco SMA: Active Prod Netw Server License | D66: 1 | E66: 12 | F66: 1 | G66: 60 | H66: 1814.25 | I66: 1796.1075 | J66: Per Server
A67: Cisco Network Services Orchestrator | B67: NED-CISCO-SMA | C67: NSO NED Cisco SMA: Active Prod Netw Server License | D67: 36 | E67: 60 | F67: 1 | G67: 60 | H67: 1547.15 | I67: 1531.6785 | J67: Per Server
A68: Cisco Network Services Orchestrator | B68: NED-REDBACK-SE | C68: NSO NED Redback SE: Active Prod Netw Server License | D68: 13 | E68: 35 | F68: 1 | G68: 60 | H68: 1814.25 | I68: 1796.1075 | J68: Per Server
A69: Cisco Network Services Orchestrator | B69: NED-REDBACK-SE | C69: NSO NED Redback SE: Active Prod Netw Server License | D69: 36 | E69: 60 | F69: 1 | G69: 60 | H69: 1547.15 | I69: 1531.6785 | J69: Per Server
A70: Cisco Network Services Orchestrator | B70: NED-REDBACK-SE | C70: NSO NED Redback SE: Active Prod Netw Server License | D70: 1 | E70: 12 | F70: 1 | G70: 60 | H70: 1814.25 | I70: 1796.1075 | J70: Per Server
A71: Cisco Network Services Orchestrator | B71: NED-CTRX | C71: NSO NED Citrix Netscaler: 1 Active Prod Netw Server Lic | D71: 13 | E71: 35 | F71: 1 | G71: 60 | H71: 1814.25 | I71: 1796.1075 | J71: Per Server
A72: Cisco Network Services Orchestrator | B72: NED-CTRX | C72: NSO NED Citrix Netscaler: 1 Active Prod Netw Server Lic | D72: 36 | E72: 60 | F72: 1 | G72: 60 | H72: 1547.15 | I72: 1531.6785 | J72: Per Server
A73: Cisco Network Services Orchestrator | B73: NED-CTRX | C73: NSO NED Citrix Netscaler: 1 Active Prod Netw Server Lic | D73: 1 | E73: 12 | F73: 1 | G73: 60 | H73: 1814.25 | I73: 1796.1075 | J73: Per Server
A74: Cisco Network Services Orchestrator | B74: NED-RAD-VX | C74: NSO NED RAD Switch: 1 Active Prod Net Server License | D74: 13 | E74: 35 | F74: 1 | G74: 60 | H74: 1814.25 | I74: 1796.1075 | J74: Per Server
A75: Cisco Network Services Orchestrator | B75: NED-RAD-VX | C75: NSO NED RAD Switch: 1 Active Prod Net Server License | D75: 36 | E75: 60 | F75: 1 | G75: 60 | H75: 1547.15 | I75: 1531.6785 | J75: Per Server
A76: Cisco Network Services Orchestrator | B76: NED-RAD-VX | C76: NSO NED RAD Switch: 1 Active Prod Net Server License | D76: 1 | E76: 12 | F76: 1 | G76: 60 | H76: 1814.25 | I76: =IF(H76="","",H76-(H76*0.01)) -> 1796.1075 | J76: Per Server
A77: Cisco Network Services Orchestrator | B77: NED-ACCDN-NID | C77: NSO NED Accedian NID: Active Prod Netw Server License | D77: 13 | E77: 35 | F77: 1 | G77: 60 | H77: 1814.25 | I77: 1796.1075 | J77: Per Server
A78: Cisco Network Services Orchestrator | B78: NED-ACCDN-NID | C78: NSO NED Accedian NID: Active Prod Netw Server License | D78: 36 | E78: 60 | F78: 1 | G78: 60 | H78: 1547.15 | I78: 1531.6785 | J78: Per Server
A79: Cisco Network Services Orchestrator | B79: NED-ACCDN-NID | C79: NSO NED Accedian NID: Active Prod Netw Server License | D79: 1 | E79: 12 | F79: 1 | G79: 60 | H79: 1814.25 | I79: 1796.1075 | J79: Per Server
A80: Cisco Network Services Orchestrator | B80: NED-HWEI-IMGR | C80: NSO NED Huawei iManager U2000: 1 Active Prod Net Svr Lic | D80: 36 | E80: 60 | F80: 1 | G80: 60 | H80: 1547.15 | I80: 1531.6785 | J80: Per Server
A81: Cisco Network Services Orchestrator | B81: NED-HWEI-IMGR | C81: NSO NED Huawei iManager U2000: 1 Active Prod Net Svr Lic | D81: 13 | E81: 35 | F81: 1 | G81: 60 | H81: 1814.25 | I81: 1796.1075 | J81: Per Server
